Workbook

Sheet Baseline Risk Assessment
B2: BASELINE RISK ASSESSMENT
B4: Project Name | D4: TPL Lighting Upgrade: (Electrical Construction Works )
B5: Project No.
B7: Risk Ref. | C7: Activity | D7: Hazard | E7: Risk | F7: Safety | G7: Health | H7: Env | I7: Controls/ Mitigation
B8: 1 | C8: Enter NationalKey Point | D8: Criminal activity | E8: Production loss | F8: b | H8: b | I8: Ensure SAPS clearance is on hand, Sign-in local security.
B9: 2 | C9: Enter NationalKey Point | D9: Criminal activity | E9: Damage to buildings and Equipment | F9: b | H9: b | I9: Ensure SAPS clearance is on hand, Sign-in local security.
B10: 3 | C10: Walking through vegetated areas | D10: Insects, Snakes | E10: Insect/Snake bites | G10: b | I10: Use of correct PPE & Training, first aid box to be made available on site
B11: 4 | C11: Driving to specific sites | D11: Defective vehicle - oil leaks | E11: Environmental damage | H11: b | I11: Vehicles are checked before each trip for any defects, Inspection checklist
B12: 5 | C12: Transport to and from site | D12: Defective vehicle | E12: Vehicle Failure | F12: b | I12: Vehicles are checked before each trip for any defects, Inspection checklist
B13: 6 | C13: Transport to and from site | D13: Vehicle accidents | E13: Injuries/Fatalities | F13: b | I13: Vehicles are checked before each trip for any defects, Inspection checklist , enforce use of seatbelts, use of roadworthy vehicles
B14: 7 | C14: Transport to and from site | D14: Unsafe travel routes | E14: Hijackings | F14: b | I14: Use safe travel routes, security awareness, toolbox talks on tips on hijackings
B15: 8 | C15: Site establishment | D15: Vehicles entering/ leaving site | E15: Traffic disruption, injuries to people, damage to vehicles and property | F15: b | I15: Plan deliveries, drivers aware of other road users, use of flagmen, plan laydown areas, materials management procedure in place, competent operators/drivers required
B16: 9 | C16: Site establishment | D16: Incorrect off-loading of materials | E16: Injuries to people, damage to materials and property | F16: b | I16: Competent supervisor must be present for off loading activities
B17: 10 | C17: Site establishment | D17: Inadequate facilities | E17: Spillages, unhygienic conditions | G17: b | H17: b | I17: Sufficient amount of facilities must be installed, sheltered eating area must be provided, reputable service provider to be used,
B18: 11 | C18: Site establishment | D18: Unsafe stacking and storage | E18: Injuries to workers and visitors | F18: b | I18: Competent supervisor must be present for off loading activities
B19: 12 | C19: Site Establishment | D19: Electrical Installation | I19: CoC, TPL Spec , Electricity and water, appointments, Registers, competent person
B20: 13 | C20: Site access - Site is a National Keypoint | D20: Unauthorised access to site | E20: Injury to tresspassers, possibility of theft | F20: b | I20: Access control to be used at the site gate, warning signs must be displayed, Security vetting (as per minimum requirements - SAPS security clearance) , registers, breathalysers, tags
B21: 14 | C21: All site activites | D21: Not using specificied PPE to carry out activities | E21: Injuries to workers | F21: b | G21: b | I21: Site rules, Method statement and HIRA training, Inductions, Supervisors ensure worker wear PPE, PPE control and issue form, registers, reserve stock for PPE
B22: 15 | C22: Activities involving mobile plant | D22: Unauthorised / untrained operators operating plant and machinery | E22: Injury to people, damage to property | F22: b | I22: Only competent, appointed persons to operate, key control system must be in place,
B23: 16 | C23: Use of electrical hand tools | D23: Damaged tools | E23: Injury to people, deaths | F23: b | I23: Daily inspection by operator and inspection registers, toolbox talks, enforce use of work permits,
B24: 17 | C24: Work around tanks and manifolds (Hazardous classified areas) | D24: Use of sparking tools | E24: Sparks, fire, injury, damage to property | F24: b | I24: Hazardous area classification drawings, use of non-sparking tools, permit system to be followed
B25: 18 | C25: Noise generated by work activities | D25: Noise | E25: Noise Induced Hearing Loss | G25: b | I25: Inspections of equipment, equipment must be in good working order, assess noise levels, PPE, training, Occupational health monitoring of exposure extends over a long period of time
B26: 19 | C26: Dust generated by work activities | D26: Dust pollution | E26: Health problems for workers, nuisance to workers | G26: b | H26: b | I26: Dampening of site, Use of PPE
B27: 20 | C27: Employee movement around site | D27: Uneven surfaces | E27: Slips, Trips, Falls | F27: b | I27: Use authorised walking areas and safe accesses, Personal awareness, Use of safety footwear (must be in good condition), Inductions, houssekeeping, barricading of work areas
B28: 21 | C28: Welding and gas cutting | D28: Operating of equipment by untrained personnel | E28: Injury to people, damage to property | F28: b | I28: Competent persons to be appointed , Safe Work Procedures
B29: 22 | C29: Welding and gas cutting | D29: Equipment not inspected and maintained | E29: Injury to people, damage to property | F29: b | I29: Daily inspection by operator, toolbox talks, enforce use of work permits , use o fwelding screens specifically for arc welding, use competent maintenance service providers
B30: 23 | C30: Welding and gas cutting | D30: Surrounding work area and passers by not protected from sparks etc | E30: Fire, injury to workers, damage to property | F30: b | I30: Permit system must be in place, toolbox talks, welding screens/ blankets where required , fire standbys will be provided by TPL
B31: 24 | C31: Welding and gas cutting | D31: Incorrect use of PPE, No use of PPE | E31: Injury to people | F31: b | I31: Site rules, supervisor, training, daily risk assessments
B32: 25 | C32: Welding and gas cutting | D32: Gas cylinders not secured | E32: Explosions, deaths, injury to people, excessive damage to property | F32: b | I32: Gas cylinders to be stored in cage or trolley when not in use, and stored on trolley when in use
B33: 26 | C33: Excavations | D33: Spoiling too close to the edge of the excavation | E33: Spoil falling in excavation, collapse of excavation, injury/death of workers | F33: b | I33: Spoil to be kepy away from edge of excavations, at an equal distance from the edge as the actual depth of excavation. Height of spoil heaps must not exceed 2 metres, excavation permit
B34: 27 | C34: Open excavations | D34: Employee falling into excavation | E34: Injury, fatality | F34: b | I34: Excavations must be barricaded, sufficient signage must be placed around excavated areas, correct access and egress, training, inductions, excavation permit, supervisors
B35: 28 | C35: Ingress of water into excavation | D35: Employee falling into water filled excavation | E35: Drowning, collapse of excavation resulting in injury or death, suffocation | F35: b | I35: Method statement for drainage of excavations, adequate drainage procedure, daily inspections and inspections after inclement weather, monitor weather forecasts, ensure correct batter angles to prevent slump, supervisors
B36: 29 | C36: Work around excavations | D36: Materials/ equipment falling into excavation | E36: Injury to employees below, damage/loss of equipment and materials | F36: b | I36: Store materials away from edges of excavations, materials must be stored correctly and safely, staff awareness and training, competent excavation supervisor, work patterns to be arranged to avoid conflicting operations becoming a danger to personnel
B37: 30 | C37: Working within excavations | D37: Collapse of excavation | E37: Entrapment, serious injury, death by suffocation | F37: b | I37: Method statement for excavations, excavations must be adequately shored, braced and battered, inspections, competent excavation supervisor must be present at all times, training,excavation permits, DSTI's, correct access and egress
B38: 31 | C38: Existing services | D38: Damage to petrochemical pipelines from excavation | E38: Exposure to petrochemicals, contamination, fire, explosion, injury, fatality, disruption of work | F38: b | H38: b | I38: Hand excavation mandatory, DSTI's, approving of current services, training and awareness, TPL emergency procedures to be followed, spill response, permit system must be followed, survey and detection equipment
B39: 32 | C39: Existing services | D39: Damage to electrical, water services, communication cables | E39: Disruption to community, injury to workers | F39: b | I39: Hand excavation mandatory, DSTI's, approving of current services, training and awareness, permit system must be followed, survey and detection equipment
B40: 33 | C40: Backfilling and compacting excavations | D40: Suitable access and egress in and out of excavations deeper than 1 metre not provided | E40: Injury to people | F40: b | I40: Competent excavation supervisor to ensure that access is provided, employees informed of requirements
B41: 34 | C41: Backfilling and compacting excavations | D41: Collapse of excavation during backfilling operations | E41: Injury to people, death | F41: b | I41: Only authorised persons to be in work area, area must be barricaded, hand back filling mandatory
B42: 35 | C42: Backfilling and compacting excavations | D42: Workers not wearing appropriate PPE where required | E42: Injury to workers | F42: b | I42: Employees to be instructed on requirements, toolbox talks, DSTI's, competent supervisor to monitor, site specific inductions
B43: 36 | C43: Working within and around tanks | D43: Inadequate ventilation | E43: Injury to people, suffocation | F43: b | I43: Degassing of tanks prior to work, de-gas tests, TPL procedures must be followed - permit system in place, control measures for tools (non sparking tools to be used)
B44: 37 | C44: Cement mixing | D44: Mishandling of cement | E44: Spillage, injuries to workers | F44: b | H44: b | I44: Cement mixing must take place on impervious substance, appropriate PPE
B45: 38 | C45: Storage of Hazardous chemical substances | D45: Operative contamination with chemical substances | E45: Respiratory / dermatological damage, damage/injury to eyes | G45: b | I45: HCS survey to be conducted, storage of substances must be kept to a minimum, spill containment must be provided for storage, appropriate PPE, MSDS, training, signage, first aid
B46: 39 | C46: Storage of Hazardous chemical substances | D46: Leakage of substances | E46: environmental damage, infrastructure damage, release of toxic gases/ vapour | H46: b | I46: ensure safe storage and handling (adequate ventilation, spill containment), hazardous spill kits must be available, training
B47: 40 | C47: Storage of Hazardous chemical substances | D47: Cross contamination of substances | E47: Fire, explosion, release of toxic gases/vapour | F47: b | I47: Ensure correct labelling and storage, training, separate flammable substances, fire extinguishers in close proximity
B48: 41 | C48: Manual lifting of materials | D48: Poor manual handling techniques | E48: Sprains, strains, muscular / skeletal damage, fractures, bruises | G48: b | I48: Conduct toolbox talks on ergonomics and manual handling of materials. Enforce two + man lifts for heavier items, training
B49: 42 | C49: Construction vehicles | D49: Defective vehicle - oil/ diesel leaks | E49: Environmental damage | H49: b | I49: Daily vehicle inspections, use of drip trays, regular maintenance of vehicles, ensure a spill kit is readily available
B50: 43 | C50: Construction vehicles | D50: Unauthorised driving of vehicles | E50: Accidents, collisions, injury to people, death, damage to property | F50: b | I50: Competent, appointed person to operate, training and medical certificate on file, key control system must be implemented
B51: 44 | C51: Construction vehicles | D51: Use of unsafe, unmaintained vehicles | E51: Injury to people, damage to property | F51: b | I51: Daily inspections, supervisor to monitor, use of roadworthy vehicles
B52: 45 | C52: Construction vehicles | D52: Speeding on site | E52: Injury to people | F52: b | I52: Speed signs displayed, workers informed during induction, site rules
B53: 46 | C53: Construction vehicles | D53: Passengers falling from trucks or vehicles | E53: Injury to people, death | F53: b | I53: no passengers allowed unless vehicle is enclosed, with seat and seat belt provided
B54: 47 | C54: Use of handtools | D54: Incorrect use of handtools | E54: Injuries, Damage to handtools | F54: b | I54: Training,Use of manuals, Use of appropriate PPE, Inspections by competent person
B55: 48 | C55: Use of handtools | D55: Use of substandard/broken handtools | E55: Injury to workers, damage to property | F55: b | I55: Daily inspections when issuing tools, no homemade equipment allowed
B56: 49 | C56: Use of electricity | D56: Lock out procedure not followed resulting in electrocution, unauthorised persons walking over electrical supply, cables laying over roadways, cables immersed in water, unsafe cabling and electrical supply, earth leakages inadequate | E56: Electrocution, injury to workers, death, disruption in electrical supply, damage to property | F56: b | I56: Lock out procedure to be implemented, toolbox talks, planning of cable routes, supervisor to monitor works, daily and weekly inspections
B57: 50 | C57: Operation of mobile cranes | D57: Mobile cranes not adhering to legal requirements | E57: Injury to workers, damage to property | F57: b | I57: All equipment must have valid certification, correct equipment must be used
B58: 51 | C58: Operation of mobile cranes | D58: Load and radius charts not displayed or understood | E58: Overloading of sling resulting in snapping or collapsing of crane | F58: b | I58: Only competent operator to be appointed, supervisor to monitor loading
B59: 52 | C59: Operation of mobile cranes | D59: Unauthorised, untrained operator | E59: Injury to workers, damage to property | F59: b | I59: Only competent operator to be appointed
B60: 53 | C60: Operation of mobile cranes | D60: Mobile crane operated on unstable soil or foundation | E60: Injury to workers, damage to property | F60: b | I60: Area must be checked for underground services, ground conditions to be visually checked by operator, outriggers and packing must be used on unstable ground at all times, rigging study to be undertaken
B61: 54 | C61: Operation of mobile cranes | D61: Movement of people under suspended loads or during crane operations | E61: Injury to workers, damage to property | F61: b | I61: Area to be demarcated, toolbox talks, banksmen to be appointed,
B62: 55 | C62: Operation of mobile cranes | D62: Lifting of unstable loads | E62: Falling loads resulting in injury to people, damage of materials | F62: b | I62: Competent and trained operator to be appointed, banksman to control lifts
B63: 56 | C63: Operation of mobile cranes | D63: Failure of lifting equipment due to poor maintenance and inpections | E63: Failure of equipment resulting in injury to people, damage to materials | F63: b | I63: Daily inspections, supervisor to monitor, load certificates must be placed on file, registers on file, inspections from external authority
B64: 57 | C64: Use of scaffolding | D64: Incorrect structure unsafe structure | E64: Collapsing of structure | F64: b | I64: daily inspections, inspections after inclement weather, scaffolding to be erected only by competent scaffolding erector, fall protection and rescue plan, signage
B65: 58 | C65: Use of scaffolding | D65: Employees falling from scaffolding | E65: Injury to workers, death | F65: b | I65: Scaffolding must have access ladders, inspections undertaken, use of safety harness, safe to use signage
B66: 59 | C66: Work at heights (around pencil tanks) | D66: Falling from heights | E66: Injury, fatality | F66: b | I66: Training, Use of safety harnessess, regular PPE inspection, Scaffolding inspections, Fall protection and rescue plan, competent developer
B67: 60 | C67: Work at heights (around pencil tanks) | D67: Materials falling from heights | E67: Injury to employees below | F67: b | I67: Handtools must be secured, areas must be cordoned off, method statement for deccommissioning must be in place, MS must include ways for materials to be secured
B68: 61 | C68: Fire prevention | D68: Inadequate fire equipment provided and not located at suitable locations | E68: Injury to people and/or damage to property as a result of fire | F68: b | I68: Detailed risk assessment to be conducted, site layout plan must be developed, contractor to ensure that sufficient equipment has been supplied
B69: 62 | C69: Fire prevention | D69: Fire fighting equipment not maintained, misuse or damage of equipment by employees | E69: Injury/death to persons due to failure of fire fighting equipment | F69: b | I69: Competent persons to be appointed for inspection of equipment, monthly inspections undertaken, disciplinary process implemented
B70: 63 | C70: Fire prevention | D70: Symbolic safey signs and notices not displayed | E70: Location of equipment not visible | F70: b | I70: Sufficient signage to be ordered and displayed, shown on site layout plan
B71: 64 | C71: Fire prevention | D71: Emergency alarm system not present, Emergency exits not kept clear and unobstructed | E71: Death, injury to people | F71: b | I71: Toolbox talks, supervisor to monitor areas, alarm system to be ordered
B72: 65 | C72: Fire prevention | D72: Workers untrained and unfamiliar with site emergency procedures | E72: Death, injury to people, damage to property | F72: b | I72: Transnet pipeline site specific inductions to be conducted, training, toolbox talks, emergency drills
B73: 66 | C73: Fire prevention | D73: Uncontrolled fires on site | E73: Death, injury to people, damage to property | F73: b | I73: No fires allowed on site, site rules, toolbox talks, no smoking on site unless in designated area, Use of cellphones in designated areas on site
B74: 67 | C74: Waste generation/disposal | D74: Unhygienic conditions, accumulation of waste | E74: space restrictions, legal contravention | G74: b | H74: b | I74: Responsible disposal at a registered landfill facility, prompt removal of waste off site, safe disposal certificates

Sheet IMS Risk Assessment Register
A1: IMS RISK ASSESSMENT REGISTER NAME RISK OWNER: TRANSNET PIPELINES CAPITAL PROJECTS TITLE OF RISK OWNER: TRN-IMS-GRP-REG 004.1
A2: Operatio+H21+A2:AC4+H21+A2:AC4 | B2: Business Unit | C2: Functional Area | D2: Operational Area/ Depot | E2: Sub Depot | F2: Work Area | G2: Main Process | H2: Activity / Service | I2: 1 = Routine/Normal 2 = Non-routine/Abnormal 3 = Emergency | J2: Hazard (Causes, Aspect,….) | K2: Category (S, SEC, H, E, RS, Q, CL, F, CM, RB, P, OP) | L2: Risk (Something occurs…) | M2: Impact (Leading to…) | N2: Is there an Opportunity for the identified risk/impact? | O2: Inherent Risk Assessment | T2: Existing Control (Mitigation) | U2: Residual Risk Assessment | AE2: Management Action (Recommended Additional Controls) | AF2: Responsible Person | AG2: Action Due Date | AH2: Action Status
O3: Frequency | P3: Probability | Q3: Consequence | R3: Inherent Risk Value | S3: Risk Classification | U3: Substitution | V3: Engineering Controls | W3: Administrative Controls | X3: Personal Protective Equipment | Y3: Control Effectiveness | Z3: Residual Risk Value | AA3: Control effectiveness Classification | AB3: Desired Control Effectiveness (DCE) | AC3: Risk Classification
U4: 30% | V4: 25% | W4: 20% | X4: 15%
A5: Transnet Pipelines | B5: Technical | C5: Project Management Office | D5: Operations | E5: N/A | F5: All | G5: Access control | H5: Entry points sign on (Access to site) | I5: 1 | J5: 1. Employee carrying the virus unknowingly or with mild symptoms 2. Spreading of virus via droplets- e.g. coughing / sneezing | K5: H | L5: Infected person Contaminating equipment surfaces causing infection to others plus high people volumes entering premises. | M5: 1. Illness/ health problems due to Covid -19 2. Loss of workforce due to illness 3. Loss of production ( time to disinfect approx. 12hrs -48hrs) 4. Project delays and financial costs | N5: Yes | O5: 7 | P5: 4 | Q5: 100 | R5: =O5*P5*Q5 -> 2800 | S5: =IF(R5<672,"LOW",IF(R5<979,"MEDIUM",IF(R5<1399,"HIGH",IF(R5<3501,"VERY HIGH",0)))) -> VERY HIGH | T5: Elimination 1. Substitution: 1. Work from home protocol 2. Restriction of access to high risk categories as defined Engineering Control: 1. Administrative Control: 1. Hand Sanitisers at strategic touch-points 2. Individual hand sanitizers for all employees 3. Awareness on hygiene e.g. hand washing with soap at least 20s, wiping common touch points 4 Reporting of illness to line manager or local health expert 5. Daily temperature scanning for all requiring access (37.5 degrees Celsius) 6. Employee and visitor daily declarations when entering premises 7. Entrance points demarcated to indicate standing points for Social distancing PPE: 1. Specified masks based on risk exposure 2. Gloves based on risk exposure 3. Goggles based on risk exposure | U5: Satisfactory | V5: None | W5: Satisfactory | X5: Satisfactory | Y5: =SUM('[1]Scores-protected'!A3:D3) -> 65.0% | Z5: =R5-(R5*Y5) -> 980 | AA5: =IF(Y5<10%,"None",IF(Y5<50%,"Unsatisfactory",IF(Y5<80%,"Requires Improvements",IF(Y5>79%,"Satisfactory",0)))) -> Requires Improvements | AB5: 90% | AC5: =IF(Z5<672,"LOW",IF(Z5<979,"MEDIUM",IF(Z5<1399,"HIGH",IF(Z5<3501,"VERY HIGH",0)))) -> HIGH | AE5: 1. Investigate ways to streamline the access to site process (temp scanning and declaration process) 2. Contractors to provide their Covid -19 risk assessments including mitigations prior to mobilisation to site 3. Contractors to provide their employees with necessary PPE 4. Use emergency gate for contractors to access 5. Consider having people temperature scanned as they exit the premises at the end of shift 6. Site re induction to be to conducted to all personnel | AF5: 1. Security /Operations 2. Project Managers 3. Project Managers & Contracts management 4. Depot managers 5. Depot managers 6. Depot managers / Site agent | AG5: 8/06/2020 | AH5: In Progress
A6: Transnet Pipelines | B6: Corporate Office | C6: Facilities | D6: Head Office | E6: N/A | F6: All | G6: Access control | H6: Entry points sign on (Access to site) | I6: 1 | J6: 1. Employee carrying the virus unknowingly or with mild symptoms 2. Spreading of virus via droplets- e.g. coughing / sneezing | K6: H | L6: Infected person Contaminating equipment surfaces causing infection to others plus high people volumes entering premises. | M6: 1. Illness/ health problems due to Covid -19 2. Loss of workforce due to illness 3. Loss of production ( time to disinfect approx. 12hrs -48hrs) 4. Project delays and financial costs | N6: Yes | O6: 7 | P6: 5 | Q6: 100 | R6: =O6*P6*Q6 -> 3500 | S6: =IF(R6<672,"LOW",IF(R6<979,"MEDIUM",IF(R6<1399,"HIGH",IF(R6<3501,"VERY HIGH",0)))) -> VERY HIGH | T6: Elimination 1. Substitution: 1. Work from home protocol 2. Restriction of access to high risk categories as defined Engineering Control: 1. Administrative Control: 1. Hand Sanitisers at strategic touch-points 2. Individual hand sanitizers for all employees 3. Awareness on hygiene e.g. hand washing with soap at least 20s, wiping common touch points 4 Reporting of illness to line manager or local health expert 5. Daily temperature scanning for all requiring access (37.5 degrees Celsius) 6. Employee and visitor daily declarations when entering premises 7. Entrance points demarcated to indicate standing points for Social distancing PPE: 1. Specified masks based on risk exposure 2. Gloves based on risk exposure 3. Goggles based on risk exposure | U6: Satisfactory | V6: None | W6: Satisfactory | X6: Satisfactory | Y6: =SUM('[1]Scores-protected'!A4:D4) -> 65.0% | Z6: =R6-(R6*Y6) -> 1225 | AA6: =IF(Y6<10%,"None",IF(Y6<50%,"Unsatisfactory",IF(Y6<80%,"Requires Improvements",IF(Y6>79%,"Satisfactory",0)))) -> Requires Improvements | AB6: 90% | AC6: =IF(Z6<672,"LOW",IF(Z6<979,"MEDIUM",IF(Z6<1399,"HIGH",IF(Z6<3501,"VERY HIGH",0)))) -> HIGH | AE6: 1. Investigate ways to streamline the access to site process (temp scanning and declaration process) 2. Contractors to provide their Covid -19 risk assessments including mitigations prior to mobilisation to site 3. Contractors to provide their employees with necessary PPE 4. Use emergency gate for contractors to access 5. Consider having people temperature scanned as they exit the premises at the end of shift 6. Site re induction to be to conducted to all personnel | AF6: 1. Security /Operations 2. Project Managers 3. Project Managers & Contracts management 4. Depot managers 5. Depot managers 6. Depot managers / Site agent | AG6: 8/06/2020 | AH6: In Progress
A7: Transnet Pipelines | B7: Technical | C7: Project Management Office | D7: Operations | E7: N/A | F7: All | G7: Access control | H7: Entry points sign on (Access to site) | I7: 1 | J7: 1. Contractors/Visitors carrying the virus unknowingly or with mild symptoms 2. Spreading of virus via droplets- e.g. coughing / sneezing | K7: H | L7: Infected person Contaminating equipment surfaces causing infection to others plus high people volumes entering premises. | M7: 1. Illness/ health problems due to Covid -19 2. Loss of workforce due to illness 3. Loss of production ( time to disinfect approx. 12hrs -48hrs) 4. Project delays and financial costs | N7: Yes | O7: 7 | P7: 5 | Q7: 100 | R7: =O7*P7*Q7 -> 3500 | S7: =IF(R7<672,"LOW",IF(R7<979,"MEDIUM",IF(R7<1399,"HIGH",IF(R7<3501,"VERY HIGH",0)))) -> VERY HIGH | T7: Elimination 1. Substitution: 1. 1. Work from home protocol 2. Restriction of access to high risk categories as defined Engineering Control: 1. Administrative Control: 1. Hand Sanitisers at strategic touch-points 2. Individual hand sanitizers for all employees 3. Awareness on hygiene e.g. hand washing with soap at least 20s, wiping common touch points 4. Reporting of illness to line manager or local health expert 5. Daily temperature scanning for all requiring access 6. Employee and visitor daily declarations when entering premises 7. Entrance points demarcated to indicate standing points for Social distancing PPE: 1. Specified masks based on risk exposure 2. Gloves based on risk exposure 3. Goggles based on risk exposure | U7: Satisfactory | V7: None | W7: Satisfactory | X7: Satisfactory | Y7: =SUM('[1]Scores-protected'!A5:D5) -> 65.0% | Z7: =R7-(R7*Y7) -> 1225 | AA7: =IF(Y7<10%,"None",IF(Y7<50%,"Unsatisfactory",IF(Y7<80%,"Requires Improvements",IF(Y7>79%,"Satisfactory",0)))) -> Requires Improvements | AB7: 90% | AC7: =IF(Z7<672,"LOW",IF(Z7<979,"MEDIUM",IF(Z7<1399,"HIGH",IF(Z7<3501,"VERY HIGH",0)))) -> HIGH | AE7: 1. Investigate ways to streamline the access to site process (temp scanning and declaration process) 2. Contractors to provide their Covid -19 risk assessments including mitigations prior to mobilisation to site 3. Contractors to provide their employees with necessary PPE 4. Use emergency gate for contractors to access 5. Consider having people temperature scanned as they exit the premises at the end of shift 6. Site re induction to be to conducted to all personnel | AF7: 1. Security /Operations 2. Project Managers 3. Project Managers & Contracts management 4. Depot managers 5. Depot managers 6. Depot managers / Site agent | AG7: 8/06/2020 | AH7: In Progress
A8: Transnet Pipelines | B8: Corporate Office | C8: Facilities | D8: Head Office | E8: N/A | F8: All | G8: Access control | H8: Entry points sign on | I8: 1 | J8: 1. Contractors/Visitors carrying the virus unknowingly or with mild symptoms 2. Spreading of virus via droplets- e.g. coughing / sneezing | K8: H | L8: Contamination of equipment surfaces causing infection to others | M8: 1. Illness/ health problems due to Covid -19 2. Loss of workforce due to illness 3. Loss of production ( time to disinfect approx. 12hrs -48hrs) 4. Project delays and financial costs | N8: Yes | O8: 5 | P8: 4 | Q8: 100 | R8: =O8*P8*Q8 -> 2000 | S8: =IF(R8<672,"LOW",IF(R8<979,"MEDIUM",IF(R8<1399,"HIGH",IF(R8<3501,"VERY HIGH",0)))) -> VERY HIGH | T8: Elimination 1. Substitution: 1. Work from home for non essential employees 2. Restriction of access to high risk categories as defined Engineering Control: 1. Administrative Control: 1. Hand Sanitisers at strategic touch-points 2. Individual hand sanitizers for all employees 3. Awareness on hygiene e.g. hand washing with soap at least 20s, wiping common touch points 4 Reporting of illness to line manager or local health expert 5. Daily temperature scanning for all requiring access (37.5 degrees Celsius) 6. Employee and visitor daily declarations when entering premises 7. Entrance points demarcated to indicate standing points for Social distancing PPE: 1. Specified masks based on risk exposure 2. Gloves based on risk exposure 3. Goggles based on risk exposure | U8: Satisfactory | V8: None | W8: Satisfactory | X8: Satisfactory | Y8: =SUM('[1]Scores-protected'!A6:D6) -> 65.0% | Z8: =R8-(R8*Y8) -> 700 | AA8: =IF(Y8<10%,"None",IF(Y8<50%,"Unsatisfactory",IF(Y8<80%,"Requires Improvements",IF(Y8>79%,"Satisfactory",0)))) -> Requires Improvements | AB8: 90% | AC8: =IF(Z8<672,"LOW",IF(Z8<979,"MEDIUM",IF(Z8<1399,"HIGH",IF(Z8<3501,"VERY HIGH",0)))) -> MEDIUM | AE8: 1. Investigate ways to streamline the access to site process (temp scanning and declaration process) 2. Contractors to provide their Covid -19 risk assessments including mitigations prior to mobilisation to site 3. Contractors to provide their employees with necessary PPE 4. Use emergency gate for contractors to access 5. Consider having people temperature scanned as they exit the premises at the end of shift 6. Site re induction to be to conducted to all personnel | AF8: 1. Security /Operations 2. Project Managers 3. Project Managers & Contracts management 4. Depot managers 5. Depot managers 6. Depot managers / Site agent | AG8: 8/06/2020 | AH8: In Progress
A9: Transnet Pipelines | B9: Technical | C9: Project Management Office | D9: Operations | E9: N/A | F9: All | G9: Access control | H9: Breathalysing of all people entering the facility | I9: 1 | J9: 1. Security guards breathalysing of employees not showing symptoms 2. Spreading of virus via droplets- e.g. coughing / sneezing/ while blowing - | K9: H | L9: Breathing into a breathalyser, touching the breathalyser mouth piece, nose and mouth with unwashed hands | M9: 1. Illness/ health problems due to contracting Covid -19 2. Loss of workforce due to illness 3. Business interruption 4. Project delays and cost impact | N9: No | O9: 7 | P9: 4 | Q9: 100 | R9: =O9*P9*Q9 -> 2800 | S9: =IF(R9<672,"LOW",IF(R9<979,"MEDIUM",IF(R9<1399,"HIGH",IF(R9<3501,"VERY HIGH",0)))) -> VERY HIGH | T9: Elimination 1. Substitution: 1. Engineering Control: 1. Straw-test breathalyser Administrative Control: 1. SOP on use of straw-test breathalyser 2. Awareness on hygiene 3. Reporting of illness to line manager or local health expert PPE: 1. Specified masks based on risk exposure and gloves for Security personnel | U9: Not Practicable | V9: Requires Improvement | W9: Satisfactory | X9: Satisfactory | Y9: =SUM('[1]Scores-protected'!A7:D7) -> 77.5% | Z9: =R9-(R9*Y9) -> 630 | AA9: =IF(Y9<10%,"None",IF(Y9<50%,"Unsatisfactory",IF(Y9<80%,"Requires Improvements",IF(Y9>79%,"Satisfactory",0)))) -> Requires Improvements | AB9: 90% | AC9: =IF(Z9<672,"LOW",IF(Z9<979,"MEDIUM",IF(Z9<1399,"HIGH",IF(Z9<3501,"VERY HIGH",0)))) -> LOW | AE9: 1. Provision of adequate straws for breathalyser to be ensured. 2. Site re induction to be to conducted to all personnel | AF9: 1. Depot Managers 2. Depot managers / Site agent | AG9: 2020-06-08
A10: Transnet Pipelines | B10: Corporate Office | C10: Facilities | D10: Head Office | E10: N/A | F10: All | G10: Access control | H10: Breathalysing of all people entering the facility | I10: 1 | J10: 1. Security guards breathalysing of employees not showing symptoms 2. Spreading of virus via droplets- e.g. coughing / sneezing/ while blowing - - | K10: H | L10: Breathing into a breathalyser, touching the breathalyser mouth piece, nose and mouth with unwashed hands | M10: 1. Illness/ health problems due to contracting Covid -19 2. Loss of workforce due to illness 3. Business interruption 4. Project delays and cost impact | N10: No | O10: 7 | P10: 4 | Q10: 100 | R10: =O10*P10*Q10 -> 2800 | S10: =IF(R10<672,"LOW",IF(R10<979,"MEDIUM",IF(R10<1399,"HIGH",IF(R10<3501,"VERY HIGH",0)))) -> VERY HIGH | T10: Elimination 1. Substitution: 1. Engineering Control: 1. Straw-test breathalyser Administrative Control: 1. SOP on use of straw-test breathalyser 2. Awareness on hygiene 3. Reporting of illness to line manager or local health expert PPE: 1. Specified masks based on risk exposure and gloves for Security personnel | U10: Not Practicable | V10: Requires Improvement | W10: Satisfactory | X10: Satisfactory | Y10: =SUM('[1]Scores-protected'!A8:D8) -> 77.5% | Z10: =R10-(R10*Y10) -> 630 | AA10: =IF(Y10<10%,"None",IF(Y10<50%,"Unsatisfactory",IF(Y10<80%,"Requires Improvements",IF(Y10>79%,"Satisfactory",0)))) -> Requires Improvements | AB10: 90% | AC10: =IF(Z10<672,"LOW",IF(Z10<979,"MEDIUM",IF(Z10<1399,"HIGH",IF(Z10<3501,"VERY HIGH",0)))) -> LOW | AE10: 1. Provision of adequate straws for breathalyser to be ensured. 2. Site re induction to be to conducted to all personnel | AF10: Depot Managers Depot managers / Site agent | AG10: 2020-06-08
A11: Transnet Pipelines | B11: Technical | C11: Project Management Office | D11: Operations | E11: N/A | F11: All | G11: Construction activities | H11: Performing construction activities by Employees over 60 years or employees with chronic conditions in the workplace | I11: 1 | J11: Exposure to Covid-19 | K11: H | L11: Employees over 60 or with underlying conditions contracting the virus | M11: 1. Illness/ health problems due to Covid -19 2. Loss of workforce due to illness 3. Loss of production ( time to disinfect approx. 12hrs -48hrs) 4. Project delays and financial costs | N11: No | O11: 6 | P11: 3 | Q11: 100 | R11: =O11*P11*Q11 -> 1800 | S11: =IF(R11<672,"LOW",IF(R11<979,"MEDIUM",IF(R11<1399,"HIGH",IF(R11<3501,"VERY HIGH",0)))) -> VERY HIGH | T11: Elimination 1. Substitution: 1. Work from Home protocol 2. Delegate work to other personnel and give guidance remotely Engineering Control: 1. Administrative Control: 1. 1. Medical surveillance program 2. Awareness sessions 3. Clearance by Transnet Occupational health for TPL employees over 60 and with chronic conditions PPE: 1. Use of risk-based PPE 2. Face masks for use in public areas | U11: Requires Improvement | V11: None | W11: Satisfactory | X11: Satisfactory | Y11: =SUM('[1]Scores-protected'!A9:D9) -> 50.0% | Z11: =R11-(R11*Y11) -> 900 | AA11: =IF(Y11<10%,"None",IF(Y11<50%,"Unsatisfactory",IF(Y11<80%,"Requires Improvements",IF(Y11>79%,"Satisfactory",0)))) -> Requires Improvements | AB11: 90% | AC11: =IF(Z11<672,"LOW",IF(Z11<979,"MEDIUM",IF(Z11<1399,"HIGH",IF(Z11<3501,"VERY HIGH",0)))) -> MEDIUM | AE11: 1. Contractors to put measures in place for their employees safe return to work | AF11: 1. Project Managers | AG11: 2020-06-08
A12: Transnet Pipelines | B12: Corporate Office | C12: Facilities | D12: Head Office | E12: N/A | F12: All | G12: Employees at the work place | H12: Employees over 60years or with chronic conditions in the workplace | I12: 1 | J12: Exposure to Covid-19 | K12: H | L12: Employees over 60 or with underlying conditions contracting the virus | M12: 1. Illness/ health problems due to Covid -19 2. Loss of workforce due to illness 3. Loss of production ( time to disinfect approx. 12hrs -48hrs) 4. Project delays and financial costs | N12: No | O12: 6 | P12: 3 | Q12: 100 | R12: =O12*P12*Q12 -> 1800 | S12: =IF(R12<672,"LOW",IF(R12<979,"MEDIUM",IF(R12<1399,"HIGH",IF(R12<3501,"VERY HIGH",0)))) -> VERY HIGH | T12: Substitution: 1. Work from Home protocol 2. Delegate work to other personnel and give guidance remotely Engineering Control: 1. Administrative Control: 1. 1. Medical surveillance program 2. Awareness sessions 3. Clearance by Transnet Occupational health for TPL employees over 60 and with chronic conditions PPE: 1. Use of risk-based PPE | U12: Requires Improvement | V12: None | W12: Satisfactory | X12: Satisfactory | Y12: =SUM('[1]Scores-protected'!A10:D10) -> 50.0% | Z12: =R12-(R12*Y12) -> 900 | AA12: =IF(Y12<10%,"None",IF(Y12<50%,"Unsatisfactory",IF(Y12<80%,"Requires Improvements",IF(Y12>79%,"Satisfactory",0)))) -> Requires Improvements | AB12: 90% | AC12: =IF(Z12<672,"LOW",IF(Z12<979,"MEDIUM",IF(Z12<1399,"HIGH",IF(Z12<3501,"VERY HIGH",0)))) -> MEDIUM | AE12: Contractors to provide their Covid -19 risk assessments including mitigations prior to mobilisation to site | AF12: 1. Project Managers | AG12: 2020-06-08
A13: Transnet Pipelines | B13: Technical | C13: Project Management Office | D13: Operations | E13: N/A | F13: All | G13: Employees at the work place | H13: Employees not showing signs of corona virus in workplace | I13: 3 | J13: Employees carrying the virus unknowingly (Asymptomatic) | K13: H | L13: Infecting healthy employees with the virus causing them to become ill | M13: 1. Illness/ health problems due to Covid -19 2. Loss of workforce due to illness 3. Loss of production ( time to disinfect approx. 12hrs -48hrs) 4. Project delays and financial costs | N13: No | O13: 6 | P13: 3 | Q13: 100 | R13: =O13*P13*Q13 -> 1800 | S13: =IF(R13<672,"LOW",IF(R13<979,"MEDIUM",IF(R13<1399,"HIGH",IF(R13<3501,"VERY HIGH",0)))) -> VERY HIGH | T13: Substitution: 1. Work from Home protocol where practical Engineering Control: 1. Administrative Control: 1. 1. Medical surveillance program 2. Awareness sessions 3. Clearance by Transnet Occupational health for TPL employees over 60 and with chronic conditions 4. Personnel's responsibility to report when unwell 5. Physical distancing of personnel of 1.5m (office and field) PPE: 1. Use of risk-based PPE 2. Wearing of Cloth masks whilst at work and in public areas | U13: Satisfactory | V13: None | W13: Requires Improvement | X13: Satisfactory | Y13: =SUM('[1]Scores-protected'!A11:D11) -> 55.0% | Z13: =R13-(R13*Y13) -> 810 | AA13: =IF(Y13<10%,"None",IF(Y13<50%,"Unsatisfactory",IF(Y13<80%,"Requires Improvements",IF(Y13>79%,"Satisfactory",0)))) -> Requires Improvements | AB13: 90% | AC13: =IF(Z13<672,"LOW",IF(Z13<979,"MEDIUM",IF(Z13<1399,"HIGH",IF(Z13<3501,"VERY HIGH",0)))) -> MEDIUM | AE13: Contractors to provide their Covid -19 risk assessments including mitigations prior to mobilisation to site | AF13: Project Manager | AG13: 2020-06-08
A14: Transnet Pipelines | B14: Corporate Office | C14: Facilities | D14: Head Office | E14: N/A | F14: All | G14: Employees at the work place | H14: Employees not showing signs of corona virus | I14: 3 | J14: Employees carrying the virus unknowingly | K14: H | L14: Infecting healthy employees with the virus causing them to become ill | M14: 1. Illness/ health problems due to Covid -19 2. Loss of workforce due to illness 3. Loss of production ( time to disinfect approx. 12hrs -48hrs) 4. Project delays and financial costs | N14: No | O14: 6 | P14: 4 | Q14: 100 | R14: =O14*P14*Q14 -> 2400 | S14: =IF(R14<672,"LOW",IF(R14<979,"MEDIUM",IF(R14<1399,"HIGH",IF(R14<3501,"VERY HIGH",0)))) -> VERY HIGH | T14: Elimination 1. Substitution: 1. Work from Home protocol where practical Engineering Control: 1. Administrative Control: 1. 1. Medical surveillance program 2. Awareness sessions 3. Daily personnel health monitoring / visual screening 4. Personnel's responsibility to report when unwell 5. Physical distancing of personnel at lest 1.5m (office and field) PPE: 1. Use of risk-based PPE 2. Wearing of Cloth masks whilst at work and in public areas | U14: Satisfactory | V14: None | W14: Satisfactory | X14: Satisfactory | Y14: =SUM('[1]Scores-protected'!A12:D12) -> 65.0% | Z14: =R14-(R14*Y14) -> 840 | AA14: =IF(Y14<10%,"None",IF(Y14<50%,"Unsatisfactory",IF(Y14<80%,"Requires Improvements",IF(Y14>79%,"Satisfactory",0)))) -> Requires Improvements | AB14: 90% | AC14: =IF(Z14<672,"LOW",IF(Z14<979,"MEDIUM",IF(Z14<1399,"HIGH",IF(Z14<3501,"VERY HIGH",0)))) -> MEDIUM | AE14: Contractors to provide their Covid -19 risk assessments including mitigations prior to mobilisation to site | AF14: Project Manager | AG14: 2020-06-08
A15: Transnet Pipelines | B15: Technical | C15: Project Management Office | D15: Operations | E15: N/A | F15: All | G15: Equipment Use / sharing during construction activities | H15: Construction activities | I15: 1 | J15: Sharing of tools | K15: H | L15: Cross contamination from asymptomatic infected employee | M15: 1. Illness/ health problems due to Covid -19 2. Loss of workforce due to illness 3. Loss of production ( time to disinfect approx. 12hrs -48hrs) 4. Project delays and financial costs | N15: No | O15: 7 | P15: 5 | Q15: 100 | R15: =O15*P15*Q15 -> 3500 | S15: =IF(R15<672,"LOW",IF(R15<979,"MEDIUM",IF(R15<1399,"HIGH",IF(R15<3501,"VERY HIGH",0)))) -> VERY HIGH | T15: Elimination 1. Substitution: 1. Engineering Control: 1. Administrative Control: 1. Sanitization of equipment before issue and return to stores 2. Awareness drives 3. Awareness on hygiene e.g. hand washing with soap at least 20s, wiping common touch points PPE: 1. Wearing of appropriate PPE such as gloves 2. Face masks | U15: None | V15: Not Practicable | W15: Satisfactory | X15: Satisfactory | Y15: =SUM('[1]Scores-protected'!A13:D13) -> 60.0% | Z15: =R15-(R15*Y15) -> 1400 | AA15: =IF(Y15<10%,"None",IF(Y15<50%,"Unsatisfactory",IF(Y15<80%,"Requires Improvements",IF(Y15>79%,"Satisfactory",0)))) -> Requires Improvements | AB15: 90% | AC15: =IF(Z15<672,"LOW",IF(Z15<979,"MEDIUM",IF(Z15<1399,"HIGH",IF(Z15<3501,"VERY HIGH",0)))) -> VERY HIGH | AE15: Contractors to provide their Covid -19 risk assessments including mitigations prior to mobilisation to site | AF15: Project Manager | AG15: 2020-06-08
A16: Transnet Pipelines | B16: Technical | C16: Project Management Office | D16: Operations | E16: N/A | F16: All | G16: Shared vehicles | H16: Use of shared vehicles for business purposes | I16: 1 | J16: Sharing of vehicles | K16: H | L16: Cross contamination from asymptomatic infected employee | M16: 1. Illness/ health problems due to Covid -19 2. Loss of workforce due to illness 3. Loss of production ( time to disinfect approx. 12hrs -48hrs) 4. Project delays and financial costs | N16: No | O16: 6 | P16: 4 | Q16: 100 | R16: =O16*P16*Q16 -> 2400 | S16: =IF(R16<672,"LOW",IF(R16<979,"MEDIUM",IF(R16<1399,"HIGH",IF(R16<3501,"VERY HIGH",0)))) -> VERY HIGH | T16: Elimination 1. Substitution: 1. Engineering Control: 1. Administrative Control: 1. Use of sanitization equipment 2. Awareness drives 3. Wet wipes to clean common touch points PPE: 1. Face masks | U16: None | V16: Not Practicable | W16: Satisfactory | X16: Satisfactory | Y16: =SUM('[1]Scores-protected'!A14:D14) -> 60.0% | Z16: =R16-(R16*Y16) -> 960 | AA16: =IF(Y16<10%,"None",IF(Y16<50%,"Unsatisfactory",IF(Y16<80%,"Requires Improvements",IF(Y16>79%,"Satisfactory",0)))) -> Requires Improvements | AB16: 90% | AC16: =IF(Z16<672,"LOW",IF(Z16<979,"MEDIUM",IF(Z16<1399,"HIGH",IF(Z16<3501,"VERY HIGH",0)))) -> MEDIUM | AE16: Contractors to provide their Covid -19 risk assessments including mitigations prior to mobilisation to site | AF16: Project Manager | AG16: 2020-06-08
A17: Transnet Pipelines | B17: Technical | C17: Project Management Office | D17: Operations | E17: N/A | F17: All | G17: Transport to and from work | H17: Use public transport or transportation of employees | I17: 1 | J17: Enclosed environment and public space | K17: H | L17: Spreading of virus via droplets e.g. coughing or sneezing | M17: 1. Illness/ health problems due to Covid -19 2. Loss of workforce due to illness 3. Loss of production ( time to disinfect approx. 12hrs -48hrs) 4. Project delays and financial costs | N17: No | O17: 6 | P17: 4 | Q17: 100 | R17: =O17*P17*Q17 -> 2400 | S17: =IF(R17<672,"LOW",IF(R17<979,"MEDIUM",IF(R17<1399,"HIGH",IF(R17<3501,"VERY HIGH",0)))) -> VERY HIGH | T17: Elimination 1. Substitution: 1. Engineering Control: 1. Administrative Control: 1. Comply to regulations regarding transportation and vehicle occupancy capacity 2. Awareness drives 3. Sitting arrangement in cars and other vehicles to be optimised PPE: 1. Cloth masks to be worn whilst at work and in public areas | U17: Not Practicable | V17: None | W17: Satisfactory | X17: Satisfactory | Y17: =SUM('[1]Scores-protected'!A15:D15) -> 65.0% | Z17: =R17-(R17*Y17) -> 840 | AA17: =IF(Y17<10%,"None",IF(Y17<50%,"Unsatisfactory",IF(Y17<80%,"Requires Improvements",IF(Y17>79%,"Satisfactory",0)))) -> Requires Improvements | AB17: 90% | AC17: =IF(Z17<672,"LOW",IF(Z17<979,"MEDIUM",IF(Z17<1399,"HIGH",IF(Z17<3501,"VERY HIGH",0)))) -> MEDIUM | AE17: Contractors to provide their Covid -19 risk assessments including mitigations prior to mobilisation to site | AF17: Project Manager | AG17: 2020-06-08
A18: Transnet Pipelines | B18: Technical | C18: Project Management Office | D18: Projects | E18: N/A | F18: All | G18: Travelling | H18: Travelling for business purposes | I18: 1 | J18: Making use of public transport and public accommodation (Enclosed environment ) | K18: H | L18: Exposure to an infected person during travelling or staying at a pubic place .Spreading of virus via droplets e.g. coughing or sneezing | M18: 1. Illness/ health problems due to Covid -19 2. Loss of workforce due to illness 3. Loss of production ( time to disinfect approx. 12hrs -48hrs) 4. Project delays and financial costs | N18: No | O18: 5 | P18: 4 | Q18: 100 | R18: =O18*P18*Q18 -> 2000 | S18: =IF(R18<672,"LOW",IF(R18<979,"MEDIUM",IF(R18<1399,"HIGH",IF(R18<3501,"VERY HIGH",0)))) -> VERY HIGH | T18: Elimination 1. Substitution: 1. Work from home or from office 2. Utilise virtual meetings such as MS Teams Engineering Control: 1. Administrative Control: 1. Use of sanitization equipment (Personal hygiene) 2. Awareness drives 3. Approval process for business travelling and accommodation (Only critical travelling to be approved) PPE: 1. Cloth masks to be worn whilst at work and in public areas | U18: Requires Improvement | V18: None | W18: Satisfactory | X18: Satisfactory | Y18: =SUM('[1]Scores-protected'!A16:D16) -> 50.0% | Z18: =R18-(R18*Y18) -> 1000 | AA18: =IF(Y18<10%,"None",IF(Y18<50%,"Unsatisfactory",IF(Y18<80%,"Requires Improvements",IF(Y18>79%,"Satisfactory",0)))) -> Requires Improvements | AB18: 90% | AC18: =IF(Z18<672,"LOW",IF(Z18<979,"MEDIUM",IF(Z18<1399,"HIGH",IF(Z18<3501,"VERY HIGH",0)))) -> HIGH
A19: Transnet Pipelines | B19: Technical | C19: Project Management Office | D19: Operations | E19: N/A | F19: All | G19: Meetings | H19: Boardroom- and office-based meetings | I19: 1 | J19: Not observing social distancing 1,5m protocol Overcrowding in an enclosed space | K19: H | L19: Infecting healthy employees with the virus causing them to become ill | M19: 1. Illness/ health problems due to Covid -19 2. Loss of workforce due to illness 3. Loss of production ( time to disinfect approx. 12hrs -48hrs) 4. Project delays and financial costs | N19: No | O19: 6 | P19: 4 | Q19: 100 | R19: =O19*P19*Q19 -> 2400 | S19: =IF(R19<672,"LOW",IF(R19<979,"MEDIUM",IF(R19<1399,"HIGH",IF(R19<3501,"VERY HIGH",0)))) -> VERY HIGH | T19: Elimination 1. Substitution: 1. Use of virtual media for holding meetings Engineering Control: 1. ICT Infrastructure Administrative Control: 1. Physical distancing protocols of at least 1.5m 2. Awareness drives 3. Hand sanitising on entering meeting room PPE: 1. Use of risk-based PPE 2. Wearing of Cloth masks whilst at work and in public areas | U19: Satisfactory | V19: Requires Improvement | W19: Requires Improvement | X19: Satisfactory | Y19: =SUM('[1]Scores-protected'!A17:D17) -> 67.5% | Z19: =R19-(R19*Y19) -> 780 | AA19: =IF(Y19<10%,"None",IF(Y19<50%,"Unsatisfactory",IF(Y19<80%,"Requires Improvements",IF(Y19>79%,"Satisfactory",0)))) -> Requires Improvements | AB19: 90% | AC19: =IF(Z19<672,"LOW",IF(Z19<979,"MEDIUM",IF(Z19<1399,"HIGH",IF(Z19<3501,"VERY HIGH",0)))) -> MEDIUM | AE19: 1. Minimise number of meeting participants as far as reasonably practical. 2. Provision of lunch during meetings discouraged. | AF19: 1. Project Managers 2. Project Managers | AG19: 2020-06-08
A20: Transnet Pipelines | B20: Technical | C20: Project Management Office | D20: Operations | E20: N/A | F20: All | G20: Meetings | H20: Boardroom-or office-based meetings and site meetings | I20: 1 | J20: 1. Not observing social distancing 1,5m protocol 2. Overcrowding in an enclosed space | K20: H | L20: Infecting healthy employees with the virus causing them to become ill | M20: 1. Illness/ health problems due to Covid -19 2. Loss of workforce due to illness 3. Loss of production ( time to disinfect approx. 12hrs -48hrs) 4. Project delays and financial costs | N20: No | O20: 7 | P20: 4 | Q20: 100 | R20: =O20*P20*Q20 -> 2800 | S20: =IF(R20<672,"LOW",IF(R20<979,"MEDIUM",IF(R20<1399,"HIGH",IF(R20<3501,"VERY HIGH",0)))) -> VERY HIGH | T20: Elimination 1. Substitution: 1. Use of virtual platforms for holding meetings Engineering Control: 1. ICT Infrastructure Administrative Control: 1. 1. Physical distancing protocols of at least 1.5m 2. Awareness drives 3. Hand sanitising on entering meeting room PPE: 1. Use of risk-based PPE 2. Wearing of Cloth masks whilst at work and in public areas | U20: Satisfactory | V20: Requires Improvement | W20: Requires Improvement | X20: Satisfactory | Y20: =SUM('[1]Scores-protected'!A18:D18) -> 67.5% | Z20: =R20-(R20*Y20) -> 910 | AA20: =IF(Y20<10%,"None",IF(Y20<50%,"Unsatisfactory",IF(Y20<80%,"Requires Improvements",IF(Y20>79%,"Satisfactory",0)))) -> Requires Improvements | AB20: 90% | AC20: =IF(Z20<672,"LOW",IF(Z20<979,"MEDIUM",IF(Z20<1399,"HIGH",IF(Z20<3501,"VERY HIGH",0)))) -> MEDIUM | AE20: Minimise number of meeting participants as far as reasonably practical. | AF20: Project Managers | AG20: 2020-06-01
A21: Transnet Pipelines | B21: Technical | C21: Project Management Office | D21: Operations | E21: N/A | F21: All | G21: Shared facilities and high frequent areas (eating facilities, kitchens, washrooms, smoking areas) | H21: Refreshments or breaking areas | I21: 1 | J21: Not observing social distancing 1,5m protocol Social interaction during breaks | K21: H | L21: Infecting healthy employees with the virus causing them to become ill | M21: 1. Illness/ health problems due to Covid -19 2. Loss of workforce due to illness 3. Loss of production ( time to disinfect approx. 12hrs -48hrs) 4. Project delays and financial costs | N21: No | O21: 7 | P21: 4 | Q21: 100 | R21: =O21*P21*Q21 -> 2800 | S21: =IF(R21<672,"LOW",IF(R21<979,"MEDIUM",IF(R21<1399,"HIGH",IF(R21<3501,"VERY HIGH",0)))) -> VERY HIGH | T21: Elimination 1. Substitution: 1. Engineering Control: 1. Administrative Control: 1. Physical distancing protocols of 1.5m to be observed 2. Awareness drives 3. Assemblies to be done in smaller groups 4. Awareness on hygiene e.g. hand washing with soap at least 20s, wiping common touch points 5. No selling of cigarettes or sharing of a cigarette allowed. 6. Enhance the cleaning regimes for communal areas PPE: 1. Use of risk-based PPE | U21: Not Practicable | V21: None | W21: Requires Improvement | X21: Satisfactory | Y21: =SUM('[1]Scores-protected'!A19:D19) -> 55.0% | Z21: =R21-(R21*Y21) -> 1260 | AA21: =IF(Y21<10%,"None",IF(Y21<50%,"Unsatisfactory",IF(Y21<80%,"Requires Improvements",IF(Y21>79%,"Satisfactory",0)))) -> Requires Improvements | AB21: 90% | AC21: =IF(Z21<672,"LOW",IF(Z21<979,"MEDIUM",IF(Z21<1399,"HIGH",IF(Z21<3501,"VERY HIGH",0)))) -> HIGH | AE21: 1. Contractors to provide their Covid -19 risk assessments including mitigations prior to mobilisation to site 2. Contractors to utilise their communual facilities supplied by the contractor | AF21: Project Manager | AG21: 2020-06-08
A22: Transnet Pipelines | B22: Technical | C22: Project Management Office | D22: Operations | E22: N/A | F22: All | G22: All process | H22: All activities | I22: 2 | J22: Employees infected with the COVID19 virus | K22: H | L22: Spreading of the virus via droplets e.g. coughing / sneezing | M22: 1. Illness/ health problems due to Covid -19 2. Loss of workforce due to illness 3. Loss of production ( time to disinfect approx. 12hrs -48hrs) 4. Project delays and financial costs 5. Possible CEs when site closes | N22: No | O22: 7 | P22: 4 | Q22: 100 | R22: =O22*P22*Q22 -> 2800 | S22: =IF(R22<672,"LOW",IF(R22<979,"MEDIUM",IF(R22<1399,"HIGH",IF(R22<3501,"VERY HIGH",0)))) -> VERY HIGH | T22: Elimination 1. Substitution: 1. Engineering Control: 1. I Administrative Control: 1. Transnet Employee Assistance Program 2. Physical distancing protocols of at least 1.5m 3. Awareness on good personal hygiene 4. Management of infections to follow national official regulations and directives. PPE: 1. Wearing of Cloth masks whilst at work and in public areas | U22: None | V22: Not Practicable | W22: Satisfactory | X22: Satisfactory | Y22: =SUM('[1]Scores-protected'!A20:D20) -> 60.0% | Z22: =R22-(R22*Y22) -> 1120 | AA22: =IF(Y22<10%,"None",IF(Y22<50%,"Unsatisfactory",IF(Y22<80%,"Requires Improvements",IF(Y22>79%,"Satisfactory",0)))) -> Requires Improvements | AB22: 90% | AC22: =IF(Z22<672,"LOW",IF(Z22<979,"MEDIUM",IF(Z22<1399,"HIGH",IF(Z22<3501,"VERY HIGH",0)))) -> HIGH | AE22: 1. Contractors to provide their Covid -19 risk assessments including mitigations prior to mobilisation to site 2. Employees to be encouraged to check themselves for Covid-19 symptoms and notify their line manager and consult with their Healthcare provider if they feel sick 3. Contractor to have a notification process in the event of an infection and must inform TPL of such 4. Limit visitors to the control rooms 5 Contractors to carry their own cost in the event of site closure related to Covid-19 . | AF22: 1. Project Manager 2. TPL Communications/ Project Managers 3.Project Manager 4. Depot managers 5. Contracts Management and Project Managers | AG22: 2020-06-08
A23: Transnet Pipelines | B23: Technical | C23: Project Management Office | D23: Supply Chain Management | E23: N/A | F23: All | G23: Interaction with Vendors, Suppliers and Service providers | H23: All project related activities with suppliers, service providers and vendors | I23: 2 | J23: Lack of Covid-19 awareness and preparedness at their facilities | K23: H | L23: Employees infected with the COVID19 virus whilst interacting with suppliers, vendors and service providers | M23: 1. Illness/ health problems due to Covid -19 2. Loss of workforce due to illness 3. Loss of production ( time to disinfect approx. 12hrs -48hrs) 4. Project delays and financial costs | N23: No | O23: 4 | P23: 4 | Q23: 100 | R23: =O23*P23*Q23 -> 1600 | S23: =IF(R23<672,"LOW",IF(R23<979,"MEDIUM",IF(R23<1399,"HIGH",IF(R23<3501,"VERY HIGH",0)))) -> VERY HIGH | T23: Elimination 1. Substitution: 1. Engineering Control: 1. I Administrative Control: 1. Physical distancing protocols PPE: 1. Wearing of Cloth masks whilst at work and in public areas 2. Wearing appropriate PPE | U23: None | V23: None | W23: Satisfactory | X23: Satisfactory | Y23: =SUM('[1]Scores-protected'!A21:D21) -> 35.0% | Z23: =R23-(R23*Y23) -> 1040 | AA23: =IF(Y23<10%,"None",IF(Y23<50%,"Unsatisfactory",IF(Y23<80%,"Requires Improvements",IF(Y23>79%,"Satisfactory",0)))) -> Unsatisfactory | AB23: 90% | AC23: =IF(Z23<672,"LOW",IF(Z23<979,"MEDIUM",IF(Z23<1399,"HIGH",IF(Z23<3501,"VERY HIGH",0)))) -> HIGH | AE23: Vendors , suppliers and service providers to inform Transnet pipelines of their preparedness before visits are arranged. (e.g. Covid-19 compliance procedure) | AF23: Project Managers | AG23: 2020-06-08
A24: Transnet Pipelines | B24: Technical | C24: Project Management Office | D24: Operations | E24: N/A | F24: All | G24: Management of Service providers and contractors | H24: All activities | I24: 2 | J24: Lack of management and control of contractors and employees | K24: H | L24: Non compliance to the prevention measures on project resulting in spreading of the virus | M24: 1. Illness/ health problems due to Covid -19 2. Loss of workforce due to illness 3. Loss of production ( time to disinfect approx. 12hrs -48hrs) 4. Project delays and financial costs | N24: No | O24: 7 | P24: 4 | Q24: 100 | R24: =O24*P24*Q24 -> 2800 | S24: =IF(R24<672,"LOW",IF(R24<979,"MEDIUM",IF(R24<1399,"HIGH",IF(R24<3501,"VERY HIGH",0)))) -> VERY HIGH | T24: Elimination 1. Substitution: 1. SHE personnel on site Engineering Control: 1. Administrative Control: 1. Contractors to submit their Covid 19 risk assessments including mitigations before getting back to site. 2. Manual attendance registers to be kept PPE: 1. PPE compliance | U24: Satisfactory | V24: Not Practicable | W24: Requires Improvement | X24: None | Y24: =SUM('[1]Scores-protected'!A22:D22) -> 65.0% | Z24: =R24-(R24*Y24) -> 980 | AA24: =IF(Y24<10%,"None",IF(Y24<50%,"Unsatisfactory",IF(Y24<80%,"Requires Improvements",IF(Y24>79%,"Satisfactory",0)))) -> Requires Improvements | AB24: 90% | AC24: =IF(Z24<672,"LOW",IF(Z24<979,"MEDIUM",IF(Z24<1399,"HIGH",IF(Z24<3501,"VERY HIGH",0)))) -> HIGH | AE24: 1. Ensure communication of Covid-19 information, regulations, guidelines and directives to the teams 2. Audits of the prevention measures against the regulations and risk assessments to be done on a monthly basis by the TPL Contractors to perform self assessments weekly 3. Contractors to provide control documents such as checklist for critical interventions 4. Contractors to disclose Covid 19 incidences which happen to Transnet contracted employees outside Transnet premises. | AF24: 1 . Project Manager 2. SHE team 3. Project Managers 4. Project Managers | AG24: 2020-06-08
A25: Transnet Pipelines | B25: Technical | C25: Technical | D25: Head Office | E25: N/A | F25: All | G25: Procurement Process | H25: Tender evaluation | I25: 1 | J25: Tender files / documents coming from all over | K25: H | L25: Exposure of employees during SHE file evaluation | M25: 1. Illness/ health problems due to contracting Covid -19 2. Loss of workforce due to illness | N25: Yes | O25: 4 | P25: 3 | Q25: 100 | R25: =O25*P25*Q25 -> 1200 | S25: =IF(R25<672,"LOW",IF(R25<979,"MEDIUM",IF(R25<1399,"HIGH",IF(R25<3501,"VERY HIGH",0)))) -> HIGH | T25: Elimination 1. Substitution: 1. Engineering Control: 1. Administrative Control: 1. Physical distancing protocols of 1.5m to be observed 2. Awareness drives 3. Sanitise hands regularly during the review process PPE: 1. Use of risk-based PPE 2. Wearing of Cloth masks whilst at evaluating | U25: None | V25: Not Practicable | W25: Requires Improvement | X25: Satisfactory | Y25: =SUM('[1]Scores-protected'!A23:D23) -> 50.0% | Z25: =R25-(R25*Y25) -> 600 | AA25: =IF(Y25<10%,"None",IF(Y25<50%,"Unsatisfactory",IF(Y25<80%,"Requires Improvements",IF(Y25>79%,"Satisfactory",0)))) -> Requires Improvements | AB25: 90% | AC25: =IF(Z25<672,"LOW",IF(Z25<979,"MEDIUM",IF(Z25<1399,"HIGH",IF(Z25<3501,"VERY HIGH",0)))) -> LOW | AE25: Consider electronic review of the tender documents instead of the hard copies | AF25: Procurement | AG25: 2020-06-08
AE26: Annexures: 1. Daily visitor declaration forms 2. 3.
R66: =O66*P66*Q66 -> 0 | S66: =IF(R66<672,"LOW",IF(R66<979,"MEDIUM",IF(R66<1399,"HIGH",IF(R66<3501,"VERY HIGH",0)))) -> LOW | T66: Elimination 1. Substitution: 1. Engineering Control: 1. Administrative Control: 1. PPE: 1. | Y66: =SUM('[1]Scores-protected'!A80:D80) -> 0.0% | Z66: =R66-(R66*Y66) -> 0 | AA66: =IF(Y66<10%,"None",IF(Y66<50%,"Unsatisfactory",IF(Y66<80%,"Requires Improvements",IF(Y66>79%,"Satisfactory",0)))) -> None | AB66: 90% | AC66: =IF(Z66<672,"LOW",IF(Z66<979,"MEDIUM",IF(Z66<1399,"HIGH",IF(Z66<3501,"VERY HIGH",0)))) -> LOW
R67: =O67*P67*Q67 -> 0 | S67: =IF(R67<672,"LOW",IF(R67<979,"MEDIUM",IF(R67<1399,"HIGH",IF(R67<3501,"VERY HIGH",0)))) -> LOW | T67: Elimination 1. Substitution: 1. Engineering Control: 1. Administrative Control: 1. PPE: 1. | Y67: =SUM('[1]Scores-protected'!A81:D81) -> 0.0% | Z67: =R67-(R67*Y67) -> 0 | AA67: =IF(Y67<10%,"None",IF(Y67<50%,"Unsatisfactory",IF(Y67<80%,"Requires Improvements",IF(Y67>79%,"Satisfactory",0)))) -> None | AB67: 90% | AC67: =IF(Z67<672,"LOW",IF(Z67<979,"MEDIUM",IF(Z67<1399,"HIGH",IF(Z67<3501,"VERY HIGH",0)))) -> LOW
R68: =O68*P68*Q68 -> 0 | S68: =IF(R68<672,"LOW",IF(R68<979,"MEDIUM",IF(R68<1399,"HIGH",IF(R68<3501,"VERY HIGH",0)))) -> LOW | T68: Elimination 1. Substitution: 1. Engineering Control: 1. Administrative Control: 1. PPE: 1. | Y68: =SUM('[1]Scores-protected'!A82:D82) -> 0.0% | Z68: =R68-(R68*Y68) -> 0 | AA68: =IF(Y68<10%,"None",IF(Y68<50%,"Unsatisfactory",IF(Y68<80%,"Requires Improvements",IF(Y68>79%,"Satisfactory",0)))) -> None | AB68: 90% | AC68: =IF(Z68<672,"LOW",IF(Z68<979,"MEDIUM",IF(Z68<1399,"HIGH",IF(Z68<3501,"VERY HIGH",0)))) -> LOW
R69: =O69*P69*Q69 -> 0 | S69: =IF(R69<672,"LOW",IF(R69<979,"MEDIUM",IF(R69<1399,"HIGH",IF(R69<3501,"VERY HIGH",0)))) -> LOW | T69: Elimination 1. Substitution: 1. Engineering Control: 1. Administrative Control: 1. PPE: 1. | Y69: =SUM('[1]Scores-protected'!A83:D83) -> 0.0% | Z69: =R69-(R69*Y69) -> 0 | AA69: =IF(Y69<10%,"None",IF(Y69<50%,"Unsatisfactory",IF(Y69<80%,"Requires Improvements",IF(Y69>79%,"Satisfactory",0)))) -> None | AB69: 90% | AC69: =IF(Z69<672,"LOW",IF(Z69<979,"MEDIUM",IF(Z69<1399,"HIGH",IF(Z69<3501,"VERY HIGH",0)))) -> LOW
R70: =O70*P70*Q70 -> 0 | S70: =IF(R70<672,"LOW",IF(R70<979,"MEDIUM",IF(R70<1399,"HIGH",IF(R70<3501,"VERY HIGH",0)))) -> LOW | T70: Elimination 1. Substitution: 1. Engineering Control: 1. Administrative Control: 1. PPE: 1. | Y70: =SUM('[1]Scores-protected'!A84:D84) -> 0.0% | Z70: =R70-(R70*Y70) -> 0 | AA70: =IF(Y70<10%,"None",IF(Y70<50%,"Unsatisfactory",IF(Y70<80%,"Requires Improvements",IF(Y70>79%,"Satisfactory",0)))) -> None | AB70: 90% | AC70: =IF(Z70<672,"LOW",IF(Z70<979,"MEDIUM",IF(Z70<1399,"HIGH",IF(Z70<3501,"VERY HIGH",0)))) -> LOW
R71: =O71*P71*Q71 -> 0 | S71: =IF(R71<672,"LOW",IF(R71<979,"MEDIUM",IF(R71<1399,"HIGH",IF(R71<3501,"VERY HIGH",0)))) -> LOW | T71: Elimination 1. Substitution: 1. Engineering Control: 1. Administrative Control: 1. PPE: 1. | Y71: =SUM('[1]Scores-protected'!A85:D85) -> 0.0% | Z71: =R71-(R71*Y71) -> 0 | AA71: =IF(Y71<10%,"None",IF(Y71<50%,"Unsatisfactory",IF(Y71<80%,"Requires Improvements",IF(Y71>79%,"Satisfactory",0)))) -> None | AB71: 90% | AC71: =IF(Z71<672,"LOW",IF(Z71<979,"MEDIUM",IF(Z71<1399,"HIGH",IF(Z71<3501,"VERY HIGH",0)))) -> LOW
R72: =O72*P72*Q72 -> 0 | S72: =IF(R72<672,"LOW",IF(R72<979,"MEDIUM",IF(R72<1399,"HIGH",IF(R72<3501,"VERY HIGH",0)))) -> LOW | T72: Elimination 1. Substitution: 1. Engineering Control: 1. Administrative Control: 1. PPE: 1. | Y72: =SUM('[1]Scores-protected'!A86:D86) -> 0.0% | Z72: =R72-(R72*Y72) -> 0 | AA72: =IF(Y72<10%,"None",IF(Y72<50%,"Unsatisfactory",IF(Y72<80%,"Requires Improvements",IF(Y72>79%,"Satisfactory",0)))) -> None | AB72: 90% | AC72: =IF(Z72<672,"LOW",IF(Z72<979,"MEDIUM",IF(Z72<1399,"HIGH",IF(Z72<3501,"VERY HIGH",0)))) -> LOW
R73: =O73*P73*Q73 -> 0 | S73: =IF(R73<672,"LOW",IF(R73<979,"MEDIUM",IF(R73<1399,"HIGH",IF(R73<3501,"VERY HIGH",0)))) -> LOW | T73: Elimination 1. Substitution: 1. Engineering Control: 1. Administrative Control: 1. PPE: 1. | Y73: =SUM('[1]Scores-protected'!A87:D87) -> 0.0% | Z73: =R73-(R73*Y73) -> 0 | AA73: =IF(Y73<10%,"None",IF(Y73<50%,"Unsatisfactory",IF(Y73<80%,"Requires Improvements",IF(Y73>79%,"Satisfactory",0)))) -> None | AB73: 90% | AC73: =IF(Z73<672,"LOW",IF(Z73<979,"MEDIUM",IF(Z73<1399,"HIGH",IF(Z73<3501,"VERY HIGH",0)))) -> LOW
R74: =O74*P74*Q74 -> 0 | S74: =IF(R74<672,"LOW",IF(R74<979,"MEDIUM",IF(R74<1399,"HIGH",IF(R74<3501,"VERY HIGH",0)))) -> LOW | T74: Elimination 1. Substitution: 1. Engineering Control: 1. Administrative Control: 1. PPE: 1. | Y74: =SUM('[1]Scores-protected'!A88:D88) -> 0.0% | Z74: =R74-(R74*Y74) -> 0 | AA74: =IF(Y74<10%,"None",IF(Y74<50%,"Unsatisfactory",IF(Y74<80%,"Requires Improvements",IF(Y74>79%,"Satisfactory",0)))) -> None | AB74: 90% | AC74: =IF(Z74<672,"LOW",IF(Z74<979,"MEDIUM",IF(Z74<1399,"HIGH",IF(Z74<3501,"VERY HIGH",0)))) -> LOW
R75: =O75*P75*Q75 -> 0 | S75: =IF(R75<672,"LOW",IF(R75<979,"MEDIUM",IF(R75<1399,"HIGH",IF(R75<3501,"VERY HIGH",0)))) -> LOW | T75: Elimination 1. Substitution: 1. Engineering Control: 1. Administrative Control: 1. PPE: 1. | Y75: =SUM('[1]Scores-protected'!A89:D89) -> 0.0% | Z75: =R75-(R75*Y75) -> 0 | AA75: =IF(Y75<10%,"None",IF(Y75<50%,"Unsatisfactory",IF(Y75<80%,"Requires Improvements",IF(Y75>79%,"Satisfactory",0)))) -> None | AB75: 90% | AC75: =IF(Z75<672,"LOW",IF(Z75<979,"MEDIUM",IF(Z75<1399,"HIGH",IF(Z75<3501,"VERY HIGH",0)))) -> LOW
R76: =O76*P76*Q76 -> 0 | S76: =IF(R76<672,"LOW",IF(R76<979,"MEDIUM",IF(R76<1399,"HIGH",IF(R76<3501,"VERY HIGH",0)))) -> LOW | T76: Elimination 1. Substitution: 1. Engineering Control: 1. Administrative Control: 1. PPE: 1. | Y76: =SUM('[1]Scores-protected'!A90:D90) -> 0.0% | Z76: =R76-(R76*Y76) -> 0 | AA76: =IF(Y76<10%,"None",IF(Y76<50%,"Unsatisfactory",IF(Y76<80%,"Requires Improvements",IF(Y76>79%,"Satisfactory",0)))) -> None | AB76: 90% | AC76: =IF(Z76<672,"LOW",IF(Z76<979,"MEDIUM",IF(Z76<1399,"HIGH",IF(Z76<3501,"VERY HIGH",0)))) -> LOW
R77: =O77*P77*Q77 -> 0 | S77: =IF(R77<672,"LOW",IF(R77<979,"MEDIUM",IF(R77<1399,"HIGH",IF(R77<3501,"VERY HIGH",0)))) -> LOW | T77: Elimination 1. Substitution: 1. Engineering Control: 1. Administrative Control: 1. PPE: 1. | Y77: =SUM('[1]Scores-protected'!A91:D91) -> 0.0% | Z77: =R77-(R77*Y77) -> 0 | AA77: =IF(Y77<10%,"None",IF(Y77<50%,"Unsatisfactory",IF(Y77<80%,"Requires Improvements",IF(Y77>79%,"Satisfactory",0)))) -> None | AB77: 90% | AC77: =IF(Z77<672,"LOW",IF(Z77<979,"MEDIUM",IF(Z77<1399,"HIGH",IF(Z77<3501,"VERY HIGH",0)))) -> LOW
R78: =O78*P78*Q78 -> 0 | S78: =IF(R78<672,"LOW",IF(R78<979,"MEDIUM",IF(R78<1399,"HIGH",IF(R78<3501,"VERY HIGH",0)))) -> LOW | T78: Elimination 1. Substitution: 1. Engineering Control: 1. Administrative Control: 1. PPE: 1. | Y78: =SUM('[1]Scores-protected'!A92:D92) -> 0.0% | Z78: =R78-(R78*Y78) -> 0 | AA78: =IF(Y78<10%,"None",IF(Y78<50%,"Unsatisfactory",IF(Y78<80%,"Requires Improvements",IF(Y78>79%,"Satisfactory",0)))) -> None | AB78: 90% | AC78: =IF(Z78<672,"LOW",IF(Z78<979,"MEDIUM",IF(Z78<1399,"HIGH",IF(Z78<3501,"VERY HIGH",0)))) -> LOW
R79: =O79*P79*Q79 -> 0 | S79: =IF(R79<672,"LOW",IF(R79<979,"MEDIUM",IF(R79<1399,"HIGH",IF(R79<3501,"VERY HIGH",0)))) -> LOW | T79: Elimination 1. Substitution: 1. Engineering Control: 1. Administrative Control: 1. PPE: 1. | Y79: =SUM('[1]Scores-protected'!A93:D93) -> 0.0% | Z79: =R79-(R79*Y79) -> 0 | AA79: =IF(Y79<10%,"None",IF(Y79<50%,"Unsatisfactory",IF(Y79<80%,"Requires Improvements",IF(Y79>79%,"Satisfactory",0)))) -> None | AB79: 90% | AC79: =IF(Z79<672,"LOW",IF(Z79<979,"MEDIUM",IF(Z79<1399,"HIGH",IF(Z79<3501,"VERY HIGH",0)))) -> LOW
R80: =O80*P80*Q80 -> 0 | S80: =IF(R80<672,"LOW",IF(R80<979,"MEDIUM",IF(R80<1399,"HIGH",IF(R80<3501,"VERY HIGH",0)))) -> LOW | T80: Elimination 1. Substitution: 1. Engineering Control: 1. Administrative Control: 1. PPE: 1. | Y80: =SUM('[1]Scores-protected'!A94:D94) -> 0.0% | Z80: =R80-(R80*Y80) -> 0 | AA80: =IF(Y80<10%,"None",IF(Y80<50%,"Unsatisfactory",IF(Y80<80%,"Requires Improvements",IF(Y80>79%,"Satisfactory",0)))) -> None | AB80: 90% | AC80: =IF(Z80<672,"LOW",IF(Z80<979,"MEDIUM",IF(Z80<1399,"HIGH",IF(Z80<3501,"VERY HIGH",0)))) -> LOW
R81: =O81*P81*Q81 -> 0 | S81: =IF(R81<672,"LOW",IF(R81<979,"MEDIUM",IF(R81<1399,"HIGH",IF(R81<3501,"VERY HIGH",0)))) -> LOW | T81: Elimination 1. Substitution: 1. Engineering Control: 1. Administrative Control: 1. PPE: 1. | Y81: =SUM('[1]Scores-protected'!A95:D95) -> 0.0% | Z81: =R81-(R81*Y81) -> 0 | AA81: =IF(Y81<10%,"None",IF(Y81<50%,"Unsatisfactory",IF(Y81<80%,"Requires Improvements",IF(Y81>79%,"Satisfactory",0)))) -> None | AB81: 90% | AC81: =IF(Z81<672,"LOW",IF(Z81<979,"MEDIUM",IF(Z81<1399,"HIGH",IF(Z81<3501,"VERY HIGH",0)))) -> LOW
R82: =O82*P82*Q82 -> 0 | S82: =IF(R82<672,"LOW",IF(R82<979,"MEDIUM",IF(R82<1399,"HIGH",IF(R82<3501,"VERY HIGH",0)))) -> LOW | T82: Elimination 1. Substitution: 1. Engineering Control: 1. Administrative Control: 1. PPE: 1. | Y82: =SUM('[1]Scores-protected'!A96:D96) -> 0.0% | Z82: =R82-(R82*Y82) -> 0 | AA82: =IF(Y82<10%,"None",IF(Y82<50%,"Unsatisfactory",IF(Y82<80%,"Requires Improvements",IF(Y82>79%,"Satisfactory",0)))) -> None | AB82: 90% | AC82: =IF(Z82<672,"LOW",IF(Z82<979,"MEDIUM",IF(Z82<1399,"HIGH",IF(Z82<3501,"VERY HIGH",0)))) -> LOW
R83: =O83*P83*Q83 -> 0 | S83: =IF(R83<672,"LOW",IF(R83<979,"MEDIUM",IF(R83<1399,"HIGH",IF(R83<3501,"VERY HIGH",0)))) -> LOW | T83: Elimination 1. Substitution: 1. Engineering Control: 1. Administrative Control: 1. PPE: 1. | Y83: =SUM('[1]Scores-protected'!A97:D97) -> 0.0% | Z83: =R83-(R83*Y83) -> 0 | AA83: =IF(Y83<10%,"None",IF(Y83<50%,"Unsatisfactory",IF(Y83<80%,"Requires Improvements",IF(Y83>79%,"Satisfactory",0)))) -> None | AB83: 90% | AC83: =IF(Z83<672,"LOW",IF(Z83<979,"MEDIUM",IF(Z83<1399,"HIGH",IF(Z83<3501,"VERY HIGH",0)))) -> LOW
R84: =O84*P84*Q84 -> 0 | S84: =IF(R84<672,"LOW",IF(R84<979,"MEDIUM",IF(R84<1399,"HIGH",IF(R84<3501,"VERY HIGH",0)))) -> LOW | T84: Elimination 1. Substitution: 1. Engineering Control: 1. Administrative Control: 1. PPE: 1. | Y84: =SUM('[1]Scores-protected'!A98:D98) -> 0.0% | Z84: =R84-(R84*Y84) -> 0 | AA84: =IF(Y84<10%,"None",IF(Y84<50%,"Unsatisfactory",IF(Y84<80%,"Requires Improvements",IF(Y84>79%,"Satisfactory",0)))) -> None | AB84: 90% | AC84: =IF(Z84<672,"LOW",IF(Z84<979,"MEDIUM",IF(Z84<1399,"HIGH",IF(Z84<3501,"VERY HIGH",0)))) -> LOW
R85: =O85*P85*Q85 -> 0 | S85: =IF(R85<672,"LOW",IF(R85<979,"MEDIUM",IF(R85<1399,"HIGH",IF(R85<3501,"VERY HIGH",0)))) -> LOW | T85: Elimination 1. Substitution: 1. Engineering Control: 1. Administrative Control: 1. PPE: 1. | Y85: =SUM('[1]Scores-protected'!A99:D99) -> 0.0% | Z85: =R85-(R85*Y85) -> 0 | AA85: =IF(Y85<10%,"None",IF(Y85<50%,"Unsatisfactory",IF(Y85<80%,"Requires Improvements",IF(Y85>79%,"Satisfactory",0)))) -> None | AB85: 90% | AC85: =IF(Z85<672,"LOW",IF(Z85<979,"MEDIUM",IF(Z85<1399,"HIGH",IF(Z85<3501,"VERY HIGH",0)))) -> LOW
R86: =O86*P86*Q86 -> 0 | S86: =IF(R86<672,"LOW",IF(R86<979,"MEDIUM",IF(R86<1399,"HIGH",IF(R86<3501,"VERY HIGH",0)))) -> LOW | T86: Elimination 1. Substitution: 1. Engineering Control: 1. Administrative Control: 1. PPE: 1. | Y86: =SUM('[1]Scores-protected'!A100:D100) -> 0.0% | Z86: =R86-(R86*Y86) -> 0 | AA86: =IF(Y86<10%,"None",IF(Y86<50%,"Unsatisfactory",IF(Y86<80%,"Requires Improvements",IF(Y86>79%,"Satisfactory",0)))) -> None | AB86: 90% | AC86: =IF(Z86<672,"LOW",IF(Z86<979,"MEDIUM",IF(Z86<1399,"HIGH",IF(Z86<3501,"VERY HIGH",0)))) -> LOW
R87: =O87*P87*Q87 -> 0 | S87: =IF(R87<672,"LOW",IF(R87<979,"MEDIUM",IF(R87<1399,"HIGH",IF(R87<3501,"VERY HIGH",0)))) -> LOW | T87: Elimination 1. Substitution: 1. Engineering Control: 1. Administrative Control: 1. PPE: 1. | Y87: =SUM('[1]Scores-protected'!A101:D101) -> 0.0% | Z87: =R87-(R87*Y87) -> 0 | AA87: =IF(Y87<10%,"None",IF(Y87<50%,"Unsatisfactory",IF(Y87<80%,"Requires Improvements",IF(Y87>79%,"Satisfactory",0)))) -> None | AB87: 90% | AC87: =IF(Z87<672,"LOW",IF(Z87<979,"MEDIUM",IF(Z87<1399,"HIGH",IF(Z87<3501,"VERY HIGH",0)))) -> LOW
R88: =O88*P88*Q88 -> 0 | S88: =IF(R88<672,"LOW",IF(R88<979,"MEDIUM",IF(R88<1399,"HIGH",IF(R88<3501,"VERY HIGH",0)))) -> LOW | T88: Elimination 1. Substitution: 1. Engineering Control: 1. Administrative Control: 1. PPE: 1. | Y88: =SUM('[1]Scores-protected'!A102:D102) -> 0.0% | Z88: =R88-(R88*Y88) -> 0 | AA88: =IF(Y88<10%,"None",IF(Y88<50%,"Unsatisfactory",IF(Y88<80%,"Requires Improvements",IF(Y88>79%,"Satisfactory",0)))) -> None | AB88: 90% | AC88: =IF(Z88<672,"LOW",IF(Z88<979,"MEDIUM",IF(Z88<1399,"HIGH",IF(Z88<3501,"VERY HIGH",0)))) -> LOW
R89: =O89*P89*Q89 -> 0 | S89: =IF(R89<672,"LOW",IF(R89<979,"MEDIUM",IF(R89<1399,"HIGH",IF(R89<3501,"VERY HIGH",0)))) -> LOW | T89: Elimination 1. Substitution: 1. Engineering Control: 1. Administrative Control: 1. PPE: 1. | Y89: =SUM('[1]Scores-protected'!A103:D103) -> 0.0% | Z89: =R89-(R89*Y89) -> 0 | AA89: =IF(Y89<10%,"None",IF(Y89<50%,"Unsatisfactory",IF(Y89<80%,"Requires Improvements",IF(Y89>79%,"Satisfactory",0)))) -> None | AB89: 90% | AC89: =IF(Z89<672,"LOW",IF(Z89<979,"MEDIUM",IF(Z89<1399,"HIGH",IF(Z89<3501,"VERY HIGH",0)))) -> LOW
R90: =O90*P90*Q90 -> 0 | S90: =IF(R90<672,"LOW",IF(R90<979,"MEDIUM",IF(R90<1399,"HIGH",IF(R90<3501,"VERY HIGH",0)))) -> LOW | T90: Elimination 1. Substitution: 1. Engineering Control: 1. Administrative Control: 1. PPE: 1. | Y90: =SUM('[1]Scores-protected'!A104:D104) -> 0.0% | Z90: =R90-(R90*Y90) -> 0 | AA90: =IF(Y90<10%,"None",IF(Y90<50%,"Unsatisfactory",IF(Y90<80%,"Requires Improvements",IF(Y90>79%,"Satisfactory",0)))) -> None | AB90: 90% | AC90: =IF(Z90<672,"LOW",IF(Z90<979,"MEDIUM",IF(Z90<1399,"HIGH",IF(Z90<3501,"VERY HIGH",0)))) -> LOW
R91: =O91*P91*Q91 -> 0 | S91: =IF(R91<672,"LOW",IF(R91<979,"MEDIUM",IF(R91<1399,"HIGH",IF(R91<3501,"VERY HIGH",0)))) -> LOW | T91: Elimination 1. Substitution: 1. Engineering Control: 1. Administrative Control: 1. PPE: 1. | Y91: =SUM('[1]Scores-protected'!A105:D105) -> 0.0% | Z91: =R91-(R91*Y91) -> 0 | AA91: =IF(Y91<10%,"None",IF(Y91<50%,"Unsatisfactory",IF(Y91<80%,"Requires Improvements",IF(Y91>79%,"Satisfactory",0)))) -> None | AB91: 90% | AC91: =IF(Z91<672,"LOW",IF(Z91<979,"MEDIUM",IF(Z91<1399,"HIGH",IF(Z91<3501,"VERY HIGH",0)))) -> LOW
R92: =O92*P92*Q92 -> 0 | S92: =IF(R92<672,"LOW",IF(R92<979,"MEDIUM",IF(R92<1399,"HIGH",IF(R92<3501,"VERY HIGH",0)))) -> LOW | T92: Elimination 1. Substitution: 1. Engineering Control: 1. Administrative Control: 1. PPE: 1. | Y92: =SUM('[1]Scores-protected'!A106:D106) -> 0.0% | Z92: =R92-(R92*Y92) -> 0 | AA92: =IF(Y92<10%,"None",IF(Y92<50%,"Unsatisfactory",IF(Y92<80%,"Requires Improvements",IF(Y92>79%,"Satisfactory",0)))) -> None | AB92: 90% | AC92: =IF(Z92<672,"LOW",IF(Z92<979,"MEDIUM",IF(Z92<1399,"HIGH",IF(Z92<3501,"VERY HIGH",0)))) -> LOW
R93: =O93*P93*Q93 -> 0 | S93: =IF(R93<672,"LOW",IF(R93<979,"MEDIUM",IF(R93<1399,"HIGH",IF(R93<3501,"VERY HIGH",0)))) -> LOW | T93: Elimination 1. Substitution: 1. Engineering Control: 1. Administrative Control: 1. PPE: 1. | Y93: =SUM('[1]Scores-protected'!A107:D107) -> 0.0% | Z93: =R93-(R93*Y93) -> 0 | AA93: =IF(Y93<10%,"None",IF(Y93<50%,"Unsatisfactory",IF(Y93<80%,"Requires Improvements",IF(Y93>79%,"Satisfactory",0)))) -> None | AB93: 90% | AC93: =IF(Z93<672,"LOW",IF(Z93<979,"MEDIUM",IF(Z93<1399,"HIGH",IF(Z93<3501,"VERY HIGH",0)))) -> LOW
R94: =O94*P94*Q94 -> 0 | S94: =IF(R94<672,"LOW",IF(R94<979,"MEDIUM",IF(R94<1399,"HIGH",IF(R94<3501,"VERY HIGH",0)))) -> LOW | T94: Elimination 1. Substitution: 1. Engineering Control: 1. Administrative Control: 1. PPE: 1. | Y94: =SUM('[1]Scores-protected'!A108:D108) -> 0.0% | Z94: =R94-(R94*Y94) -> 0 | AA94: =IF(Y94<10%,"None",IF(Y94<50%,"Unsatisfactory",IF(Y94<80%,"Requires Improvements",IF(Y94>79%,"Satisfactory",0)))) -> None | AB94: 90% | AC94: =IF(Z94<672,"LOW",IF(Z94<979,"MEDIUM",IF(Z94<1399,"HIGH",IF(Z94<3501,"VERY HIGH",0)))) -> LOW
R95: =O95*P95*Q95 -> 0 | S95: =IF(R95<672,"LOW",IF(R95<979,"MEDIUM",IF(R95<1399,"HIGH",IF(R95<3501,"VERY HIGH",0)))) -> LOW | T95: Elimination 1. Substitution: 1. Engineering Control: 1. Administrative Control: 1. PPE: 1. | Y95: =SUM('[1]Scores-protected'!A109:D109) -> 0.0% | Z95: =R95-(R95*Y95) -> 0 | AA95: =IF(Y95<10%,"None",IF(Y95<50%,"Unsatisfactory",IF(Y95<80%,"Requires Improvements",IF(Y95>79%,"Satisfactory",0)))) -> None | AB95: 90% | AC95: =IF(Z95<672,"LOW",IF(Z95<979,"MEDIUM",IF(Z95<1399,"HIGH",IF(Z95<3501,"VERY HIGH",0)))) -> LOW
R96: =O96*P96*Q96 -> 0 | S96: =IF(R96<672,"LOW",IF(R96<979,"MEDIUM",IF(R96<1399,"HIGH",IF(R96<3501,"VERY HIGH",0)))) -> LOW | T96: Elimination 1. Substitution: 1. Engineering Control: 1. Administrative Control: 1. PPE: 1. | Y96: =SUM('[1]Scores-protected'!A110:D110) -> 0.0% | Z96: =R96-(R96*Y96) -> 0 | AA96: =IF(Y96<10%,"None",IF(Y96<50%,"Unsatisfactory",IF(Y96<80%,"Requires Improvements",IF(Y96>79%,"Satisfactory",0)))) -> None | AB96: 90% | AC96: =IF(Z96<672,"LOW",IF(Z96<979,"MEDIUM",IF(Z96<1399,"HIGH",IF(Z96<3501,"VERY HIGH",0)))) -> LOW
R97: =O97*P97*Q97 -> 0 | S97: =IF(R97<672,"LOW",IF(R97<979,"MEDIUM",IF(R97<1399,"HIGH",IF(R97<3501,"VERY HIGH",0)))) -> LOW | T97: Elimination 1. Substitution: 1. Engineering Control: 1. Administrative Control: 1. PPE: 1. | Y97: =SUM('[1]Scores-protected'!A111:D111) -> 0.0% | Z97: =R97-(R97*Y97) -> 0 | AA97: =IF(Y97<10%,"None",IF(Y97<50%,"Unsatisfactory",IF(Y97<80%,"Requires Improvements",IF(Y97>79%,"Satisfactory",0)))) -> None | AB97: 90% | AC97: =IF(Z97<672,"LOW",IF(Z97<979,"MEDIUM",IF(Z97<1399,"HIGH",IF(Z97<3501,"VERY HIGH",0)))) -> LOW
R98: =O98*P98*Q98 -> 0 | S98: =IF(R98<672,"LOW",IF(R98<979,"MEDIUM",IF(R98<1399,"HIGH",IF(R98<3501,"VERY HIGH",0)))) -> LOW | T98: Elimination 1. Substitution: 1. Engineering Control: 1. Administrative Control: 1. PPE: 1. | Y98: =SUM('[1]Scores-protected'!A112:D112) -> 0.0% | Z98: =R98-(R98*Y98) -> 0 | AA98: =IF(Y98<10%,"None",IF(Y98<50%,"Unsatisfactory",IF(Y98<80%,"Requires Improvements",IF(Y98>79%,"Satisfactory",0)))) -> None | AB98: 90% | AC98: =IF(Z98<672,"LOW",IF(Z98<979,"MEDIUM",IF(Z98<1399,"HIGH",IF(Z98<3501,"VERY HIGH",0)))) -> LOW
R99: =O99*P99*Q99 -> 0 | S99: =IF(R99<672,"LOW",IF(R99<979,"MEDIUM",IF(R99<1399,"HIGH",IF(R99<3501,"VERY HIGH",0)))) -> LOW | T99: Elimination 1. Substitution: 1. Engineering Control: 1. Administrative Control: 1. PPE: 1. | Y99: =SUM('[1]Scores-protected'!A113:D113) -> 0.0% | Z99: =R99-(R99*Y99) -> 0 | AA99: =IF(Y99<10%,"None",IF(Y99<50%,"Unsatisfactory",IF(Y99<80%,"Requires Improvements",IF(Y99>79%,"Satisfactory",0)))) -> None | AB99: 90% | AC99: =IF(Z99<672,"LOW",IF(Z99<979,"MEDIUM",IF(Z99<1399,"HIGH",IF(Z99<3501,"VERY HIGH",0)))) -> LOW
R100: =O100*P100*Q100 -> 0 | S100: =IF(R100<672,"LOW",IF(R100<979,"MEDIUM",IF(R100<1399,"HIGH",IF(R100<3501,"VERY HIGH",0)))) -> LOW | T100: Elimination 1. Substitution: 1. Engineering Control: 1. Administrative Control: 1. PPE: 1. | Y100: =SUM('[1]Scores-protected'!A114:D114) -> 0.0% | Z100: =R100-(R100*Y100) -> 0 | AA100: =IF(Y100<10%,"None",IF(Y100<50%,"Unsatisfactory",IF(Y100<80%,"Requires Improvements",IF(Y100>79%,"Satisfactory",0)))) -> None | AB100: 90% | AC100: =IF(Z100<672,"LOW",IF(Z100<979,"MEDIUM",IF(Z100<1399,"HIGH",IF(Z100<3501,"VERY HIGH",0)))) -> LOW
R101: =O101*P101*Q101 -> 0 | S101: =IF(R101<672,"LOW",IF(R101<979,"MEDIUM",IF(R101<1399,"HIGH",IF(R101<3501,"VERY HIGH",0)))) -> LOW | T101: Elimination 1. Substitution: 1. Engineering Control: 1. Administrative Control: 1. PPE: 1. | Y101: =SUM('[1]Scores-protected'!A115:D115) -> 0.0% | Z101: =R101-(R101*Y101) -> 0 | AA101: =IF(Y101<10%,"None",IF(Y101<50%,"Unsatisfactory",IF(Y101<80%,"Requires Improvements",IF(Y101>79%,"Satisfactory",0)))) -> None | AB101: 90% | AC101: =IF(Z101<672,"LOW",IF(Z101<979,"MEDIUM",IF(Z101<1399,"HIGH",IF(Z101<3501,"VERY HIGH",0)))) -> LOW
R102: =O102*P102*Q102 -> 0 | S102: =IF(R102<672,"LOW",IF(R102<979,"MEDIUM",IF(R102<1399,"HIGH",IF(R102<3501,"VERY HIGH",0)))) -> LOW | T102: Elimination 1. Substitution: 1. Engineering Control: 1. Administrative Control: 1. PPE: 1. | Y102: =SUM('[1]Scores-protected'!A116:D116) -> 0.0% | Z102: =R102-(R102*Y102) -> 0 | AA102: =IF(Y102<10%,"None",IF(Y102<50%,"Unsatisfactory",IF(Y102<80%,"Requires Improvements",IF(Y102>79%,"Satisfactory",0)))) -> None | AB102: 90% | AC102: =IF(Z102<672,"LOW",IF(Z102<979,"MEDIUM",IF(Z102<1399,"HIGH",IF(Z102<3501,"VERY HIGH",0)))) -> LOW
R103: =O103*P103*Q103 -> 0 | S103: =IF(R103<672,"LOW",IF(R103<979,"MEDIUM",IF(R103<1399,"HIGH",IF(R103<3501,"VERY HIGH",0)))) -> LOW | T103: Elimination 1. Substitution: 1. Engineering Control: 1. Administrative Control: 1. PPE: 1. | Y103: =SUM('[1]Scores-protected'!A117:D117) -> 0.0% | Z103: =R103-(R103*Y103) -> 0 | AA103: =IF(Y103<10%,"None",IF(Y103<50%,"Unsatisfactory",IF(Y103<80%,"Requires Improvements",IF(Y103>79%,"Satisfactory",0)))) -> None | AB103: 90% | AC103: =IF(Z103<672,"LOW",IF(Z103<979,"MEDIUM",IF(Z103<1399,"HIGH",IF(Z103<3501,"VERY HIGH",0)))) -> LOW
R104: =O104*P104*Q104 -> 0 | S104: =IF(R104<672,"LOW",IF(R104<979,"MEDIUM",IF(R104<1399,"HIGH",IF(R104<3501,"VERY HIGH",0)))) -> LOW | T104: Elimination 1. Substitution: 1. Engineering Control: 1. Administrative Control: 1. PPE: 1. | Y104: =SUM('[1]Scores-protected'!A118:D118) -> 0.0% | Z104: =R104-(R104*Y104) -> 0 | AA104: =IF(Y104<10%,"None",IF(Y104<50%,"Unsatisfactory",IF(Y104<80%,"Requires Improvements",IF(Y104>79%,"Satisfactory",0)))) -> None | AB104: 90% | AC104: =IF(Z104<672,"LOW",IF(Z104<979,"MEDIUM",IF(Z104<1399,"HIGH",IF(Z104<3501,"VERY HIGH",0)))) -> LOW
R105: =O105*P105*Q105 -> 0 | S105: =IF(R105<672,"LOW",IF(R105<979,"MEDIUM",IF(R105<1399,"HIGH",IF(R105<3501,"VERY HIGH",0)))) -> LOW | T105: Elimination 1. Substitution: 1. Engineering Control: 1. Administrative Control: 1. PPE: 1. | Y105: =SUM('[1]Scores-protected'!A119:D119) -> 0.0% | Z105: =R105-(R105*Y105) -> 0 | AA105: =IF(Y105<10%,"None",IF(Y105<50%,"Unsatisfactory",IF(Y105<80%,"Requires Improvements",IF(Y105>79%,"Satisfactory",0)))) -> None | AB105: 90% | AC105: =IF(Z105<672,"LOW",IF(Z105<979,"MEDIUM",IF(Z105<1399,"HIGH",IF(Z105<3501,"VERY HIGH",0)))) -> LOW
R106: =O106*P106*Q106 -> 0 | S106: =IF(R106<672,"LOW",IF(R106<979,"MEDIUM",IF(R106<1399,"HIGH",IF(R106<3501,"VERY HIGH",0)))) -> LOW | T106: Elimination 1. Substitution: 1. Engineering Control: 1. Administrative Control: 1. PPE: 1. | Y106: =SUM('[1]Scores-protected'!A120:D120) -> 0.0% | Z106: =R106-(R106*Y106) -> 0 | AA106: =IF(Y106<10%,"None",IF(Y106<50%,"Unsatisfactory",IF(Y106<80%,"Requires Improvements",IF(Y106>79%,"Satisfactory",0)))) -> None | AB106: 90% | AC106: =IF(Z106<672,"LOW",IF(Z106<979,"MEDIUM",IF(Z106<1399,"HIGH",IF(Z106<3501,"VERY HIGH",0)))) -> LOW
R107: =O107*P107*Q107 -> 0 | S107: =IF(R107<672,"LOW",IF(R107<979,"MEDIUM",IF(R107<1399,"HIGH",IF(R107<3501,"VERY HIGH",0)))) -> LOW | T107: Elimination 1. Substitution: 1. Engineering Control: 1. Administrative Control: 1. PPE: 1. | Y107: =SUM('[1]Scores-protected'!A121:D121) -> 0.0% | Z107: =R107-(R107*Y107) -> 0 | AA107: =IF(Y107<10%,"None",IF(Y107<50%,"Unsatisfactory",IF(Y107<80%,"Requires Improvements",IF(Y107>79%,"Satisfactory",0)))) -> None | AB107: 90% | AC107: =IF(Z107<672,"LOW",IF(Z107<979,"MEDIUM",IF(Z107<1399,"HIGH",IF(Z107<3501,"VERY HIGH",0)))) -> LOW
R108: =O108*P108*Q108 -> 0 | S108: =IF(R108<672,"LOW",IF(R108<979,"MEDIUM",IF(R108<1399,"HIGH",IF(R108<3501,"VERY HIGH",0)))) -> LOW | T108: Elimination 1. Substitution: 1. Engineering Control: 1. Administrative Control: 1. PPE: 1. | Y108: =SUM('[1]Scores-protected'!A122:D122) -> 0.0% | Z108: =R108-(R108*Y108) -> 0 | AA108: =IF(Y108<10%,"None",IF(Y108<50%,"Unsatisfactory",IF(Y108<80%,"Requires Improvements",IF(Y108>79%,"Satisfactory",0)))) -> None | AB108: 90% | AC108: =IF(Z108<672,"LOW",IF(Z108<979,"MEDIUM",IF(Z108<1399,"HIGH",IF(Z108<3501,"VERY HIGH",0)))) -> LOW
R109: =O109*P109*Q109 -> 0 | S109: =IF(R109<672,"LOW",IF(R109<979,"MEDIUM",IF(R109<1399,"HIGH",IF(R109<3501,"VERY HIGH",0)))) -> LOW | T109: Elimination 1. Substitution: 1. Engineering Control: 1. Administrative Control: 1. PPE: 1. | Y109: =SUM('[1]Scores-protected'!A123:D123) -> 0.0% | Z109: =R109-(R109*Y109) -> 0 | AA109: =IF(Y109<10%,"None",IF(Y109<50%,"Unsatisfactory",IF(Y109<80%,"Requires Improvements",IF(Y109>79%,"Satisfactory",0)))) -> None | AB109: 90% | AC109: =IF(Z109<672,"LOW",IF(Z109<979,"MEDIUM",IF(Z109<1399,"HIGH",IF(Z109<3501,"VERY HIGH",0)))) -> LOW
R110: =O110*P110*Q110 -> 0 | S110: =IF(R110<672,"LOW",IF(R110<979,"MEDIUM",IF(R110<1399,"HIGH",IF(R110<3501,"VERY HIGH",0)))) -> LOW | T110: Elimination 1. Substitution: 1. Engineering Control: 1. Administrative Control: 1. PPE: 1. | Y110: =SUM('[1]Scores-protected'!A124:D124) -> 0.0% | Z110: =R110-(R110*Y110) -> 0 | AA110: =IF(Y110<10%,"None",IF(Y110<50%,"Unsatisfactory",IF(Y110<80%,"Requires Improvements",IF(Y110>79%,"Satisfactory",0)))) -> None | AB110: 90% | AC110: =IF(Z110<672,"LOW",IF(Z110<979,"MEDIUM",IF(Z110<1399,"HIGH",IF(Z110<3501,"VERY HIGH",0)))) -> LOW
R111: =O111*P111*Q111 -> 0 | S111: =IF(R111<672,"LOW",IF(R111<979,"MEDIUM",IF(R111<1399,"HIGH",IF(R111<3501,"VERY HIGH",0)))) -> LOW | T111: Elimination 1. Substitution: 1. Engineering Control: 1. Administrative Control: 1. PPE: 1. | Y111: =SUM('[1]Scores-protected'!A125:D125) -> 0.0% | Z111: =R111-(R111*Y111) -> 0 | AA111: =IF(Y111<10%,"None",IF(Y111<50%,"Unsatisfactory",IF(Y111<80%,"Requires Improvements",IF(Y111>79%,"Satisfactory",0)))) -> None | AB111: 90% | AC111: =IF(Z111<672,"LOW",IF(Z111<979,"MEDIUM",IF(Z111<1399,"HIGH",IF(Z111<3501,"VERY HIGH",0)))) -> LOW
R112: =O112*P112*Q112 -> 0 | S112: =IF(R112<672,"LOW",IF(R112<979,"MEDIUM",IF(R112<1399,"HIGH",IF(R112<3501,"VERY HIGH",0)))) -> LOW | T112: Elimination 1. Substitution: 1. Engineering Control: 1. Administrative Control: 1. PPE: 1. | Y112: =SUM('[1]Scores-protected'!A126:D126) -> 0.0% | Z112: =R112-(R112*Y112) -> 0 | AA112: =IF(Y112<10%,"None",IF(Y112<50%,"Unsatisfactory",IF(Y112<80%,"Requires Improvements",IF(Y112>79%,"Satisfactory",0)))) -> None | AB112: 90% | AC112: =IF(Z112<672,"LOW",IF(Z112<979,"MEDIUM",IF(Z112<1399,"HIGH",IF(Z112<3501,"VERY HIGH",0)))) -> LOW
R113: =O113*P113*Q113 -> 0 | S113: =IF(R113<672,"LOW",IF(R113<979,"MEDIUM",IF(R113<1399,"HIGH",IF(R113<3501,"VERY HIGH",0)))) -> LOW | T113: Elimination 1. Substitution: 1. Engineering Control: 1. Administrative Control: 1. PPE: 1. | Y113: =SUM('[1]Scores-protected'!A127:D127) -> 0.0% | Z113: =R113-(R113*Y113) -> 0 | AA113: =IF(Y113<10%,"None",IF(Y113<50%,"Unsatisfactory",IF(Y113<80%,"Requires Improvements",IF(Y113>79%,"Satisfactory",0)))) -> None | AB113: 90% | AC113: =IF(Z113<672,"LOW",IF(Z113<979,"MEDIUM",IF(Z113<1399,"HIGH",IF(Z113<3501,"VERY HIGH",0)))) -> LOW
R114: =O114*P114*Q114 -> 0 | S114: =IF(R114<672,"LOW",IF(R114<979,"MEDIUM",IF(R114<1399,"HIGH",IF(R114<3501,"VERY HIGH",0)))) -> LOW | T114: Elimination 1. Substitution: 1. Engineering Control: 1. Administrative Control: 1. PPE: 1. | Y114: =SUM('[1]Scores-protected'!A128:D128) -> 0.0% | Z114: =R114-(R114*Y114) -> 0 | AA114: =IF(Y114<10%,"None",IF(Y114<50%,"Unsatisfactory",IF(Y114<80%,"Requires Improvements",IF(Y114>79%,"Satisfactory",0)))) -> None | AB114: 90% | AC114: =IF(Z114<672,"LOW",IF(Z114<979,"MEDIUM",IF(Z114<1399,"HIGH",IF(Z114<3501,"VERY HIGH",0)))) -> LOW
R115: =O115*P115*Q115 -> 0 | S115: =IF(R115<672,"LOW",IF(R115<979,"MEDIUM",IF(R115<1399,"HIGH",IF(R115<3501,"VERY HIGH",0)))) -> LOW | T115: Elimination 1. Substitution: 1. Engineering Control: 1. Administrative Control: 1. PPE: 1. | Y115: =SUM('[1]Scores-protected'!A129:D129) -> 0.0% | Z115: =R115-(R115*Y115) -> 0 | AA115: =IF(Y115<10%,"None",IF(Y115<50%,"Unsatisfactory",IF(Y115<80%,"Requires Improvements",IF(Y115>79%,"Satisfactory",0)))) -> None | AB115: 90% | AC115: =IF(Z115<672,"LOW",IF(Z115<979,"MEDIUM",IF(Z115<1399,"HIGH",IF(Z115<3501,"VERY HIGH",0)))) -> LOW
R116: =O116*P116*Q116 -> 0 | S116: =IF(R116<672,"LOW",IF(R116<979,"MEDIUM",IF(R116<1399,"HIGH",IF(R116<3501,"VERY HIGH",0)))) -> LOW | T116: Elimination 1. Substitution: 1. Engineering Control: 1. Administrative Control: 1. PPE: 1. | Y116: =SUM('[1]Scores-protected'!A130:D130) -> 0.0% | Z116: =R116-(R116*Y116) -> 0 | AA116: =IF(Y116<10%,"None",IF(Y116<50%,"Unsatisfactory",IF(Y116<80%,"Requires Improvements",IF(Y116>79%,"Satisfactory",0)))) -> None | AB116: 90% | AC116: =IF(Z116<672,"LOW",IF(Z116<979,"MEDIUM",IF(Z116<1399,"HIGH",IF(Z116<3501,"VERY HIGH",0)))) -> LOW
R117: =O117*P117*Q117 -> 0 | S117: =IF(R117<672,"LOW",IF(R117<979,"MEDIUM",IF(R117<1399,"HIGH",IF(R117<3501,"VERY HIGH",0)))) -> LOW | T117: Elimination 1. Substitution: 1. Engineering Control: 1. Administrative Control: 1. PPE: 1. | Y117: =SUM('[1]Scores-protected'!A131:D131) -> 0.0% | Z117: =R117-(R117*Y117) -> 0 | AA117: =IF(Y117<10%,"None",IF(Y117<50%,"Unsatisfactory",IF(Y117<80%,"Requires Improvements",IF(Y117>79%,"Satisfactory",0)))) -> None | AB117: 90% | AC117: =IF(Z117<672,"LOW",IF(Z117<979,"MEDIUM",IF(Z117<1399,"HIGH",IF(Z117<3501,"VERY HIGH",0)))) -> LOW
R118: =O118*P118*Q118 -> 0 | S118: =IF(R118<672,"LOW",IF(R118<979,"MEDIUM",IF(R118<1399,"HIGH",IF(R118<3501,"VERY HIGH",0)))) -> LOW | T118: Elimination 1. Substitution: 1. Engineering Control: 1. Administrative Control: 1. PPE: 1. | Y118: =SUM('[1]Scores-protected'!A132:D132) -> 0.0% | Z118: =R118-(R118*Y118) -> 0 | AA118: =IF(Y118<10%,"None",IF(Y118<50%,"Unsatisfactory",IF(Y118<80%,"Requires Improvements",IF(Y118>79%,"Satisfactory",0)))) -> None | AB118: 90% | AC118: =IF(Z118<672,"LOW",IF(Z118<979,"MEDIUM",IF(Z118<1399,"HIGH",IF(Z118<3501,"VERY HIGH",0)))) -> LOW
R119: =O119*P119*Q119 -> 0 | S119: =IF(R119<672,"LOW",IF(R119<979,"MEDIUM",IF(R119<1399,"HIGH",IF(R119<3501,"VERY HIGH",0)))) -> LOW | T119: Elimination 1. Substitution: 1. Engineering Control: 1. Administrative Control: 1. PPE: 1. | Y119: =SUM('[1]Scores-protected'!A133:D133) -> 0.0% | Z119: =R119-(R119*Y119) -> 0 | AA119: =IF(Y119<10%,"None",IF(Y119<50%,"Unsatisfactory",IF(Y119<80%,"Requires Improvements",IF(Y119>79%,"Satisfactory",0)))) -> None | AB119: 90% | AC119: =IF(Z119<672,"LOW",IF(Z119<979,"MEDIUM",IF(Z119<1399,"HIGH",IF(Z119<3501,"VERY HIGH",0)))) -> LOW
R120: =O120*P120*Q120 -> 0 | S120: =IF(R120<672,"LOW",IF(R120<979,"MEDIUM",IF(R120<1399,"HIGH",IF(R120<3501,"VERY HIGH",0)))) -> LOW | T120: Elimination 1. Substitution: 1. Engineering Control: 1. Administrative Control: 1. PPE: 1. | Y120: =SUM('[1]Scores-protected'!A134:D134) -> 0.0% | Z120: =R120-(R120*Y120) -> 0 | AA120: =IF(Y120<10%,"None",IF(Y120<50%,"Unsatisfactory",IF(Y120<80%,"Requires Improvements",IF(Y120>79%,"Satisfactory",0)))) -> None | AB120: 90% | AC120: =IF(Z120<672,"LOW",IF(Z120<979,"MEDIUM",IF(Z120<1399,"HIGH",IF(Z120<3501,"VERY HIGH",0)))) -> LOW
R121: =O121*P121*Q121 -> 0 | S121: =IF(R121<672,"LOW",IF(R121<979,"MEDIUM",IF(R121<1399,"HIGH",IF(R121<3501,"VERY HIGH",0)))) -> LOW | T121: Elimination 1. Substitution: 1. Engineering Control: 1. Administrative Control: 1. PPE: 1. | Y121: =SUM('[1]Scores-protected'!A135:D135) -> 0.0% | Z121: =R121-(R121*Y121) -> 0 | AA121: =IF(Y121<10%,"None",IF(Y121<50%,"Unsatisfactory",IF(Y121<80%,"Requires Improvements",IF(Y121>79%,"Satisfactory",0)))) -> None | AB121: 90% | AC121: =IF(Z121<672,"LOW",IF(Z121<979,"MEDIUM",IF(Z121<1399,"HIGH",IF(Z121<3501,"VERY HIGH",0)))) -> LOW
R122: =O122*P122*Q122 -> 0 | S122: =IF(R122<672,"LOW",IF(R122<979,"MEDIUM",IF(R122<1399,"HIGH",IF(R122<3501,"VERY HIGH",0)))) -> LOW | T122: Elimination 1. Substitution: 1. Engineering Control: 1. Administrative Control: 1. PPE: 1. | Y122: =SUM('[1]Scores-protected'!A136:D136) -> 0.0% | Z122: =R122-(R122*Y122) -> 0 | AA122: =IF(Y122<10%,"None",IF(Y122<50%,"Unsatisfactory",IF(Y122<80%,"Requires Improvements",IF(Y122>79%,"Satisfactory",0)))) -> None | AB122: 90% | AC122: =IF(Z122<672,"LOW",IF(Z122<979,"MEDIUM",IF(Z122<1399,"HIGH",IF(Z122<3501,"VERY HIGH",0)))) -> LOW
R123: =O123*P123*Q123 -> 0 | S123: =IF(R123<672,"LOW",IF(R123<979,"MEDIUM",IF(R123<1399,"HIGH",IF(R123<3501,"VERY HIGH",0)))) -> LOW | T123: Elimination 1. Substitution: 1. Engineering Control: 1. Administrative Control: 1. PPE: 1. | Y123: =SUM('[1]Scores-protected'!A137:D137) -> 0.0% | Z123: =R123-(R123*Y123) -> 0 | AA123: =IF(Y123<10%,"None",IF(Y123<50%,"Unsatisfactory",IF(Y123<80%,"Requires Improvements",IF(Y123>79%,"Satisfactory",0)))) -> None | AB123: 90% | AC123: =IF(Z123<672,"LOW",IF(Z123<979,"MEDIUM",IF(Z123<1399,"HIGH",IF(Z123<3501,"VERY HIGH",0)))) -> LOW
R124: =O124*P124*Q124 -> 0 | S124: =IF(R124<672,"LOW",IF(R124<979,"MEDIUM",IF(R124<1399,"HIGH",IF(R124<3501,"VERY HIGH",0)))) -> LOW | T124: Elimination 1. Substitution: 1. Engineering Control: 1. Administrative Control: 1. PPE: 1. | Y124: =SUM('[1]Scores-protected'!A138:D138) -> 0.0% | Z124: =R124-(R124*Y124) -> 0 | AA124: =IF(Y124<10%,"None",IF(Y124<50%,"Unsatisfactory",IF(Y124<80%,"Requires Improvements",IF(Y124>79%,"Satisfactory",0)))) -> None | AB124: 90% | AC124: =IF(Z124<672,"LOW",IF(Z124<979,"MEDIUM",IF(Z124<1399,"HIGH",IF(Z124<3501,"VERY HIGH",0)))) -> LOW
R125: =O125*P125*Q125 -> 0 | S125: =IF(R125<672,"LOW",IF(R125<979,"MEDIUM",IF(R125<1399,"HIGH",IF(R125<3501,"VERY HIGH",0)))) -> LOW | T125: Elimination 1. Substitution: 1. Engineering Control: 1. Administrative Control: 1. PPE: 1. | Y125: =SUM('[1]Scores-protected'!A139:D139) -> 0.0% | Z125: =R125-(R125*Y125) -> 0 | AA125: =IF(Y125<10%,"None",IF(Y125<50%,"Unsatisfactory",IF(Y125<80%,"Requires Improvements",IF(Y125>79%,"Satisfactory",0)))) -> None | AB125: 90% | AC125: =IF(Z125<672,"LOW",IF(Z125<979,"MEDIUM",IF(Z125<1399,"HIGH",IF(Z125<3501,"VERY HIGH",0)))) -> LOW
R126: =O126*P126*Q126 -> 0 | S126: =IF(R126<672,"LOW",IF(R126<979,"MEDIUM",IF(R126<1399,"HIGH",IF(R126<3501,"VERY HIGH",0)))) -> LOW | T126: Elimination 1. Substitution: 1. Engineering Control: 1. Administrative Control: 1. PPE: 1. | Y126: =SUM('[1]Scores-protected'!A140:D140) -> 0.0% | Z126: =R126-(R126*Y126) -> 0 | AA126: =IF(Y126<10%,"None",IF(Y126<50%,"Unsatisfactory",IF(Y126<80%,"Requires Improvements",IF(Y126>79%,"Satisfactory",0)))) -> None | AB126: 90% | AC126: =IF(Z126<672,"LOW",IF(Z126<979,"MEDIUM",IF(Z126<1399,"HIGH",IF(Z126<3501,"VERY HIGH",0)))) -> LOW
R127: =O127*P127*Q127 -> 0 | S127: =IF(R127<672,"LOW",IF(R127<979,"MEDIUM",IF(R127<1399,"HIGH",IF(R127<3501,"VERY HIGH",0)))) -> LOW | T127: Elimination 1. Substitution: 1. Engineering Control: 1. Administrative Control: 1. PPE: 1. | Y127: =SUM('[1]Scores-protected'!A141:D141) -> 0.0% | Z127: =R127-(R127*Y127) -> 0 | AA127: =IF(Y127<10%,"None",IF(Y127<50%,"Unsatisfactory",IF(Y127<80%,"Requires Improvements",IF(Y127>79%,"Satisfactory",0)))) -> None | AB127: 90% | AC127: =IF(Z127<672,"LOW",IF(Z127<979,"MEDIUM",IF(Z127<1399,"HIGH",IF(Z127<3501,"VERY HIGH",0)))) -> LOW
R128: =O128*P128*Q128 -> 0 | S128: =IF(R128<672,"LOW",IF(R128<979,"MEDIUM",IF(R128<1399,"HIGH",IF(R128<3501,"VERY HIGH",0)))) -> LOW | T128: Elimination 1. Substitution: 1. Engineering Control: 1. Administrative Control: 1. PPE: 1. | Y128: =SUM('[1]Scores-protected'!A142:D142) -> 0.0% | Z128: =R128-(R128*Y128) -> 0 | AA128: =IF(Y128<10%,"None",IF(Y128<50%,"Unsatisfactory",IF(Y128<80%,"Requires Improvements",IF(Y128>79%,"Satisfactory",0)))) -> None | AB128: 90% | AC128: =IF(Z128<672,"LOW",IF(Z128<979,"MEDIUM",IF(Z128<1399,"HIGH",IF(Z128<3501,"VERY HIGH",0)))) -> LOW
R129: =O129*P129*Q129 -> 0 | S129: =IF(R129<672,"LOW",IF(R129<979,"MEDIUM",IF(R129<1399,"HIGH",IF(R129<3501,"VERY HIGH",0)))) -> LOW | T129: Elimination 1. Substitution: 1. Engineering Control: 1. Administrative Control: 1. PPE: 1. | Y129: =SUM('[1]Scores-protected'!A143:D143) -> 0.0% | Z129: =R129-(R129*Y129) -> 0 | AA129: =IF(Y129<10%,"None",IF(Y129<50%,"Unsatisfactory",IF(Y129<80%,"Requires Improvements",IF(Y129>79%,"Satisfactory",0)))) -> None | AB129: 90% | AC129: =IF(Z129<672,"LOW",IF(Z129<979,"MEDIUM",IF(Z129<1399,"HIGH",IF(Z129<3501,"VERY HIGH",0)))) -> LOW
R130: =O130*P130*Q130 -> 0 | S130: =IF(R130<672,"LOW",IF(R130<979,"MEDIUM",IF(R130<1399,"HIGH",IF(R130<3501,"VERY HIGH",0)))) -> LOW | T130: Elimination 1. Substitution: 1. Engineering Control: 1. Administrative Control: 1. PPE: 1. | Y130: =SUM('[1]Scores-protected'!A144:D144) -> 0.0% | Z130: =R130-(R130*Y130) -> 0 | AA130: =IF(Y130<10%,"None",IF(Y130<50%,"Unsatisfactory",IF(Y130<80%,"Requires Improvements",IF(Y130>79%,"Satisfactory",0)))) -> None | AB130: 90% | AC130: =IF(Z130<672,"LOW",IF(Z130<979,"MEDIUM",IF(Z130<1399,"HIGH",IF(Z130<3501,"VERY HIGH",0)))) -> LOW
R131: =O131*P131*Q131 -> 0 | S131: =IF(R131<672,"LOW",IF(R131<979,"MEDIUM",IF(R131<1399,"HIGH",IF(R131<3501,"VERY HIGH",0)))) -> LOW | T131: Elimination 1. Substitution: 1. Engineering Control: 1. Administrative Control: 1. PPE: 1. | Y131: =SUM('[1]Scores-protected'!A145:D145) -> 0.0% | Z131: =R131-(R131*Y131) -> 0 | AA131: =IF(Y131<10%,"None",IF(Y131<50%,"Unsatisfactory",IF(Y131<80%,"Requires Improvements",IF(Y131>79%,"Satisfactory",0)))) -> None | AB131: 90% | AC131: =IF(Z131<672,"LOW",IF(Z131<979,"MEDIUM",IF(Z131<1399,"HIGH",IF(Z131<3501,"VERY HIGH",0)))) -> LOW
R132: =O132*P132*Q132 -> 0 | S132: =IF(R132<672,"LOW",IF(R132<979,"MEDIUM",IF(R132<1399,"HIGH",IF(R132<3501,"VERY HIGH",0)))) -> LOW | T132: Elimination 1. Substitution: 1. Engineering Control: 1. Administrative Control: 1. PPE: 1. | Y132: =SUM('[1]Scores-protected'!A146:D146) -> 0.0% | Z132: =R132-(R132*Y132) -> 0 | AA132: =IF(Y132<10%,"None",IF(Y132<50%,"Unsatisfactory",IF(Y132<80%,"Requires Improvements",IF(Y132>79%,"Satisfactory",0)))) -> None | AB132: 90% | AC132: =IF(Z132<672,"LOW",IF(Z132<979,"MEDIUM",IF(Z132<1399,"HIGH",IF(Z132<3501,"VERY HIGH",0)))) -> LOW
R133: =O133*P133*Q133 -> 0 | S133: =IF(R133<672,"LOW",IF(R133<979,"MEDIUM",IF(R133<1399,"HIGH",IF(R133<3501,"VERY HIGH",0)))) -> LOW | T133: Elimination 1. Substitution: 1. Engineering Control: 1. Administrative Control: 1. PPE: 1. | Y133: =SUM('[1]Scores-protected'!A147:D147) -> 0.0% | Z133: =R133-(R133*Y133) -> 0 | AA133: =IF(Y133<10%,"None",IF(Y133<50%,"Unsatisfactory",IF(Y133<80%,"Requires Improvements",IF(Y133>79%,"Satisfactory",0)))) -> None | AB133: 90% | AC133: =IF(Z133<672,"LOW",IF(Z133<979,"MEDIUM",IF(Z133<1399,"HIGH",IF(Z133<3501,"VERY HIGH",0)))) -> LOW
R134: =O134*P134*Q134 -> 0 | S134: =IF(R134<672,"LOW",IF(R134<979,"MEDIUM",IF(R134<1399,"HIGH",IF(R134<3501,"VERY HIGH",0)))) -> LOW | T134: Elimination 1. Substitution: 1. Engineering Control: 1. Administrative Control: 1. PPE: 1. | Y134: =SUM('[1]Scores-protected'!A148:D148) -> 0.0% | Z134: =R134-(R134*Y134) -> 0 | AA134: =IF(Y134<10%,"None",IF(Y134<50%,"Unsatisfactory",IF(Y134<80%,"Requires Improvements",IF(Y134>79%,"Satisfactory",0)))) -> None | AB134: 90% | AC134: =IF(Z134<672,"LOW",IF(Z134<979,"MEDIUM",IF(Z134<1399,"HIGH",IF(Z134<3501,"VERY HIGH",0)))) -> LOW
R135: =O135*P135*Q135 -> 0 | S135: =IF(R135<672,"LOW",IF(R135<979,"MEDIUM",IF(R135<1399,"HIGH",IF(R135<3501,"VERY HIGH",0)))) -> LOW | T135: Elimination 1. Substitution: 1. Engineering Control: 1. Administrative Control: 1. PPE: 1. | Y135: =SUM('[1]Scores-protected'!A149:D149) -> 0.0% | Z135: =R135-(R135*Y135) -> 0 | AA135: =IF(Y135<10%,"None",IF(Y135<50%,"Unsatisfactory",IF(Y135<80%,"Requires Improvements",IF(Y135>79%,"Satisfactory",0)))) -> None | AB135: 90% | AC135: =IF(Z135<672,"LOW",IF(Z135<979,"MEDIUM",IF(Z135<1399,"HIGH",IF(Z135<3501,"VERY HIGH",0)))) -> LOW
R136: =O136*P136*Q136 -> 0 | S136: =IF(R136<672,"LOW",IF(R136<979,"MEDIUM",IF(R136<1399,"HIGH",IF(R136<3501,"VERY HIGH",0)))) -> LOW | T136: Elimination 1. Substitution: 1. Engineering Control: 1. Administrative Control: 1. PPE: 1. | Y136: =SUM('[1]Scores-protected'!A150:D150) -> 0.0% | Z136: =R136-(R136*Y136) -> 0 | AA136: =IF(Y136<10%,"None",IF(Y136<50%,"Unsatisfactory",IF(Y136<80%,"Requires Improvements",IF(Y136>79%,"Satisfactory",0)))) -> None | AB136: 90% | AC136: =IF(Z136<672,"LOW",IF(Z136<979,"MEDIUM",IF(Z136<1399,"HIGH",IF(Z136<3501,"VERY HIGH",0)))) -> LOW
R137: =O137*P137*Q137 -> 0 | S137: =IF(R137<672,"LOW",IF(R137<979,"MEDIUM",IF(R137<1399,"HIGH",IF(R137<3501,"VERY HIGH",0)))) -> LOW | T137: Elimination 1. Substitution: 1. Engineering Control: 1. Administrative Control: 1. PPE: 1. | Y137: =SUM('[1]Scores-protected'!A151:D151) -> 0.0% | Z137: =R137-(R137*Y137) -> 0 | AA137: =IF(Y137<10%,"None",IF(Y137<50%,"Unsatisfactory",IF(Y137<80%,"Requires Improvements",IF(Y137>79%,"Satisfactory",0)))) -> None | AB137: 90% | AC137: =IF(Z137<672,"LOW",IF(Z137<979,"MEDIUM",IF(Z137<1399,"HIGH",IF(Z137<3501,"VERY HIGH",0)))) -> LOW
R138: =O138*P138*Q138 -> 0 | S138: =IF(R138<672,"LOW",IF(R138<979,"MEDIUM",IF(R138<1399,"HIGH",IF(R138<3501,"VERY HIGH",0)))) -> LOW | T138: Elimination 1. Substitution: 1. Engineering Control: 1. Administrative Control: 1. PPE: 1. | Y138: =SUM('[1]Scores-protected'!A152:D152) -> 0.0% | Z138: =R138-(R138*Y138) -> 0 | AA138: =IF(Y138<10%,"None",IF(Y138<50%,"Unsatisfactory",IF(Y138<80%,"Requires Improvements",IF(Y138>79%,"Satisfactory",0)))) -> None | AB138: 90% | AC138: =IF(Z138<672,"LOW",IF(Z138<979,"MEDIUM",IF(Z138<1399,"HIGH",IF(Z138<3501,"VERY HIGH",0)))) -> LOW
R139: =O139*P139*Q139 -> 0 | S139: =IF(R139<672,"LOW",IF(R139<979,"MEDIUM",IF(R139<1399,"HIGH",IF(R139<3501,"VERY HIGH",0)))) -> LOW | T139: Elimination 1. Substitution: 1. Engineering Control: 1. Administrative Control: 1. PPE: 1. | Y139: =SUM('[1]Scores-protected'!A153:D153) -> 0.0% | Z139: =R139-(R139*Y139) -> 0 | AA139: =IF(Y139<10%,"None",IF(Y139<50%,"Unsatisfactory",IF(Y139<80%,"Requires Improvements",IF(Y139>79%,"Satisfactory",0)))) -> None | AB139: 90% | AC139: =IF(Z139<672,"LOW",IF(Z139<979,"MEDIUM",IF(Z139<1399,"HIGH",IF(Z139<3501,"VERY HIGH",0)))) -> LOW
R140: =O140*P140*Q140 -> 0 | S140: =IF(R140<672,"LOW",IF(R140<979,"MEDIUM",IF(R140<1399,"HIGH",IF(R140<3501,"VERY HIGH",0)))) -> LOW | T140: Elimination 1. Substitution: 1. Engineering Control: 1. Administrative Control: 1. PPE: 1. | Y140: =SUM('[1]Scores-protected'!A154:D154) -> 0.0% | Z140: =R140-(R140*Y140) -> 0 | AA140: =IF(Y140<10%,"None",IF(Y140<50%,"Unsatisfactory",IF(Y140<80%,"Requires Improvements",IF(Y140>79%,"Satisfactory",0)))) -> None | AB140: 90% | AC140: =IF(Z140<672,"LOW",IF(Z140<979,"MEDIUM",IF(Z140<1399,"HIGH",IF(Z140<3501,"VERY HIGH",0)))) -> LOW
R141: =O141*P141*Q141 -> 0 | S141: =IF(R141<672,"LOW",IF(R141<979,"MEDIUM",IF(R141<1399,"HIGH",IF(R141<3501,"VERY HIGH",0)))) -> LOW | T141: Elimination 1. Substitution: 1. Engineering Control: 1. Administrative Control: 1. PPE: 1. | Y141: =SUM('[1]Scores-protected'!A155:D155) -> 0.0% | Z141: =R141-(R141*Y141) -> 0 | AA141: =IF(Y141<10%,"None",IF(Y141<50%,"Unsatisfactory",IF(Y141<80%,"Requires Improvements",IF(Y141>79%,"Satisfactory",0)))) -> None | AB141: 90% | AC141: =IF(Z141<672,"LOW",IF(Z141<979,"MEDIUM",IF(Z141<1399,"HIGH",IF(Z141<3501,"VERY HIGH",0)))) -> LOW
R142: =O142*P142*Q142 -> 0 | S142: =IF(R142<672,"LOW",IF(R142<979,"MEDIUM",IF(R142<1399,"HIGH",IF(R142<3501,"VERY HIGH",0)))) -> LOW | T142: Elimination 1. Substitution: 1. Engineering Control: 1. Administrative Control: 1. PPE: 1. | Y142: =SUM('[1]Scores-protected'!A156:D156) -> 0.0% | Z142: =R142-(R142*Y142) -> 0 | AA142: =IF(Y142<10%,"None",IF(Y142<50%,"Unsatisfactory",IF(Y142<80%,"Requires Improvements",IF(Y142>79%,"Satisfactory",0)))) -> None | AB142: 90% | AC142: =IF(Z142<672,"LOW",IF(Z142<979,"MEDIUM",IF(Z142<1399,"HIGH",IF(Z142<3501,"VERY HIGH",0)))) -> LOW
R143: =O143*P143*Q143 -> 0 | S143: =IF(R143<672,"LOW",IF(R143<979,"MEDIUM",IF(R143<1399,"HIGH",IF(R143<3501,"VERY HIGH",0)))) -> LOW | T143: Elimination 1. Substitution: 1. Engineering Control: 1. Administrative Control: 1. PPE: 1. | Y143: =SUM('[1]Scores-protected'!A157:D157) -> 0.0% | Z143: =R143-(R143*Y143) -> 0 | AA143: =IF(Y143<10%,"None",IF(Y143<50%,"Unsatisfactory",IF(Y143<80%,"Requires Improvements",IF(Y143>79%,"Satisfactory",0)))) -> None | AB143: 90% | AC143: =IF(Z143<672,"LOW",IF(Z143<979,"MEDIUM",IF(Z143<1399,"HIGH",IF(Z143<3501,"VERY HIGH",0)))) -> LOW
R144: =O144*P144*Q144 -> 0 | S144: =IF(R144<672,"LOW",IF(R144<979,"MEDIUM",IF(R144<1399,"HIGH",IF(R144<3501,"VERY HIGH",0)))) -> LOW | T144: Elimination 1. Substitution: 1. Engineering Control: 1. Administrative Control: 1. PPE: 1. | Y144: =SUM('[1]Scores-protected'!A158:D158) -> 0.0% | Z144: =R144-(R144*Y144) -> 0 | AA144: =IF(Y144<10%,"None",IF(Y144<50%,"Unsatisfactory",IF(Y144<80%,"Requires Improvements",IF(Y144>79%,"Satisfactory",0)))) -> None | AB144: 90% | AC144: =IF(Z144<672,"LOW",IF(Z144<979,"MEDIUM",IF(Z144<1399,"HIGH",IF(Z144<3501,"VERY HIGH",0)))) -> LOW
R145: =O145*P145*Q145 -> 0 | S145: =IF(R145<672,"LOW",IF(R145<979,"MEDIUM",IF(R145<1399,"HIGH",IF(R145<3501,"VERY HIGH",0)))) -> LOW | T145: Elimination 1. Substitution: 1. Engineering Control: 1. Administrative Control: 1. PPE: 1. | Y145: =SUM('[1]Scores-protected'!A159:D159) -> 0.0% | Z145: =R145-(R145*Y145) -> 0 | AA145: =IF(Y145<10%,"None",IF(Y145<50%,"Unsatisfactory",IF(Y145<80%,"Requires Improvements",IF(Y145>79%,"Satisfactory",0)))) -> None | AB145: 90% | AC145: =IF(Z145<672,"LOW",IF(Z145<979,"MEDIUM",IF(Z145<1399,"HIGH",IF(Z145<3501,"VERY HIGH",0)))) -> LOW
R146: =O146*P146*Q146 -> 0 | S146: =IF(R146<672,"LOW",IF(R146<979,"MEDIUM",IF(R146<1399,"HIGH",IF(R146<3501,"VERY HIGH",0)))) -> LOW | T146: Elimination 1. Substitution: 1. Engineering Control: 1. Administrative Control: 1. PPE: 1. | Y146: =SUM('[1]Scores-protected'!A160:D160) -> 0.0% | Z146: =R146-(R146*Y146) -> 0 | AA146: =IF(Y146<10%,"None",IF(Y146<50%,"Unsatisfactory",IF(Y146<80%,"Requires Improvements",IF(Y146>79%,"Satisfactory",0)))) -> None | AB146: 90% | AC146: =IF(Z146<672,"LOW",IF(Z146<979,"MEDIUM",IF(Z146<1399,"HIGH",IF(Z146<3501,"VERY HIGH",0)))) -> LOW
R147: =O147*P147*Q147 -> 0 | S147: =IF(R147<672,"LOW",IF(R147<979,"MEDIUM",IF(R147<1399,"HIGH",IF(R147<3501,"VERY HIGH",0)))) -> LOW | T147: Elimination 1. Substitution: 1. Engineering Control: 1. Administrative Control: 1. PPE: 1. | Y147: =SUM('[1]Scores-protected'!A161:D161) -> 0.0% | Z147: =R147-(R147*Y147) -> 0 | AA147: =IF(Y147<10%,"None",IF(Y147<50%,"Unsatisfactory",IF(Y147<80%,"Requires Improvements",IF(Y147>79%,"Satisfactory",0)))) -> None | AB147: 90% | AC147: =IF(Z147<672,"LOW",IF(Z147<979,"MEDIUM",IF(Z147<1399,"HIGH",IF(Z147<3501,"VERY HIGH",0)))) -> LOW
R148: =O148*P148*Q148 -> 0 | S148: =IF(R148<672,"LOW",IF(R148<979,"MEDIUM",IF(R148<1399,"HIGH",IF(R148<3501,"VERY HIGH",0)))) -> LOW | T148: Elimination 1. Substitution: 1. Engineering Control: 1. Administrative Control: 1. PPE: 1. | Y148: =SUM('[1]Scores-protected'!A162:D162) -> 0.0% | Z148: =R148-(R148*Y148) -> 0 | AA148: =IF(Y148<10%,"None",IF(Y148<50%,"Unsatisfactory",IF(Y148<80%,"Requires Improvements",IF(Y148>79%,"Satisfactory",0)))) -> None | AB148: 90% | AC148: =IF(Z148<672,"LOW",IF(Z148<979,"MEDIUM",IF(Z148<1399,"HIGH",IF(Z148<3501,"VERY HIGH",0)))) -> LOW
R149: =O149*P149*Q149 -> 0 | S149: =IF(R149<672,"LOW",IF(R149<979,"MEDIUM",IF(R149<1399,"HIGH",IF(R149<3501,"VERY HIGH",0)))) -> LOW | T149: Elimination 1. Substitution: 1. Engineering Control: 1. Administrative Control: 1. PPE: 1. | Y149: =SUM('[1]Scores-protected'!A163:D163) -> 0.0% | Z149: =R149-(R149*Y149) -> 0 | AA149: =IF(Y149<10%,"None",IF(Y149<50%,"Unsatisfactory",IF(Y149<80%,"Requires Improvements",IF(Y149>79%,"Satisfactory",0)))) -> None | AB149: 90% | AC149: =IF(Z149<672,"LOW",IF(Z149<979,"MEDIUM",IF(Z149<1399,"HIGH",IF(Z149<3501,"VERY HIGH",0)))) -> LOW
R150: =O150*P150*Q150 -> 0 | S150: =IF(R150<672,"LOW",IF(R150<979,"MEDIUM",IF(R150<1399,"HIGH",IF(R150<3501,"VERY HIGH",0)))) -> LOW | T150: Elimination 1. Substitution: 1. Engineering Control: 1. Administrative Control: 1. PPE: 1. | Y150: =SUM('[1]Scores-protected'!A164:D164) -> 0.0% | Z150: =R150-(R150*Y150) -> 0 | AA150: =IF(Y150<10%,"None",IF(Y150<50%,"Unsatisfactory",IF(Y150<80%,"Requires Improvements",IF(Y150>79%,"Satisfactory",0)))) -> None | AB150: 90% | AC150: =IF(Z150<672,"LOW",IF(Z150<979,"MEDIUM",IF(Z150<1399,"HIGH",IF(Z150<3501,"VERY HIGH",0)))) -> LOW
R151: =O151*P151*Q151 -> 0 | S151: =IF(R151<672,"LOW",IF(R151<979,"MEDIUM",IF(R151<1399,"HIGH",IF(R151<3501,"VERY HIGH",0)))) -> LOW | T151: Elimination 1. Substitution: 1. Engineering Control: 1. Administrative Control: 1. PPE: 1. | Y151: =SUM('[1]Scores-protected'!A165:D165) -> 0.0% | Z151: =R151-(R151*Y151) -> 0 | AA151: =IF(Y151<10%,"None",IF(Y151<50%,"Unsatisfactory",IF(Y151<80%,"Requires Improvements",IF(Y151>79%,"Satisfactory",0)))) -> None | AB151: 90% | AC151: =IF(Z151<672,"LOW",IF(Z151<979,"MEDIUM",IF(Z151<1399,"HIGH",IF(Z151<3501,"VERY HIGH",0)))) -> LOW
R152: =O152*P152*Q152 -> 0 | S152: =IF(R152<672,"LOW",IF(R152<979,"MEDIUM",IF(R152<1399,"HIGH",IF(R152<3501,"VERY HIGH",0)))) -> LOW | T152: Elimination 1. Substitution: 1. Engineering Control: 1. Administrative Control: 1. PPE: 1. | Y152: =SUM('[1]Scores-protected'!A166:D166) -> 0.0% | Z152: =R152-(R152*Y152) -> 0 | AA152: =IF(Y152<10%,"None",IF(Y152<50%,"Unsatisfactory",IF(Y152<80%,"Requires Improvements",IF(Y152>79%,"Satisfactory",0)))) -> None | AB152: 90% | AC152: =IF(Z152<672,"LOW",IF(Z152<979,"MEDIUM",IF(Z152<1399,"HIGH",IF(Z152<3501,"VERY HIGH",0)))) -> LOW
R153: =O153*P153*Q153 -> 0 | S153: =IF(R153<672,"LOW",IF(R153<979,"MEDIUM",IF(R153<1399,"HIGH",IF(R153<3501,"VERY HIGH",0)))) -> LOW | T153: Elimination 1. Substitution: 1. Engineering Control: 1. Administrative Control: 1. PPE: 1. | Y153: =SUM('[1]Scores-protected'!A167:D167) -> 0.0% | Z153: =R153-(R153*Y153) -> 0 | AA153: =IF(Y153<10%,"None",IF(Y153<50%,"Unsatisfactory",IF(Y153<80%,"Requires Improvements",IF(Y153>79%,"Satisfactory",0)))) -> None | AB153: 90% | AC153: =IF(Z153<672,"LOW",IF(Z153<979,"MEDIUM",IF(Z153<1399,"HIGH",IF(Z153<3501,"VERY HIGH",0)))) -> LOW
R154: =O154*P154*Q154 -> 0 | S154: =IF(R154<672,"LOW",IF(R154<979,"MEDIUM",IF(R154<1399,"HIGH",IF(R154<3501,"VERY HIGH",0)))) -> LOW | T154: Elimination 1. Substitution: 1. Engineering Control: 1. Administrative Control: 1. PPE: 1. | Y154: =SUM('[1]Scores-protected'!A168:D168) -> 0.0% | Z154: =R154-(R154*Y154) -> 0 | AA154: =IF(Y154<10%,"None",IF(Y154<50%,"Unsatisfactory",IF(Y154<80%,"Requires Improvements",IF(Y154>79%,"Satisfactory",0)))) -> None | AB154: 90% | AC154: =IF(Z154<672,"LOW",IF(Z154<979,"MEDIUM",IF(Z154<1399,"HIGH",IF(Z154<3501,"VERY HIGH",0)))) -> LOW
R155: =O155*P155*Q155 -> 0 | S155: =IF(R155<672,"LOW",IF(R155<979,"MEDIUM",IF(R155<1399,"HIGH",IF(R155<3501,"VERY HIGH",0)))) -> LOW | T155: Elimination 1. Substitution: 1. Engineering Control: 1. Administrative Control: 1. PPE: 1. | Y155: =SUM('[1]Scores-protected'!A169:D169) -> 0.0% | Z155: =R155-(R155*Y155) -> 0 | AA155: =IF(Y155<10%,"None",IF(Y155<50%,"Unsatisfactory",IF(Y155<80%,"Requires Improvements",IF(Y155>79%,"Satisfactory",0)))) -> None | AB155: 90% | AC155: =IF(Z155<672,"LOW",IF(Z155<979,"MEDIUM",IF(Z155<1399,"HIGH",IF(Z155<3501,"VERY HIGH",0)))) -> LOW
R156: =O156*P156*Q156 -> 0 | S156: =IF(R156<672,"LOW",IF(R156<979,"MEDIUM",IF(R156<1399,"HIGH",IF(R156<3501,"VERY HIGH",0)))) -> LOW | T156: Elimination 1. Substitution: 1. Engineering Control: 1. Administrative Control: 1. PPE: 1. | Y156: =SUM('[1]Scores-protected'!A170:D170) -> 0.0% | Z156: =R156-(R156*Y156) -> 0 | AA156: =IF(Y156<10%,"None",IF(Y156<50%,"Unsatisfactory",IF(Y156<80%,"Requires Improvements",IF(Y156>79%,"Satisfactory",0)))) -> None | AB156: 90% | AC156: =IF(Z156<672,"LOW",IF(Z156<979,"MEDIUM",IF(Z156<1399,"HIGH",IF(Z156<3501,"VERY HIGH",0)))) -> LOW
R157: =O157*P157*Q157 -> 0 | S157: =IF(R157<672,"LOW",IF(R157<979,"MEDIUM",IF(R157<1399,"HIGH",IF(R157<3501,"VERY HIGH",0)))) -> LOW | T157: Elimination 1. Substitution: 1. Engineering Control: 1. Administrative Control: 1. PPE: 1. | Y157: =SUM('[1]Scores-protected'!A171:D171) -> 0.0% | Z157: =R157-(R157*Y157) -> 0 | AA157: =IF(Y157<10%,"None",IF(Y157<50%,"Unsatisfactory",IF(Y157<80%,"Requires Improvements",IF(Y157>79%,"Satisfactory",0)))) -> None | AB157: 90% | AC157: =IF(Z157<672,"LOW",IF(Z157<979,"MEDIUM",IF(Z157<1399,"HIGH",IF(Z157<3501,"VERY HIGH",0)))) -> LOW
R158: =O158*P158*Q158 -> 0 | S158: =IF(R158<672,"LOW",IF(R158<979,"MEDIUM",IF(R158<1399,"HIGH",IF(R158<3501,"VERY HIGH",0)))) -> LOW | T158: Elimination 1. Substitution: 1. Engineering Control: 1. Administrative Control: 1. PPE: 1. | Y158: =SUM('[1]Scores-protected'!A172:D172) -> 0.0% | Z158: =R158-(R158*Y158) -> 0 | AA158: =IF(Y158<10%,"None",IF(Y158<50%,"Unsatisfactory",IF(Y158<80%,"Requires Improvements",IF(Y158>79%,"Satisfactory",0)))) -> None | AB158: 90% | AC158: =IF(Z158<672,"LOW",IF(Z158<979,"MEDIUM",IF(Z158<1399,"HIGH",IF(Z158<3501,"VERY HIGH",0)))) -> LOW
R159: =O159*P159*Q159 -> 0 | S159: =IF(R159<672,"LOW",IF(R159<979,"MEDIUM",IF(R159<1399,"HIGH",IF(R159<3501,"VERY HIGH",0)))) -> LOW | T159: Elimination 1. Substitution: 1. Engineering Control: 1. Administrative Control: 1. PPE: 1. | Y159: =SUM('[1]Scores-protected'!A173:D173) -> 0.0% | Z159: =R159-(R159*Y159) -> 0 | AA159: =IF(Y159<10%,"None",IF(Y159<50%,"Unsatisfactory",IF(Y159<80%,"Requires Improvements",IF(Y159>79%,"Satisfactory",0)))) -> None | AB159: 90% | AC159: =IF(Z159<672,"LOW",IF(Z159<979,"MEDIUM",IF(Z159<1399,"HIGH",IF(Z159<3501,"VERY HIGH",0)))) -> LOW
R160: =O160*P160*Q160 -> 0 | S160: =IF(R160<672,"LOW",IF(R160<979,"MEDIUM",IF(R160<1399,"HIGH",IF(R160<3501,"VERY HIGH",0)))) -> LOW | T160: Elimination 1. Substitution: 1. Engineering Control: 1. Administrative Control: 1. PPE: 1. | Y160: =SUM('[1]Scores-protected'!A174:D174) -> 0.0% | Z160: =R160-(R160*Y160) -> 0 | AA160: =IF(Y160<10%,"None",IF(Y160<50%,"Unsatisfactory",IF(Y160<80%,"Requires Improvements",IF(Y160>79%,"Satisfactory",0)))) -> None | AB160: 90% | AC160: =IF(Z160<672,"LOW",IF(Z160<979,"MEDIUM",IF(Z160<1399,"HIGH",IF(Z160<3501,"VERY HIGH",0)))) -> LOW
R161: =O161*P161*Q161 -> 0 | S161: =IF(R161<672,"LOW",IF(R161<979,"MEDIUM",IF(R161<1399,"HIGH",IF(R161<3501,"VERY HIGH",0)))) -> LOW | T161: Elimination 1. Substitution: 1. Engineering Control: 1. Administrative Control: 1. PPE: 1. | Y161: =SUM('[1]Scores-protected'!A175:D175) -> 0.0% | Z161: =R161-(R161*Y161) -> 0 | AA161: =IF(Y161<10%,"None",IF(Y161<50%,"Unsatisfactory",IF(Y161<80%,"Requires Improvements",IF(Y161>79%,"Satisfactory",0)))) -> None | AB161: 90% | AC161: =IF(Z161<672,"LOW",IF(Z161<979,"MEDIUM",IF(Z161<1399,"HIGH",IF(Z161<3501,"VERY HIGH",0)))) -> LOW
R162: =O162*P162*Q162 -> 0 | S162: =IF(R162<672,"LOW",IF(R162<979,"MEDIUM",IF(R162<1399,"HIGH",IF(R162<3501,"VERY HIGH",0)))) -> LOW | T162: Elimination 1. Substitution: 1. Engineering Control: 1. Administrative Control: 1. PPE: 1. | Y162: =SUM('[1]Scores-protected'!A176:D176) -> 0.0% | Z162: =R162-(R162*Y162) -> 0 | AA162: =IF(Y162<10%,"None",IF(Y162<50%,"Unsatisfactory",IF(Y162<80%,"Requires Improvements",IF(Y162>79%,"Satisfactory",0)))) -> None | AB162: 90% | AC162: =IF(Z162<672,"LOW",IF(Z162<979,"MEDIUM",IF(Z162<1399,"HIGH",IF(Z162<3501,"VERY HIGH",0)))) -> LOW
R163: =O163*P163*Q163 -> 0 | S163: =IF(R163<672,"LOW",IF(R163<979,"MEDIUM",IF(R163<1399,"HIGH",IF(R163<3501,"VERY HIGH",0)))) -> LOW | T163: Elimination 1. Substitution: 1. Engineering Control: 1. Administrative Control: 1. PPE: 1. | Y163: =SUM('[1]Scores-protected'!A177:D177) -> 0.0% | Z163: =R163-(R163*Y163) -> 0 | AA163: =IF(Y163<10%,"None",IF(Y163<50%,"Unsatisfactory",IF(Y163<80%,"Requires Improvements",IF(Y163>79%,"Satisfactory",0)))) -> None | AB163: 90% | AC163: =IF(Z163<672,"LOW",IF(Z163<979,"MEDIUM",IF(Z163<1399,"HIGH",IF(Z163<3501,"VERY HIGH",0)))) -> LOW
R164: =O164*P164*Q164 -> 0 | S164: =IF(R164<672,"LOW",IF(R164<979,"MEDIUM",IF(R164<1399,"HIGH",IF(R164<3501,"VERY HIGH",0)))) -> LOW | T164: Elimination 1. Substitution: 1. Engineering Control: 1. Administrative Control: 1. PPE: 1. | Y164: =SUM('[1]Scores-protected'!A178:D178) -> 0.0% | Z164: =R164-(R164*Y164) -> 0 | AA164: =IF(Y164<10%,"None",IF(Y164<50%,"Unsatisfactory",IF(Y164<80%,"Requires Improvements",IF(Y164>79%,"Satisfactory",0)))) -> None | AB164: 90% | AC164: =IF(Z164<672,"LOW",IF(Z164<979,"MEDIUM",IF(Z164<1399,"HIGH",IF(Z164<3501,"VERY HIGH",0)))) -> LOW
R165: =O165*P165*Q165 -> 0 | S165: =IF(R165<672,"LOW",IF(R165<979,"MEDIUM",IF(R165<1399,"HIGH",IF(R165<3501,"VERY HIGH",0)))) -> LOW | T165: Elimination 1. Substitution: 1. Engineering Control: 1. Administrative Control: 1. PPE: 1. | Y165: =SUM('[1]Scores-protected'!A179:D179) -> 0.0% | Z165: =R165-(R165*Y165) -> 0 | AA165: =IF(Y165<10%,"None",IF(Y165<50%,"Unsatisfactory",IF(Y165<80%,"Requires Improvements",IF(Y165>79%,"Satisfactory",0)))) -> None | AB165: 90% | AC165: =IF(Z165<672,"LOW",IF(Z165<979,"MEDIUM",IF(Z165<1399,"HIGH",IF(Z165<3501,"VERY HIGH",0)))) -> LOW
R166: =O166*P166*Q166 -> 0 | S166: =IF(R166<672,"LOW",IF(R166<979,"MEDIUM",IF(R166<1399,"HIGH",IF(R166<3501,"VERY HIGH",0)))) -> LOW | T166: Elimination 1. Substitution: 1. Engineering Control: 1. Administrative Control: 1. PPE: 1. | Y166: =SUM('[1]Scores-protected'!A180:D180) -> 0.0% | Z166: =R166-(R166*Y166) -> 0 | AA166: =IF(Y166<10%,"None",IF(Y166<50%,"Unsatisfactory",IF(Y166<80%,"Requires Improvements",IF(Y166>79%,"Satisfactory",0)))) -> None | AB166: 90% | AC166: =IF(Z166<672,"LOW",IF(Z166<979,"MEDIUM",IF(Z166<1399,"HIGH",IF(Z166<3501,"VERY HIGH",0)))) -> LOW
R167: =O167*P167*Q167 -> 0 | S167: =IF(R167<672,"LOW",IF(R167<979,"MEDIUM",IF(R167<1399,"HIGH",IF(R167<3501,"VERY HIGH",0)))) -> LOW | T167: Elimination 1. Substitution: 1. Engineering Control: 1. Administrative Control: 1. PPE: 1. | Y167: =SUM('[1]Scores-protected'!A181:D181) -> 0.0% | Z167: =R167-(R167*Y167) -> 0 | AA167: =IF(Y167<10%,"None",IF(Y167<50%,"Unsatisfactory",IF(Y167<80%,"Requires Improvements",IF(Y167>79%,"Satisfactory",0)))) -> None | AB167: 90% | AC167: =IF(Z167<672,"LOW",IF(Z167<979,"MEDIUM",IF(Z167<1399,"HIGH",IF(Z167<3501,"VERY HIGH",0)))) -> LOW
R168: =O168*P168*Q168 -> 0 | S168: =IF(R168<672,"LOW",IF(R168<979,"MEDIUM",IF(R168<1399,"HIGH",IF(R168<3501,"VERY HIGH",0)))) -> LOW | T168: Elimination 1. Substitution: 1. Engineering Control: 1. Administrative Control: 1. PPE: 1. | Y168: =SUM('[1]Scores-protected'!A182:D182) -> 0.0% | Z168: =R168-(R168*Y168) -> 0 | AA168: =IF(Y168<10%,"None",IF(Y168<50%,"Unsatisfactory",IF(Y168<80%,"Requires Improvements",IF(Y168>79%,"Satisfactory",0)))) -> None | AB168: 90% | AC168: =IF(Z168<672,"LOW",IF(Z168<979,"MEDIUM",IF(Z168<1399,"HIGH",IF(Z168<3501,"VERY HIGH",0)))) -> LOW
R169: =O169*P169*Q169 -> 0 | S169: =IF(R169<672,"LOW",IF(R169<979,"MEDIUM",IF(R169<1399,"HIGH",IF(R169<3501,"VERY HIGH",0)))) -> LOW | T169: Elimination 1. Substitution: 1. Engineering Control: 1. Administrative Control: 1. PPE: 1. | Y169: =SUM('[1]Scores-protected'!A183:D183) -> 0.0% | Z169: =R169-(R169*Y169) -> 0 | AA169: =IF(Y169<10%,"None",IF(Y169<50%,"Unsatisfactory",IF(Y169<80%,"Requires Improvements",IF(Y169>79%,"Satisfactory",0)))) -> None | AB169: 90% | AC169: =IF(Z169<672,"LOW",IF(Z169<979,"MEDIUM",IF(Z169<1399,"HIGH",IF(Z169<3501,"VERY HIGH",0)))) -> LOW
R170: =O170*P170*Q170 -> 0 | S170: =IF(R170<672,"LOW",IF(R170<979,"MEDIUM",IF(R170<1399,"HIGH",IF(R170<3501,"VERY HIGH",0)))) -> LOW | T170: Elimination 1. Substitution: 1. Engineering Control: 1. Administrative Control: 1. PPE: 1. | Y170: =SUM('[1]Scores-protected'!A184:D184) -> 0.0% | Z170: =R170-(R170*Y170) -> 0 | AA170: =IF(Y170<10%,"None",IF(Y170<50%,"Unsatisfactory",IF(Y170<80%,"Requires Improvements",IF(Y170>79%,"Satisfactory",0)))) -> None | AB170: 90% | AC170: =IF(Z170<672,"LOW",IF(Z170<979,"MEDIUM",IF(Z170<1399,"HIGH",IF(Z170<3501,"VERY HIGH",0)))) -> LOW
R171: =O171*P171*Q171 -> 0 | S171: =IF(R171<672,"LOW",IF(R171<979,"MEDIUM",IF(R171<1399,"HIGH",IF(R171<3501,"VERY HIGH",0)))) -> LOW | T171: Elimination 1. Substitution: 1. Engineering Control: 1. Administrative Control: 1. PPE: 1. | Y171: =SUM('[1]Scores-protected'!A185:D185) -> 0.0% | Z171: =R171-(R171*Y171) -> 0 | AA171: =IF(Y171<10%,"None",IF(Y171<50%,"Unsatisfactory",IF(Y171<80%,"Requires Improvements",IF(Y171>79%,"Satisfactory",0)))) -> None | AB171: 90% | AC171: =IF(Z171<672,"LOW",IF(Z171<979,"MEDIUM",IF(Z171<1399,"HIGH",IF(Z171<3501,"VERY HIGH",0)))) -> LOW
R172: =O172*P172*Q172 -> 0 | S172: =IF(R172<672,"LOW",IF(R172<979,"MEDIUM",IF(R172<1399,"HIGH",IF(R172<3501,"VERY HIGH",0)))) -> LOW | T172: Elimination 1. Substitution: 1. Engineering Control: 1. Administrative Control: 1. PPE: 1. | Y172: =SUM('[1]Scores-protected'!A186:D186) -> 0.0% | Z172: =R172-(R172*Y172) -> 0 | AA172: =IF(Y172<10%,"None",IF(Y172<50%,"Unsatisfactory",IF(Y172<80%,"Requires Improvements",IF(Y172>79%,"Satisfactory",0)))) -> None | AB172: 90% | AC172: =IF(Z172<672,"LOW",IF(Z172<979,"MEDIUM",IF(Z172<1399,"HIGH",IF(Z172<3501,"VERY HIGH",0)))) -> LOW
R173: =O173*P173*Q173 -> 0 | S173: =IF(R173<672,"LOW",IF(R173<979,"MEDIUM",IF(R173<1399,"HIGH",IF(R173<3501,"VERY HIGH",0)))) -> LOW | T173: Elimination 1. Substitution: 1. Engineering Control: 1. Administrative Control: 1. PPE: 1. | Y173: =SUM('[1]Scores-protected'!A187:D187) -> 0.0% | Z173: =R173-(R173*Y173) -> 0 | AA173: =IF(Y173<10%,"None",IF(Y173<50%,"Unsatisfactory",IF(Y173<80%,"Requires Improvements",IF(Y173>79%,"Satisfactory",0)))) -> None | AB173: 90% | AC173: =IF(Z173<672,"LOW",IF(Z173<979,"MEDIUM",IF(Z173<1399,"HIGH",IF(Z173<3501,"VERY HIGH",0)))) -> LOW
R174: =O174*P174*Q174 -> 0 | S174: =IF(R174<672,"LOW",IF(R174<979,"MEDIUM",IF(R174<1399,"HIGH",IF(R174<3501,"VERY HIGH",0)))) -> LOW | T174: Elimination 1. Substitution: 1. Engineering Control: 1. Administrative Control: 1. PPE: 1. | Y174: =SUM('[1]Scores-protected'!A188:D188) -> 0.0% | Z174: =R174-(R174*Y174) -> 0 | AA174: =IF(Y174<10%,"None",IF(Y174<50%,"Unsatisfactory",IF(Y174<80%,"Requires Improvements",IF(Y174>79%,"Satisfactory",0)))) -> None | AB174: 90% | AC174: =IF(Z174<672,"LOW",IF(Z174<979,"MEDIUM",IF(Z174<1399,"HIGH",IF(Z174<3501,"VERY HIGH",0)))) -> LOW
R175: =O175*P175*Q175 -> 0 | S175: =IF(R175<672,"LOW",IF(R175<979,"MEDIUM",IF(R175<1399,"HIGH",IF(R175<3501,"VERY HIGH",0)))) -> LOW | T175: Elimination 1. Substitution: 1. Engineering Control: 1. Administrative Control: 1. PPE: 1. | Y175: =SUM('[1]Scores-protected'!A189:D189) -> 0.0% | Z175: =R175-(R175*Y175) -> 0 | AA175: =IF(Y175<10%,"None",IF(Y175<50%,"Unsatisfactory",IF(Y175<80%,"Requires Improvements",IF(Y175>79%,"Satisfactory",0)))) -> None | AB175: 90% | AC175: =IF(Z175<672,"LOW",IF(Z175<979,"MEDIUM",IF(Z175<1399,"HIGH",IF(Z175<3501,"VERY HIGH",0)))) -> LOW
R176: =O176*P176*Q176 -> 0 | S176: =IF(R176<672,"LOW",IF(R176<979,"MEDIUM",IF(R176<1399,"HIGH",IF(R176<3501,"VERY HIGH",0)))) -> LOW | T176: Elimination 1. Substitution: 1. Engineering Control: 1. Administrative Control: 1. PPE: 1. | Y176: =SUM('[1]Scores-protected'!A190:D190) -> 0.0% | Z176: =R176-(R176*Y176) -> 0 | AA176: =IF(Y176<10%,"None",IF(Y176<50%,"Unsatisfactory",IF(Y176<80%,"Requires Improvements",IF(Y176>79%,"Satisfactory",0)))) -> None | AB176: 90% | AC176: =IF(Z176<672,"LOW",IF(Z176<979,"MEDIUM",IF(Z176<1399,"HIGH",IF(Z176<3501,"VERY HIGH",0)))) -> LOW
R177: =O177*P177*Q177 -> 0 | S177: =IF(R177<672,"LOW",IF(R177<979,"MEDIUM",IF(R177<1399,"HIGH",IF(R177<3501,"VERY HIGH",0)))) -> LOW | T177: Elimination 1. Substitution: 1. Engineering Control: 1. Administrative Control: 1. PPE: 1. | Y177: =SUM('[1]Scores-protected'!A191:D191) -> 0.0% | Z177: =R177-(R177*Y177) -> 0 | AA177: =IF(Y177<10%,"None",IF(Y177<50%,"Unsatisfactory",IF(Y177<80%,"Requires Improvements",IF(Y177>79%,"Satisfactory",0)))) -> None | AB177: 90% | AC177: =IF(Z177<672,"LOW",IF(Z177<979,"MEDIUM",IF(Z177<1399,"HIGH",IF(Z177<3501,"VERY HIGH",0)))) -> LOW
R178: =O178*P178*Q178 -> 0 | S178: =IF(R178<672,"LOW",IF(R178<979,"MEDIUM",IF(R178<1399,"HIGH",IF(R178<3501,"VERY HIGH",0)))) -> LOW | T178: Elimination 1. Substitution: 1. Engineering Control: 1. Administrative Control: 1. PPE: 1. | Y178: =SUM('[1]Scores-protected'!A192:D192) -> 0.0% | Z178: =R178-(R178*Y178) -> 0 | AA178: =IF(Y178<10%,"None",IF(Y178<50%,"Unsatisfactory",IF(Y178<80%,"Requires Improvements",IF(Y178>79%,"Satisfactory",0)))) -> None | AB178: 90% | AC178: =IF(Z178<672,"LOW",IF(Z178<979,"MEDIUM",IF(Z178<1399,"HIGH",IF(Z178<3501,"VERY HIGH",0)))) -> LOW
R179: =O179*P179*Q179 -> 0 | S179: =IF(R179<672,"LOW",IF(R179<979,"MEDIUM",IF(R179<1399,"HIGH",IF(R179<3501,"VERY HIGH",0)))) -> LOW | T179: Elimination 1. Substitution: 1. Engineering Control: 1. Administrative Control: 1. PPE: 1. | Y179: =SUM('[1]Scores-protected'!A193:D193) -> 0.0% | Z179: =R179-(R179*Y179) -> 0 | AA179: =IF(Y179<10%,"None",IF(Y179<50%,"Unsatisfactory",IF(Y179<80%,"Requires Improvements",IF(Y179>79%,"Satisfactory",0)))) -> None | AB179: 90% | AC179: =IF(Z179<672,"LOW",IF(Z179<979,"MEDIUM",IF(Z179<1399,"HIGH",IF(Z179<3501,"VERY HIGH",0)))) -> LOW
R180: =O180*P180*Q180 -> 0 | S180: =IF(R180<672,"LOW",IF(R180<979,"MEDIUM",IF(R180<1399,"HIGH",IF(R180<3501,"VERY HIGH",0)))) -> LOW | T180: Elimination 1. Substitution: 1. Engineering Control: 1. Administrative Control: 1. PPE: 1. | Y180: =SUM('[1]Scores-protected'!A194:D194) -> 0.0% | Z180: =R180-(R180*Y180) -> 0 | AA180: =IF(Y180<10%,"None",IF(Y180<50%,"Unsatisfactory",IF(Y180<80%,"Requires Improvements",IF(Y180>79%,"Satisfactory",0)))) -> None | AB180: 90% | AC180: =IF(Z180<672,"LOW",IF(Z180<979,"MEDIUM",IF(Z180<1399,"HIGH",IF(Z180<3501,"VERY HIGH",0)))) -> LOW
R181: =O181*P181*Q181 -> 0 | S181: =IF(R181<672,"LOW",IF(R181<979,"MEDIUM",IF(R181<1399,"HIGH",IF(R181<3501,"VERY HIGH",0)))) -> LOW | T181: Elimination 1. Substitution: 1. Engineering Control: 1. Administrative Control: 1. PPE: 1. | Y181: =SUM('[1]Scores-protected'!A195:D195) -> 0.0% | Z181: =R181-(R181*Y181) -> 0 | AA181: =IF(Y181<10%,"None",IF(Y181<50%,"Unsatisfactory",IF(Y181<80%,"Requires Improvements",IF(Y181>79%,"Satisfactory",0)))) -> None | AB181: 90% | AC181: =IF(Z181<672,"LOW",IF(Z181<979,"MEDIUM",IF(Z181<1399,"HIGH",IF(Z181<3501,"VERY HIGH",0)))) -> LOW
R182: =O182*P182*Q182 -> 0 | S182: =IF(R182<672,"LOW",IF(R182<979,"MEDIUM",IF(R182<1399,"HIGH",IF(R182<3501,"VERY HIGH",0)))) -> LOW | T182: Elimination 1. Substitution: 1. Engineering Control: 1. Administrative Control: 1. PPE: 1. | Y182: =SUM('[1]Scores-protected'!A196:D196) -> 0.0% | Z182: =R182-(R182*Y182) -> 0 | AA182: =IF(Y182<10%,"None",IF(Y182<50%,"Unsatisfactory",IF(Y182<80%,"Requires Improvements",IF(Y182>79%,"Satisfactory",0)))) -> None | AB182: 90% | AC182: =IF(Z182<672,"LOW",IF(Z182<979,"MEDIUM",IF(Z182<1399,"HIGH",IF(Z182<3501,"VERY HIGH",0)))) -> LOW
R183: =O183*P183*Q183 -> 0 | S183: =IF(R183<672,"LOW",IF(R183<979,"MEDIUM",IF(R183<1399,"HIGH",IF(R183<3501,"VERY HIGH",0)))) -> LOW | T183: Elimination 1. Substitution: 1. Engineering Control: 1. Administrative Control: 1. PPE: 1. | Y183: =SUM('[1]Scores-protected'!A197:D197) -> 0.0% | Z183: =R183-(R183*Y183) -> 0 | AA183: =IF(Y183<10%,"None",IF(Y183<50%,"Unsatisfactory",IF(Y183<80%,"Requires Improvements",IF(Y183>79%,"Satisfactory",0)))) -> None | AB183: 90% | AC183: =IF(Z183<672,"LOW",IF(Z183<979,"MEDIUM",IF(Z183<1399,"HIGH",IF(Z183<3501,"VERY HIGH",0)))) -> LOW
R184: =O184*P184*Q184 -> 0 | S184: =IF(R184<672,"LOW",IF(R184<979,"MEDIUM",IF(R184<1399,"HIGH",IF(R184<3501,"VERY HIGH",0)))) -> LOW | T184: Elimination 1. Substitution: 1. Engineering Control: 1. Administrative Control: 1. PPE: 1. | Y184: =SUM('[1]Scores-protected'!A198:D198) -> 0.0% | Z184: =R184-(R184*Y184) -> 0 | AA184: =IF(Y184<10%,"None",IF(Y184<50%,"Unsatisfactory",IF(Y184<80%,"Requires Improvements",IF(Y184>79%,"Satisfactory",0)))) -> None | AB184: 90% | AC184: =IF(Z184<672,"LOW",IF(Z184<979,"MEDIUM",IF(Z184<1399,"HIGH",IF(Z184<3501,"VERY HIGH",0)))) -> LOW
R185: =O185*P185*Q185 -> 0 | S185: =IF(R185<672,"LOW",IF(R185<979,"MEDIUM",IF(R185<1399,"HIGH",IF(R185<3501,"VERY HIGH",0)))) -> LOW | T185: Elimination 1. Substitution: 1. Engineering Control: 1. Administrative Control: 1. PPE: 1. | Y185: =SUM('[1]Scores-protected'!A199:D199) -> 0.0% | Z185: =R185-(R185*Y185) -> 0 | AA185: =IF(Y185<10%,"None",IF(Y185<50%,"Unsatisfactory",IF(Y185<80%,"Requires Improvements",IF(Y185>79%,"Satisfactory",0)))) -> None | AB185: 90% | AC185: =IF(Z185<672,"LOW",IF(Z185<979,"MEDIUM",IF(Z185<1399,"HIGH",IF(Z185<3501,"VERY HIGH",0)))) -> LOW
R186: =O186*P186*Q186 -> 0 | S186: =IF(R186<672,"LOW",IF(R186<979,"MEDIUM",IF(R186<1399,"HIGH",IF(R186<3501,"VERY HIGH",0)))) -> LOW | T186: Elimination 1. Substitution: 1. Engineering Control: 1. Administrative Control: 1. PPE: 1. | Y186: =SUM('[1]Scores-protected'!A200:D200) -> 0.0% | Z186: =R186-(R186*Y186) -> 0 | AA186: =IF(Y186<10%,"None",IF(Y186<50%,"Unsatisfactory",IF(Y186<80%,"Requires Improvements",IF(Y186>79%,"Satisfactory",0)))) -> None | AB186: 90% | AC186: =IF(Z186<672,"LOW",IF(Z186<979,"MEDIUM",IF(Z186<1399,"HIGH",IF(Z186<3501,"VERY HIGH",0)))) -> LOW
R187: =O187*P187*Q187 -> 0 | S187: =IF(R187<672,"LOW",IF(R187<979,"MEDIUM",IF(R187<1399,"HIGH",IF(R187<3501,"VERY HIGH",0)))) -> LOW | T187: Elimination 1. Substitution: 1. Engineering Control: 1. Administrative Control: 1. PPE: 1. | Y187: =SUM('[1]Scores-protected'!A201:D201) -> 0.0% | Z187: =R187-(R187*Y187) -> 0 | AA187: =IF(Y187<10%,"None",IF(Y187<50%,"Unsatisfactory",IF(Y187<80%,"Requires Improvements",IF(Y187>79%,"Satisfactory",0)))) -> None | AB187: 90% | AC187: =IF(Z187<672,"LOW",IF(Z187<979,"MEDIUM",IF(Z187<1399,"HIGH",IF(Z187<3501,"VERY HIGH",0)))) -> LOW
R188: =O188*P188*Q188 -> 0 | S188: =IF(R188<672,"LOW",IF(R188<979,"MEDIUM",IF(R188<1399,"HIGH",IF(R188<3501,"VERY HIGH",0)))) -> LOW | T188: Elimination 1. Substitution: 1. Engineering Control: 1. Administrative Control: 1. PPE: 1. | Y188: =SUM('[1]Scores-protected'!A202:D202) -> 0.0% | Z188: =R188-(R188*Y188) -> 0 | AA188: =IF(Y188<10%,"None",IF(Y188<50%,"Unsatisfactory",IF(Y188<80%,"Requires Improvements",IF(Y188>79%,"Satisfactory",0)))) -> None | AB188: 90% | AC188: =IF(Z188<672,"LOW",IF(Z188<979,"MEDIUM",IF(Z188<1399,"HIGH",IF(Z188<3501,"VERY HIGH",0)))) -> LOW
R189: =O189*P189*Q189 -> 0 | S189: =IF(R189<672,"LOW",IF(R189<979,"MEDIUM",IF(R189<1399,"HIGH",IF(R189<3501,"VERY HIGH",0)))) -> LOW | T189: Elimination 1. Substitution: 1. Engineering Control: 1. Administrative Control: 1. PPE: 1. | Y189: =SUM('[1]Scores-protected'!A203:D203) -> 0.0% | Z189: =R189-(R189*Y189) -> 0 | AA189: =IF(Y189<10%,"None",IF(Y189<50%,"Unsatisfactory",IF(Y189<80%,"Requires Improvements",IF(Y189>79%,"Satisfactory",0)))) -> None | AB189: 90% | AC189: =IF(Z189<672,"LOW",IF(Z189<979,"MEDIUM",IF(Z189<1399,"HIGH",IF(Z189<3501,"VERY HIGH",0)))) -> LOW
R190: =O190*P190*Q190 -> 0 | S190: =IF(R190<672,"LOW",IF(R190<979,"MEDIUM",IF(R190<1399,"HIGH",IF(R190<3501,"VERY HIGH",0)))) -> LOW | T190: Elimination 1. Substitution: 1. Engineering Control: 1. Administrative Control: 1. PPE: 1. | Y190: =SUM('[1]Scores-protected'!A204:D204) -> 0.0% | Z190: =R190-(R190*Y190) -> 0 | AA190: =IF(Y190<10%,"None",IF(Y190<50%,"Unsatisfactory",IF(Y190<80%,"Requires Improvements",IF(Y190>79%,"Satisfactory",0)))) -> None | AB190: 90% | AC190: =IF(Z190<672,"LOW",IF(Z190<979,"MEDIUM",IF(Z190<1399,"HIGH",IF(Z190<3501,"VERY HIGH",0)))) -> LOW
R191: =O191*P191*Q191 -> 0 | S191: =IF(R191<672,"LOW",IF(R191<979,"MEDIUM",IF(R191<1399,"HIGH",IF(R191<3501,"VERY HIGH",0)))) -> LOW | T191: Elimination 1. Substitution: 1. Engineering Control: 1. Administrative Control: 1. PPE: 1. | Y191: =SUM('[1]Scores-protected'!A205:D205) -> 0.0% | Z191: =R191-(R191*Y191) -> 0 | AA191: =IF(Y191<10%,"None",IF(Y191<50%,"Unsatisfactory",IF(Y191<80%,"Requires Improvements",IF(Y191>79%,"Satisfactory",0)))) -> None | AB191: 90% | AC191: =IF(Z191<672,"LOW",IF(Z191<979,"MEDIUM",IF(Z191<1399,"HIGH",IF(Z191<3501,"VERY HIGH",0)))) -> LOW
R192: =O192*P192*Q192 -> 0 | S192: =IF(R192<672,"LOW",IF(R192<979,"MEDIUM",IF(R192<1399,"HIGH",IF(R192<3501,"VERY HIGH",0)))) -> LOW | T192: Elimination 1. Substitution: 1. Engineering Control: 1. Administrative Control: 1. PPE: 1. | Y192: =SUM('[1]Scores-protected'!A206:D206) -> 0.0% | Z192: =R192-(R192*Y192) -> 0 | AA192: =IF(Y192<10%,"None",IF(Y192<50%,"Unsatisfactory",IF(Y192<80%,"Requires Improvements",IF(Y192>79%,"Satisfactory",0)))) -> None | AB192: 90% | AC192: =IF(Z192<672,"LOW",IF(Z192<979,"MEDIUM",IF(Z192<1399,"HIGH",IF(Z192<3501,"VERY HIGH",0)))) -> LOW
R193: =O193*P193*Q193 -> 0 | S193: =IF(R193<672,"LOW",IF(R193<979,"MEDIUM",IF(R193<1399,"HIGH",IF(R193<3501,"VERY HIGH",0)))) -> LOW | T193: Elimination 1. Substitution: 1. Engineering Control: 1. Administrative Control: 1. PPE: 1. | Y193: =SUM('[1]Scores-protected'!A207:D207) -> 0.0% | Z193: =R193-(R193*Y193) -> 0 | AA193: =IF(Y193<10%,"None",IF(Y193<50%,"Unsatisfactory",IF(Y193<80%,"Requires Improvements",IF(Y193>79%,"Satisfactory",0)))) -> None | AB193: 90% | AC193: =IF(Z193<672,"LOW",IF(Z193<979,"MEDIUM",IF(Z193<1399,"HIGH",IF(Z193<3501,"VERY HIGH",0)))) -> LOW
R194: =O194*P194*Q194 -> 0 | S194: =IF(R194<672,"LOW",IF(R194<979,"MEDIUM",IF(R194<1399,"HIGH",IF(R194<3501,"VERY HIGH",0)))) -> LOW | T194: Elimination 1. Substitution: 1. Engineering Control: 1. Administrative Control: 1. PPE: 1. | Y194: =SUM('[1]Scores-protected'!A208:D208) -> 0.0% | Z194: =R194-(R194*Y194) -> 0 | AA194: =IF(Y194<10%,"None",IF(Y194<50%,"Unsatisfactory",IF(Y194<80%,"Requires Improvements",IF(Y194>79%,"Satisfactory",0)))) -> None | AB194: 90% | AC194: =IF(Z194<672,"LOW",IF(Z194<979,"MEDIUM",IF(Z194<1399,"HIGH",IF(Z194<3501,"VERY HIGH",0)))) -> LOW
R195: =O195*P195*Q195 -> 0 | S195: =IF(R195<672,"LOW",IF(R195<979,"MEDIUM",IF(R195<1399,"HIGH",IF(R195<3501,"VERY HIGH",0)))) -> LOW | T195: Elimination 1. Substitution: 1. Engineering Control: 1. Administrative Control: 1. PPE: 1. | Y195: =SUM('[1]Scores-protected'!A209:D209) -> 0.0% | Z195: =R195-(R195*Y195) -> 0 | AA195: =IF(Y195<10%,"None",IF(Y195<50%,"Unsatisfactory",IF(Y195<80%,"Requires Improvements",IF(Y195>79%,"Satisfactory",0)))) -> None | AB195: 90% | AC195: =IF(Z195<672,"LOW",IF(Z195<979,"MEDIUM",IF(Z195<1399,"HIGH",IF(Z195<3501,"VERY HIGH",0)))) -> LOW
R196: =O196*P196*Q196 -> 0 | S196: =IF(R196<672,"LOW",IF(R196<979,"MEDIUM",IF(R196<1399,"HIGH",IF(R196<3501,"VERY HIGH",0)))) -> LOW | T196: Elimination 1. Substitution: 1. Engineering Control: 1. Administrative Control: 1. PPE: 1. | Y196: =SUM('[1]Scores-protected'!A210:D210) -> 0.0% | Z196: =R196-(R196*Y196) -> 0 | AA196: =IF(Y196<10%,"None",IF(Y196<50%,"Unsatisfactory",IF(Y196<80%,"Requires Improvements",IF(Y196>79%,"Satisfactory",0)))) -> None | AB196: 90% | AC196: =IF(Z196<672,"LOW",IF(Z196<979,"MEDIUM",IF(Z196<1399,"HIGH",IF(Z196<3501,"VERY HIGH",0)))) -> LOW
R197: =O197*P197*Q197 -> 0 | S197: =IF(R197<672,"LOW",IF(R197<979,"MEDIUM",IF(R197<1399,"HIGH",IF(R197<3501,"VERY HIGH",0)))) -> LOW | T197: Elimination 1. Substitution: 1. Engineering Control: 1. Administrative Control: 1. PPE: 1. | Y197: =SUM('[1]Scores-protected'!A211:D211) -> 0.0% | Z197: =R197-(R197*Y197) -> 0 | AA197: =IF(Y197<10%,"None",IF(Y197<50%,"Unsatisfactory",IF(Y197<80%,"Requires Improvements",IF(Y197>79%,"Satisfactory",0)))) -> None | AB197: 90% | AC197: =IF(Z197<672,"LOW",IF(Z197<979,"MEDIUM",IF(Z197<1399,"HIGH",IF(Z197<3501,"VERY HIGH",0)))) -> LOW
R198: =O198*P198*Q198 -> 0 | S198: =IF(R198<672,"LOW",IF(R198<979,"MEDIUM",IF(R198<1399,"HIGH",IF(R198<3501,"VERY HIGH",0)))) -> LOW | T198: Elimination 1. Substitution: 1. Engineering Control: 1. Administrative Control: 1. PPE: 1. | Y198: =SUM('[1]Scores-protected'!A212:D212) -> 0.0% | Z198: =R198-(R198*Y198) -> 0 | AA198: =IF(Y198<10%,"None",IF(Y198<50%,"Unsatisfactory",IF(Y198<80%,"Requires Improvements",IF(Y198>79%,"Satisfactory",0)))) -> None | AB198: 90% | AC198: =IF(Z198<672,"LOW",IF(Z198<979,"MEDIUM",IF(Z198<1399,"HIGH",IF(Z198<3501,"VERY HIGH",0)))) -> LOW
R199: =O199*P199*Q199 -> 0 | S199: =IF(R199<672,"LOW",IF(R199<979,"MEDIUM",IF(R199<1399,"HIGH",IF(R199<3501,"VERY HIGH",0)))) -> LOW | T199: Elimination 1. Substitution: 1. Engineering Control: 1. Administrative Control: 1. PPE: 1. | Y199: =SUM('[1]Scores-protected'!A213:D213) -> 0.0% | Z199: =R199-(R199*Y199) -> 0 | AA199: =IF(Y199<10%,"None",IF(Y199<50%,"Unsatisfactory",IF(Y199<80%,"Requires Improvements",IF(Y199>79%,"Satisfactory",0)))) -> None | AB199: 90% | AC199: =IF(Z199<672,"LOW",IF(Z199<979,"MEDIUM",IF(Z199<1399,"HIGH",IF(Z199<3501,"VERY HIGH",0)))) -> LOW
R200: =O200*P200*Q200 -> 0 | S200: =IF(R200<672,"LOW",IF(R200<979,"MEDIUM",IF(R200<1399,"HIGH",IF(R200<3501,"VERY HIGH",0)))) -> LOW | T200: Elimination 1. Substitution: 1. Engineering Control: 1. Administrative Control: 1. PPE: 1. | Y200: =SUM('[1]Scores-protected'!A214:D214) -> 0.0% | Z200: =R200-(R200*Y200) -> 0 | AA200: =IF(Y200<10%,"None",IF(Y200<50%,"Unsatisfactory",IF(Y200<80%,"Requires Improvements",IF(Y200>79%,"Satisfactory",0)))) -> None | AB200: 90% | AC200: =IF(Z200<672,"LOW",IF(Z200<979,"MEDIUM",IF(Z200<1399,"HIGH",IF(Z200<3501,"VERY HIGH",0)))) -> LOW
R201: =O201*P201*Q201 -> 0 | S201: =IF(R201<672,"LOW",IF(R201<979,"MEDIUM",IF(R201<1399,"HIGH",IF(R201<3501,"VERY HIGH",0)))) -> LOW | T201: Elimination 1. Substitution: 1. Engineering Control: 1. Administrative Control: 1. PPE: 1. | Y201: =SUM('[1]Scores-protected'!A215:D215) -> 0.0% | Z201: =R201-(R201*Y201) -> 0 | AA201: =IF(Y201<10%,"None",IF(Y201<50%,"Unsatisfactory",IF(Y201<80%,"Requires Improvements",IF(Y201>79%,"Satisfactory",0)))) -> None | AB201: 90% | AC201: =IF(Z201<672,"LOW",IF(Z201<979,"MEDIUM",IF(Z201<1399,"HIGH",IF(Z201<3501,"VERY HIGH",0)))) -> LOW
R202: =O202*P202*Q202 -> 0 | S202: =IF(R202<672,"LOW",IF(R202<979,"MEDIUM",IF(R202<1399,"HIGH",IF(R202<3501,"VERY HIGH",0)))) -> LOW | T202: Elimination 1. Substitution: 1. Engineering Control: 1. Administrative Control: 1. PPE: 1. | Y202: =SUM('[1]Scores-protected'!A216:D216) -> 0.0% | Z202: =R202-(R202*Y202) -> 0 | AA202: =IF(Y202<10%,"None",IF(Y202<50%,"Unsatisfactory",IF(Y202<80%,"Requires Improvements",IF(Y202>79%,"Satisfactory",0)))) -> None | AB202: 90% | AC202: =IF(Z202<672,"LOW",IF(Z202<979,"MEDIUM",IF(Z202<1399,"HIGH",IF(Z202<3501,"VERY HIGH",0)))) -> LOW
R203: =O203*P203*Q203 -> 0 | S203: =IF(R203<672,"LOW",IF(R203<979,"MEDIUM",IF(R203<1399,"HIGH",IF(R203<3501,"VERY HIGH",0)))) -> LOW | T203: Elimination 1. Substitution: 1. Engineering Control: 1. Administrative Control: 1. PPE: 1. | Y203: =SUM('[1]Scores-protected'!A217:D217) -> 0.0% | Z203: =R203-(R203*Y203) -> 0 | AA203: =IF(Y203<10%,"None",IF(Y203<50%,"Unsatisfactory",IF(Y203<80%,"Requires Improvements",IF(Y203>79%,"Satisfactory",0)))) -> None | AB203: 90% | AC203: =IF(Z203<672,"LOW",IF(Z203<979,"MEDIUM",IF(Z203<1399,"HIGH",IF(Z203<3501,"VERY HIGH",0)))) -> LOW
R204: =O204*P204*Q204 -> 0 | S204: =IF(R204<672,"LOW",IF(R204<979,"MEDIUM",IF(R204<1399,"HIGH",IF(R204<3501,"VERY HIGH",0)))) -> LOW | T204: Elimination 1. Substitution: 1. Engineering Control: 1. Administrative Control: 1. PPE: 1. | Y204: =SUM('[1]Scores-protected'!A218:D218) -> 0.0% | Z204: =R204-(R204*Y204) -> 0 | AA204: =IF(Y204<10%,"None",IF(Y204<50%,"Unsatisfactory",IF(Y204<80%,"Requires Improvements",IF(Y204>79%,"Satisfactory",0)))) -> None | AB204: 90% | AC204: =IF(Z204<672,"LOW",IF(Z204<979,"MEDIUM",IF(Z204<1399,"HIGH",IF(Z204<3501,"VERY HIGH",0)))) -> LOW
R205: =O205*P205*Q205 -> 0 | S205: =IF(R205<672,"LOW",IF(R205<979,"MEDIUM",IF(R205<1399,"HIGH",IF(R205<3501,"VERY HIGH",0)))) -> LOW | T205: Elimination 1. Substitution: 1. Engineering Control: 1. Administrative Control: 1. PPE: 1. | Y205: =SUM('[1]Scores-protected'!A219:D219) -> 0.0% | Z205: =R205-(R205*Y205) -> 0 | AA205: =IF(Y205<10%,"None",IF(Y205<50%,"Unsatisfactory",IF(Y205<80%,"Requires Improvements",IF(Y205>79%,"Satisfactory",0)))) -> None | AB205: 90% | AC205: =IF(Z205<672,"LOW",IF(Z205<979,"MEDIUM",IF(Z205<1399,"HIGH",IF(Z205<3501,"VERY HIGH",0)))) -> LOW
R206: =O206*P206*Q206 -> 0 | S206: =IF(R206<672,"LOW",IF(R206<979,"MEDIUM",IF(R206<1399,"HIGH",IF(R206<3501,"VERY HIGH",0)))) -> LOW | T206: Elimination 1. Substitution: 1. Engineering Control: 1. Administrative Control: 1. PPE: 1. | Y206: =SUM('[1]Scores-protected'!A220:D220) -> 0.0% | Z206: =R206-(R206*Y206) -> 0 | AA206: =IF(Y206<10%,"None",IF(Y206<50%,"Unsatisfactory",IF(Y206<80%,"Requires Improvements",IF(Y206>79%,"Satisfactory",0)))) -> None | AB206: 90% | AC206: =IF(Z206<672,"LOW",IF(Z206<979,"MEDIUM",IF(Z206<1399,"HIGH",IF(Z206<3501,"VERY HIGH",0)))) -> LOW
R207: =O207*P207*Q207 -> 0 | S207: =IF(R207<672,"LOW",IF(R207<979,"MEDIUM",IF(R207<1399,"HIGH",IF(R207<3501,"VERY HIGH",0)))) -> LOW | T207: Elimination 1. Substitution: 1. Engineering Control: 1. Administrative Control: 1. PPE: 1. | Y207: =SUM('[1]Scores-protected'!A221:D221) -> 0.0% | Z207: =R207-(R207*Y207) -> 0 | AA207: =IF(Y207<10%,"None",IF(Y207<50%,"Unsatisfactory",IF(Y207<80%,"Requires Improvements",IF(Y207>79%,"Satisfactory",0)))) -> None | AB207: 90% | AC207: =IF(Z207<672,"LOW",IF(Z207<979,"MEDIUM",IF(Z207<1399,"HIGH",IF(Z207<3501,"VERY HIGH",0)))) -> LOW
R208: =O208*P208*Q208 -> 0 | S208: =IF(R208<672,"LOW",IF(R208<979,"MEDIUM",IF(R208<1399,"HIGH",IF(R208<3501,"VERY HIGH",0)))) -> LOW | T208: Elimination 1. Substitution: 1. Engineering Control: 1. Administrative Control: 1. PPE: 1. | Y208: =SUM('[1]Scores-protected'!A222:D222) -> 0.0% | Z208: =R208-(R208*Y208) -> 0 | AA208: =IF(Y208<10%,"None",IF(Y208<50%,"Unsatisfactory",IF(Y208<80%,"Requires Improvements",IF(Y208>79%,"Satisfactory",0)))) -> None | AB208: 90% | AC208: =IF(Z208<672,"LOW",IF(Z208<979,"MEDIUM",IF(Z208<1399,"HIGH",IF(Z208<3501,"VERY HIGH",0)))) -> LOW
R209: =O209*P209*Q209 -> 0 | S209: =IF(R209<672,"LOW",IF(R209<979,"MEDIUM",IF(R209<1399,"HIGH",IF(R209<3501,"VERY HIGH",0)))) -> LOW | T209: Elimination 1. Substitution: 1. Engineering Control: 1. Administrative Control: 1. PPE: 1. | Y209: =SUM('[1]Scores-protected'!A223:D223) -> 0.0% | Z209: =R209-(R209*Y209) -> 0 | AA209: =IF(Y209<10%,"None",IF(Y209<50%,"Unsatisfactory",IF(Y209<80%,"Requires Improvements",IF(Y209>79%,"Satisfactory",0)))) -> None | AB209: 90% | AC209: =IF(Z209<672,"LOW",IF(Z209<979,"MEDIUM",IF(Z209<1399,"HIGH",IF(Z209<3501,"VERY HIGH",0)))) -> LOW
R210: =O210*P210*Q210 -> 0 | S210: =IF(R210<672,"LOW",IF(R210<979,"MEDIUM",IF(R210<1399,"HIGH",IF(R210<3501,"VERY HIGH",0)))) -> LOW | T210: Elimination 1. Substitution: 1. Engineering Control: 1. Administrative Control: 1. PPE: 1. | Y210: =SUM('[1]Scores-protected'!A224:D224) -> 0.0% | Z210: =R210-(R210*Y210) -> 0 | AA210: =IF(Y210<10%,"None",IF(Y210<50%,"Unsatisfactory",IF(Y210<80%,"Requires Improvements",IF(Y210>79%,"Satisfactory",0)))) -> None | AB210: 90% | AC210: =IF(Z210<672,"LOW",IF(Z210<979,"MEDIUM",IF(Z210<1399,"HIGH",IF(Z210<3501,"VERY HIGH",0)))) -> LOW
R211: =O211*P211*Q211 -> 0 | S211: =IF(R211<672,"LOW",IF(R211<979,"MEDIUM",IF(R211<1399,"HIGH",IF(R211<3501,"VERY HIGH",0)))) -> LOW | T211: Elimination 1. Substitution: 1. Engineering Control: 1. Administrative Control: 1. PPE: 1. | Y211: =SUM('[1]Scores-protected'!A225:D225) -> 0.0% | Z211: =R211-(R211*Y211) -> 0 | AA211: =IF(Y211<10%,"None",IF(Y211<50%,"Unsatisfactory",IF(Y211<80%,"Requires Improvements",IF(Y211>79%,"Satisfactory",0)))) -> None | AB211: 90% | AC211: =IF(Z211<672,"LOW",IF(Z211<979,"MEDIUM",IF(Z211<1399,"HIGH",IF(Z211<3501,"VERY HIGH",0)))) -> LOW
R212: =O212*P212*Q212 -> 0 | S212: =IF(R212<672,"LOW",IF(R212<979,"MEDIUM",IF(R212<1399,"HIGH",IF(R212<3501,"VERY HIGH",0)))) -> LOW | T212: Elimination 1. Substitution: 1. Engineering Control: 1. Administrative Control: 1. PPE: 1. | Y212: =SUM('[1]Scores-protected'!A226:D226) -> 0.0% | Z212: =R212-(R212*Y212) -> 0 | AA212: =IF(Y212<10%,"None",IF(Y212<50%,"Unsatisfactory",IF(Y212<80%,"Requires Improvements",IF(Y212>79%,"Satisfactory",0)))) -> None | AB212: 90% | AC212: =IF(Z212<672,"LOW",IF(Z212<979,"MEDIUM",IF(Z212<1399,"HIGH",IF(Z212<3501,"VERY HIGH",0)))) -> LOW
R213: =O213*P213*Q213 -> 0 | S213: =IF(R213<672,"LOW",IF(R213<979,"MEDIUM",IF(R213<1399,"HIGH",IF(R213<3501,"VERY HIGH",0)))) -> LOW | T213: Elimination 1. Substitution: 1. Engineering Control: 1. Administrative Control: 1. PPE: 1. | Y213: =SUM('[1]Scores-protected'!A227:D227) -> 0.0% | Z213: =R213-(R213*Y213) -> 0 | AA213: =IF(Y213<10%,"None",IF(Y213<50%,"Unsatisfactory",IF(Y213<80%,"Requires Improvements",IF(Y213>79%,"Satisfactory",0)))) -> None | AB213: 90% | AC213: =IF(Z213<672,"LOW",IF(Z213<979,"MEDIUM",IF(Z213<1399,"HIGH",IF(Z213<3501,"VERY HIGH",0)))) -> LOW
R214: =O214*P214*Q214 -> 0 | S214: =IF(R214<672,"LOW",IF(R214<979,"MEDIUM",IF(R214<1399,"HIGH",IF(R214<3501,"VERY HIGH",0)))) -> LOW | T214: Elimination 1. Substitution: 1. Engineering Control: 1. Administrative Control: 1. PPE: 1. | Y214: =SUM('[1]Scores-protected'!A228:D228) -> 0.0% | Z214: =R214-(R214*Y214) -> 0 | AA214: =IF(Y214<10%,"None",IF(Y214<50%,"Unsatisfactory",IF(Y214<80%,"Requires Improvements",IF(Y214>79%,"Satisfactory",0)))) -> None | AB214: 90% | AC214: =IF(Z214<672,"LOW",IF(Z214<979,"MEDIUM",IF(Z214<1399,"HIGH",IF(Z214<3501,"VERY HIGH",0)))) -> LOW
R215: =O215*P215*Q215 -> 0 | S215: =IF(R215<672,"LOW",IF(R215<979,"MEDIUM",IF(R215<1399,"HIGH",IF(R215<3501,"VERY HIGH",0)))) -> LOW | T215: Elimination 1. Substitution: 1. Engineering Control: 1. Administrative Control: 1. PPE: 1. | Y215: =SUM('[1]Scores-protected'!A229:D229) -> 0.0% | Z215: =R215-(R215*Y215) -> 0 | AA215: =IF(Y215<10%,"None",IF(Y215<50%,"Unsatisfactory",IF(Y215<80%,"Requires Improvements",IF(Y215>79%,"Satisfactory",0)))) -> None | AB215: 90% | AC215: =IF(Z215<672,"LOW",IF(Z215<979,"MEDIUM",IF(Z215<1399,"HIGH",IF(Z215<3501,"VERY HIGH",0)))) -> LOW
R216: =O216*P216*Q216 -> 0 | S216: =IF(R216<672,"LOW",IF(R216<979,"MEDIUM",IF(R216<1399,"HIGH",IF(R216<3501,"VERY HIGH",0)))) -> LOW | T216: Elimination 1. Substitution: 1. Engineering Control: 1. Administrative Control: 1. PPE: 1. | Y216: =SUM('[1]Scores-protected'!A230:D230) -> 0.0% | Z216: =R216-(R216*Y216) -> 0 | AA216: =IF(Y216<10%,"None",IF(Y216<50%,"Unsatisfactory",IF(Y216<80%,"Requires Improvements",IF(Y216>79%,"Satisfactory",0)))) -> None | AB216: 90% | AC216: =IF(Z216<672,"LOW",IF(Z216<979,"MEDIUM",IF(Z216<1399,"HIGH",IF(Z216<3501,"VERY HIGH",0)))) -> LOW
R217: =O217*P217*Q217 -> 0 | S217: =IF(R217<672,"LOW",IF(R217<979,"MEDIUM",IF(R217<1399,"HIGH",IF(R217<3501,"VERY HIGH",0)))) -> LOW | T217: Elimination 1. Substitution: 1. Engineering Control: 1. Administrative Control: 1. PPE: 1. | Y217: =SUM('[1]Scores-protected'!A231:D231) -> 0.0% | Z217: =R217-(R217*Y217) -> 0 | AA217: =IF(Y217<10%,"None",IF(Y217<50%,"Unsatisfactory",IF(Y217<80%,"Requires Improvements",IF(Y217>79%,"Satisfactory",0)))) -> None | AB217: 90% | AC217: =IF(Z217<672,"LOW",IF(Z217<979,"MEDIUM",IF(Z217<1399,"HIGH",IF(Z217<3501,"VERY HIGH",0)))) -> LOW
R218: =O218*P218*Q218 -> 0 | S218: =IF(R218<672,"LOW",IF(R218<979,"MEDIUM",IF(R218<1399,"HIGH",IF(R218<3501,"VERY HIGH",0)))) -> LOW | T218: Elimination 1. Substitution: 1. Engineering Control: 1. Administrative Control: 1. PPE: 1. | Y218: =SUM('[1]Scores-protected'!A232:D232) -> 0.0% | Z218: =R218-(R218*Y218) -> 0 | AA218: =IF(Y218<10%,"None",IF(Y218<50%,"Unsatisfactory",IF(Y218<80%,"Requires Improvements",IF(Y218>79%,"Satisfactory",0)))) -> None | AB218: 90% | AC218: =IF(Z218<672,"LOW",IF(Z218<979,"MEDIUM",IF(Z218<1399,"HIGH",IF(Z218<3501,"VERY HIGH",0)))) -> LOW
R219: =O219*P219*Q219 -> 0 | S219: =IF(R219<672,"LOW",IF(R219<979,"MEDIUM",IF(R219<1399,"HIGH",IF(R219<3501,"VERY HIGH",0)))) -> LOW | T219: Elimination 1. Substitution: 1. Engineering Control: 1. Administrative Control: 1. PPE: 1. | Y219: =SUM('[1]Scores-protected'!A233:D233) -> 0.0% | Z219: =R219-(R219*Y219) -> 0 | AA219: =IF(Y219<10%,"None",IF(Y219<50%,"Unsatisfactory",IF(Y219<80%,"Requires Improvements",IF(Y219>79%,"Satisfactory",0)))) -> None | AB219: 90% | AC219: =IF(Z219<672,"LOW",IF(Z219<979,"MEDIUM",IF(Z219<1399,"HIGH",IF(Z219<3501,"VERY HIGH",0)))) -> LOW
R220: =O220*P220*Q220 -> 0 | S220: =IF(R220<672,"LOW",IF(R220<979,"MEDIUM",IF(R220<1399,"HIGH",IF(R220<3501,"VERY HIGH",0)))) -> LOW | T220: Elimination 1. Substitution: 1. Engineering Control: 1. Administrative Control: 1. PPE: 1. | Y220: =SUM('[1]Scores-protected'!A234:D234) -> 0.0% | Z220: =R220-(R220*Y220) -> 0 | AA220: =IF(Y220<10%,"None",IF(Y220<50%,"Unsatisfactory",IF(Y220<80%,"Requires Improvements",IF(Y220>79%,"Satisfactory",0)))) -> None | AB220: 90% | AC220: =IF(Z220<672,"LOW",IF(Z220<979,"MEDIUM",IF(Z220<1399,"HIGH",IF(Z220<3501,"VERY HIGH",0)))) -> LOW
R221: =O221*P221*Q221 -> 0 | S221: =IF(R221<672,"LOW",IF(R221<979,"MEDIUM",IF(R221<1399,"HIGH",IF(R221<3501,"VERY HIGH",0)))) -> LOW | T221: Elimination 1. Substitution: 1. Engineering Control: 1. Administrative Control: 1. PPE: 1. | Y221: =SUM('[1]Scores-protected'!A235:D235) -> 0.0% | Z221: =R221-(R221*Y221) -> 0 | AA221: =IF(Y221<10%,"None",IF(Y221<50%,"Unsatisfactory",IF(Y221<80%,"Requires Improvements",IF(Y221>79%,"Satisfactory",0)))) -> None | AB221: 90% | AC221: =IF(Z221<672,"LOW",IF(Z221<979,"MEDIUM",IF(Z221<1399,"HIGH",IF(Z221<3501,"VERY HIGH",0)))) -> LOW
R222: =O222*P222*Q222 -> 0 | S222: =IF(R222<672,"LOW",IF(R222<979,"MEDIUM",IF(R222<1399,"HIGH",IF(R222<3501,"VERY HIGH",0)))) -> LOW | T222: Elimination 1. Substitution: 1. Engineering Control: 1. Administrative Control: 1. PPE: 1. | Y222: =SUM('[1]Scores-protected'!A236:D236) -> 0.0% | Z222: =R222-(R222*Y222) -> 0 | AA222: =IF(Y222<10%,"None",IF(Y222<50%,"Unsatisfactory",IF(Y222<80%,"Requires Improvements",IF(Y222>79%,"Satisfactory",0)))) -> None | AB222: 90% | AC222: =IF(Z222<672,"LOW",IF(Z222<979,"MEDIUM",IF(Z222<1399,"HIGH",IF(Z222<3501,"VERY HIGH",0)))) -> LOW
R223: =O223*P223*Q223 -> 0 | S223: =IF(R223<672,"LOW",IF(R223<979,"MEDIUM",IF(R223<1399,"HIGH",IF(R223<3501,"VERY HIGH",0)))) -> LOW | T223: Elimination 1. Substitution: 1. Engineering Control: 1. Administrative Control: 1. PPE: 1. | Y223: =SUM('[1]Scores-protected'!A237:D237) -> 0.0% | Z223: =R223-(R223*Y223) -> 0 | AA223: =IF(Y223<10%,"None",IF(Y223<50%,"Unsatisfactory",IF(Y223<80%,"Requires Improvements",IF(Y223>79%,"Satisfactory",0)))) -> None | AB223: 90% | AC223: =IF(Z223<672,"LOW",IF(Z223<979,"MEDIUM",IF(Z223<1399,"HIGH",IF(Z223<3501,"VERY HIGH",0)))) -> LOW
R224: =O224*P224*Q224 -> 0 | S224: =IF(R224<672,"LOW",IF(R224<979,"MEDIUM",IF(R224<1399,"HIGH",IF(R224<3501,"VERY HIGH",0)))) -> LOW | T224: Elimination 1. Substitution: 1. Engineering Control: 1. Administrative Control: 1. PPE: 1. | Y224: =SUM('[1]Scores-protected'!A238:D238) -> 0.0% | Z224: =R224-(R224*Y224) -> 0 | AA224: =IF(Y224<10%,"None",IF(Y224<50%,"Unsatisfactory",IF(Y224<80%,"Requires Improvements",IF(Y224>79%,"Satisfactory",0)))) -> None | AB224: 90% | AC224: =IF(Z224<672,"LOW",IF(Z224<979,"MEDIUM",IF(Z224<1399,"HIGH",IF(Z224<3501,"VERY HIGH",0)))) -> LOW
R225: =O225*P225*Q225 -> 0 | S225: =IF(R225<672,"LOW",IF(R225<979,"MEDIUM",IF(R225<1399,"HIGH",IF(R225<3501,"VERY HIGH",0)))) -> LOW | T225: Elimination 1. Substitution: 1. Engineering Control: 1. Administrative Control: 1. PPE: 1. | Y225: =SUM('[1]Scores-protected'!A239:D239) -> 0.0% | Z225: =R225-(R225*Y225) -> 0 | AA225: =IF(Y225<10%,"None",IF(Y225<50%,"Unsatisfactory",IF(Y225<80%,"Requires Improvements",IF(Y225>79%,"Satisfactory",0)))) -> None | AB225: 90% | AC225: =IF(Z225<672,"LOW",IF(Z225<979,"MEDIUM",IF(Z225<1399,"HIGH",IF(Z225<3501,"VERY HIGH",0)))) -> LOW
R226: =O226*P226*Q226 -> 0 | S226: =IF(R226<672,"LOW",IF(R226<979,"MEDIUM",IF(R226<1399,"HIGH",IF(R226<3501,"VERY HIGH",0)))) -> LOW | T226: Elimination 1. Substitution: 1. Engineering Control: 1. Administrative Control: 1. PPE: 1. | Y226: =SUM('[1]Scores-protected'!A240:D240) -> 0.0% | Z226: =R226-(R226*Y226) -> 0 | AA226: =IF(Y226<10%,"None",IF(Y226<50%,"Unsatisfactory",IF(Y226<80%,"Requires Improvements",IF(Y226>79%,"Satisfactory",0)))) -> None | AB226: 90% | AC226: =IF(Z226<672,"LOW",IF(Z226<979,"MEDIUM",IF(Z226<1399,"HIGH",IF(Z226<3501,"VERY HIGH",0)))) -> LOW
R227: =O227*P227*Q227 -> 0 | S227: =IF(R227<672,"LOW",IF(R227<979,"MEDIUM",IF(R227<1399,"HIGH",IF(R227<3501,"VERY HIGH",0)))) -> LOW | T227: Elimination 1. Substitution: 1. Engineering Control: 1. Administrative Control: 1. PPE: 1. | Y227: =SUM('[1]Scores-protected'!A241:D241) -> 0.0% | Z227: =R227-(R227*Y227) -> 0 | AA227: =IF(Y227<10%,"None",IF(Y227<50%,"Unsatisfactory",IF(Y227<80%,"Requires Improvements",IF(Y227>79%,"Satisfactory",0)))) -> None | AB227: 90% | AC227: =IF(Z227<672,"LOW",IF(Z227<979,"MEDIUM",IF(Z227<1399,"HIGH",IF(Z227<3501,"VERY HIGH",0)))) -> LOW
R228: =O228*P228*Q228 -> 0 | S228: =IF(R228<672,"LOW",IF(R228<979,"MEDIUM",IF(R228<1399,"HIGH",IF(R228<3501,"VERY HIGH",0)))) -> LOW | T228: Elimination 1. Substitution: 1. Engineering Control: 1. Administrative Control: 1. PPE: 1. | Y228: =SUM('[1]Scores-protected'!A242:D242) -> 0.0% | Z228: =R228-(R228*Y228) -> 0 | AA228: =IF(Y228<10%,"None",IF(Y228<50%,"Unsatisfactory",IF(Y228<80%,"Requires Improvements",IF(Y228>79%,"Satisfactory",0)))) -> None | AB228: 90% | AC228: =IF(Z228<672,"LOW",IF(Z228<979,"MEDIUM",IF(Z228<1399,"HIGH",IF(Z228<3501,"VERY HIGH",0)))) -> LOW
R229: =O229*P229*Q229 -> 0 | S229: =IF(R229<672,"LOW",IF(R229<979,"MEDIUM",IF(R229<1399,"HIGH",IF(R229<3501,"VERY HIGH",0)))) -> LOW | T229: Elimination 1. Substitution: 1. Engineering Control: 1. Administrative Control: 1. PPE: 1. | Y229: =SUM('[1]Scores-protected'!A243:D243) -> 0.0% | Z229: =R229-(R229*Y229) -> 0 | AA229: =IF(Y229<10%,"None",IF(Y229<50%,"Unsatisfactory",IF(Y229<80%,"Requires Improvements",IF(Y229>79%,"Satisfactory",0)))) -> None | AB229: 90% | AC229: =IF(Z229<672,"LOW",IF(Z229<979,"MEDIUM",IF(Z229<1399,"HIGH",IF(Z229<3501,"VERY HIGH",0)))) -> LOW
R230: =O230*P230*Q230 -> 0 | S230: =IF(R230<672,"LOW",IF(R230<979,"MEDIUM",IF(R230<1399,"HIGH",IF(R230<3501,"VERY HIGH",0)))) -> LOW | T230: Elimination 1. Substitution: 1. Engineering Control: 1. Administrative Control: 1. PPE: 1. | Y230: =SUM('[1]Scores-protected'!A244:D244) -> 0.0% | Z230: =R230-(R230*Y230) -> 0 | AA230: =IF(Y230<10%,"None",IF(Y230<50%,"Unsatisfactory",IF(Y230<80%,"Requires Improvements",IF(Y230>79%,"Satisfactory",0)))) -> None | AB230: 90% | AC230: =IF(Z230<672,"LOW",IF(Z230<979,"MEDIUM",IF(Z230<1399,"HIGH",IF(Z230<3501,"VERY HIGH",0)))) -> LOW
R231: =O231*P231*Q231 -> 0 | S231: =IF(R231<672,"LOW",IF(R231<979,"MEDIUM",IF(R231<1399,"HIGH",IF(R231<3501,"VERY HIGH",0)))) -> LOW | T231: Elimination 1. Substitution: 1. Engineering Control: 1. Administrative Control: 1. PPE: 1. | Y231: =SUM('[1]Scores-protected'!A245:D245) -> 0.0% | Z231: =R231-(R231*Y231) -> 0 | AA231: =IF(Y231<10%,"None",IF(Y231<50%,"Unsatisfactory",IF(Y231<80%,"Requires Improvements",IF(Y231>79%,"Satisfactory",0)))) -> None | AB231: 90% | AC231: =IF(Z231<672,"LOW",IF(Z231<979,"MEDIUM",IF(Z231<1399,"HIGH",IF(Z231<3501,"VERY HIGH",0)))) -> LOW
R232: =O232*P232*Q232 -> 0 | S232: =IF(R232<672,"LOW",IF(R232<979,"MEDIUM",IF(R232<1399,"HIGH",IF(R232<3501,"VERY HIGH",0)))) -> LOW | T232: Elimination 1. Substitution: 1. Engineering Control: 1. Administrative Control: 1. PPE: 1. | Y232: =SUM('[1]Scores-protected'!A246:D246) -> 0.0% | Z232: =R232-(R232*Y232) -> 0 | AA232: =IF(Y232<10%,"None",IF(Y232<50%,"Unsatisfactory",IF(Y232<80%,"Requires Improvements",IF(Y232>79%,"Satisfactory",0)))) -> None | AB232: 90% | AC232: =IF(Z232<672,"LOW",IF(Z232<979,"MEDIUM",IF(Z232<1399,"HIGH",IF(Z232<3501,"VERY HIGH",0)))) -> LOW
R233: =O233*P233*Q233 -> 0 | S233: =IF(R233<672,"LOW",IF(R233<979,"MEDIUM",IF(R233<1399,"HIGH",IF(R233<3501,"VERY HIGH",0)))) -> LOW | T233: Elimination 1. Substitution: 1. Engineering Control: 1. Administrative Control: 1. PPE: 1. | Y233: =SUM('[1]Scores-protected'!A247:D247) -> 0.0% | Z233: =R233-(R233*Y233) -> 0 | AA233: =IF(Y233<10%,"None",IF(Y233<50%,"Unsatisfactory",IF(Y233<80%,"Requires Improvements",IF(Y233>79%,"Satisfactory",0)))) -> None | AB233: 90% | AC233: =IF(Z233<672,"LOW",IF(Z233<979,"MEDIUM",IF(Z233<1399,"HIGH",IF(Z233<3501,"VERY HIGH",0)))) -> LOW
R234: =O234*P234*Q234 -> 0 | S234: =IF(R234<672,"LOW",IF(R234<979,"MEDIUM",IF(R234<1399,"HIGH",IF(R234<3501,"VERY HIGH",0)))) -> LOW | T234: Elimination 1. Substitution: 1. Engineering Control: 1. Administrative Control: 1. PPE: 1. | Y234: =SUM('[1]Scores-protected'!A248:D248) -> 0.0% | Z234: =R234-(R234*Y234) -> 0 | AA234: =IF(Y234<10%,"None",IF(Y234<50%,"Unsatisfactory",IF(Y234<80%,"Requires Improvements",IF(Y234>79%,"Satisfactory",0)))) -> None | AB234: 90% | AC234: =IF(Z234<672,"LOW",IF(Z234<979,"MEDIUM",IF(Z234<1399,"HIGH",IF(Z234<3501,"VERY HIGH",0)))) -> LOW
R235: =O235*P235*Q235 -> 0 | S235: =IF(R235<672,"LOW",IF(R235<979,"MEDIUM",IF(R235<1399,"HIGH",IF(R235<3501,"VERY HIGH",0)))) -> LOW | T235: Elimination 1. Substitution: 1. Engineering Control: 1. Administrative Control: 1. PPE: 1. | Y235: =SUM('[1]Scores-protected'!A249:D249) -> 0.0% | Z235: =R235-(R235*Y235) -> 0 | AA235: =IF(Y235<10%,"None",IF(Y235<50%,"Unsatisfactory",IF(Y235<80%,"Requires Improvements",IF(Y235>79%,"Satisfactory",0)))) -> None | AB235: 90% | AC235: =IF(Z235<672,"LOW",IF(Z235<979,"MEDIUM",IF(Z235<1399,"HIGH",IF(Z235<3501,"VERY HIGH",0)))) -> LOW
R236: =O236*P236*Q236 -> 0 | S236: =IF(R236<672,"LOW",IF(R236<979,"MEDIUM",IF(R236<1399,"HIGH",IF(R236<3501,"VERY HIGH",0)))) -> LOW | T236: Elimination 1. Substitution: 1. Engineering Control: 1. Administrative Control: 1. PPE: 1. | Y236: =SUM('[1]Scores-protected'!A250:D250) -> 0.0% | Z236: =R236-(R236*Y236) -> 0 | AA236: =IF(Y236<10%,"None",IF(Y236<50%,"Unsatisfactory",IF(Y236<80%,"Requires Improvements",IF(Y236>79%,"Satisfactory",0)))) -> None | AB236: 90% | AC236: =IF(Z236<672,"LOW",IF(Z236<979,"MEDIUM",IF(Z236<1399,"HIGH",IF(Z236<3501,"VERY HIGH",0)))) -> LOW
R237: =O237*P237*Q237 -> 0 | S237: =IF(R237<672,"LOW",IF(R237<979,"MEDIUM",IF(R237<1399,"HIGH",IF(R237<3501,"VERY HIGH",0)))) -> LOW | T237: Elimination 1. Substitution: 1. Engineering Control: 1. Administrative Control: 1. PPE: 1. | Y237: =SUM('[1]Scores-protected'!A251:D251) -> 0.0% | Z237: =R237-(R237*Y237) -> 0 | AA237: =IF(Y237<10%,"None",IF(Y237<50%,"Unsatisfactory",IF(Y237<80%,"Requires Improvements",IF(Y237>79%,"Satisfactory",0)))) -> None | AB237: 90% | AC237: =IF(Z237<672,"LOW",IF(Z237<979,"MEDIUM",IF(Z237<1399,"HIGH",IF(Z237<3501,"VERY HIGH",0)))) -> LOW
R238: =O238*P238*Q238 -> 0 | S238: =IF(R238<672,"LOW",IF(R238<979,"MEDIUM",IF(R238<1399,"HIGH",IF(R238<3501,"VERY HIGH",0)))) -> LOW | T238: Elimination 1. Substitution: 1. Engineering Control: 1. Administrative Control: 1. PPE: 1. | Y238: =SUM('[1]Scores-protected'!A252:D252) -> 0.0% | Z238: =R238-(R238*Y238) -> 0 | AA238: =IF(Y238<10%,"None",IF(Y238<50%,"Unsatisfactory",IF(Y238<80%,"Requires Improvements",IF(Y238>79%,"Satisfactory",0)))) -> None | AB238: 90% | AC238: =IF(Z238<672,"LOW",IF(Z238<979,"MEDIUM",IF(Z238<1399,"HIGH",IF(Z238<3501,"VERY HIGH",0)))) -> LOW
R239: =O239*P239*Q239 -> 0 | S239: =IF(R239<672,"LOW",IF(R239<979,"MEDIUM",IF(R239<1399,"HIGH",IF(R239<3501,"VERY HIGH",0)))) -> LOW | T239: Elimination 1. Substitution: 1. Engineering Control: 1. Administrative Control: 1. PPE: 1. | Y239: =SUM('[1]Scores-protected'!A253:D253) -> 0.0% | Z239: =R239-(R239*Y239) -> 0 | AA239: =IF(Y239<10%,"None",IF(Y239<50%,"Unsatisfactory",IF(Y239<80%,"Requires Improvements",IF(Y239>79%,"Satisfactory",0)))) -> None | AB239: 90% | AC239: =IF(Z239<672,"LOW",IF(Z239<979,"MEDIUM",IF(Z239<1399,"HIGH",IF(Z239<3501,"VERY HIGH",0)))) -> LOW
... 5172 more rows

Sheet Sheet2

Sheet Sheet3
